Service Delivery Area(T),Service Delivery Team(T),CostC,ExpenditureGroup(T),Account(T),Supplier Name(T),Trans Date,Amount,,
Adult Care & Support,Access & Enablement,HOAC,Supplies & Services,Purchased Meals,APETITO LTD,10/07/2013,1005.66,,
Adult Care & Support,Access & Enablement,HOAC,Supplies & Services,Purchased Meals,COVERAGE CARE SERVICES LTD,15/07/2013,2023.86,,
Adult Care & Support,Access & Enablement,HOAC,Supplies & Services,Purchased Meals,COVERAGE CARE SERVICES LTD,15/07/2013,1063.86,,
Adult Care & Support,Access & Enablement,HOAC,Supplies & Services,Purchased Meals,APETITO LTD,17/07/2013,1288.1,,
Adult Care & Support,Access & Enablement,HOAC,Supplies & Services,Purchased Meals,APETITO LTD,17/07/2013,1005.38,,
Adult Care & Support,Access & Enablement,HOAC,Supplies & Services,Purchased Meals,APETITO LTD,17/07/2013,105.06,,
Adult Care & Support,Access & Enablement,HOAC,Supplies & Services,Purchased Meals,APETITO LTD,17/07/2013,154.12,,
Adult Care & Support,Access & Enablement,HOAC,Supplies & Services,Purchased Meals,APETITO LTD,17/07/2013,102.12,,
Adult Care & Support,Access & Enablement,HOAC,Supplies & Services,Contribution to Arthog,HARTSHORNE COURT LUNCHEON CLUB,31/07/2013,120.8,,
Adult Care & Support,Access & Enablement,HOAG,Supplies & Services,Aids & Appliances,PATTERSON MEDICAL LTD,01/07/2013,156.75,,
Adult Care & Support,Access & Enablement,HOAG,Supplies & Services,Aids & Appliances,RNID PRODUCTS,09/07/2013,105.81,,
Adult Care & Support,Access & Enablement,HOAG,Supplies & Services,Aids & Appliances,RNID PRODUCTS,18/07/2013,377.88,,
Adult Care & Support,Access & Enablement,HOAG,Supplies & Services,Aids & Appliances,PATTERSON MEDICAL LTD,22/07/2013,158.16,,
Adult Care & Support,Access & Enablement,HOAP,Supplies & Services,Equipment - Repair,PRISM MEDICAL WESTHOLME DIVISION,11/07/2013,136.25,,
Adult Care & Support,Access & Enablement,HOAP,Supplies & Services,Equipment - Repair,PRISM MEDICAL WESTHOLME DIVISION,05/07/2013,165,,
Adult Care & Support,Access & Enablement,HOAP,Supplies & Services,Equipment - Repair,PRISM MEDICAL WESTHOLME DIVISION,05/07/2013,129,,
Adult Care & Support,Access & Enablement,HOAP,Supplies & Services,Adaptations,TRAVIS PERKINS TRADING CO LIMITED,08/07/2013,158.11,,
Adult Care & Support,Access & Enablement,HOAP,Supplies & Services,Adaptations,TRAVIS PERKINS TRADING CO LIMITED,08/07/2013,138.82,,
Adult Care & Support,Access & Enablement,HOAP,Supplies & Services,Aids & Appliances,PRISM MEDICAL WESTHOLME DIVISION,12/07/2013,1029.02,,
Adult Care & Support,Access & Enablement,HOAP,Supplies & Services,Aids & Appliances,PATTERSON MEDICAL LTD,08/07/2013,745.68,,
Adult Care & Support,Access & Enablement,HOAP,Supplies & Services,Aids & Appliances,SIMPLYMED LTD,15/07/2013,250,,
Adult Care & Support,Access & Enablement,HOAP,Supplies & Services,Aids & Appliances,CENTROBED LIMITED,15/07/2013,-3450,,
Adult Care & Support,Access & Enablement,HOAP,Supplies & Services,Aids & Appliances,BERWICK CARE EQUIPMENT LTD,16/07/2013,113.85,,
Adult Care & Support,Access & Enablement,HOAP,Supplies & Services,Aids & Appliances,BERWICK CARE EQUIPMENT LTD,16/07/2013,113.85,,
Adult Care & Support,Access & Enablement,HOAP,Supplies & Services,Aids & Appliances,BERWICK CARE EQUIPMENT LTD,16/07/2013,113.85,,
Adult Care & Support,Access & Enablement,HOAP,Supplies & Services,Aids & Appliances,BERWICK CARE EQUIPMENT LTD,16/07/2013,113.85,,
Adult Care & Support,Access & Enablement,HOAP,Supplies & Services,Aids & Appliances,PRISM MEDICAL WESTHOLME DIVISION,17/07/2013,423.46,,
Adult Care & Support,Access & Enablement,HOAP,Supplies & Services,Equipment - Repair,PRISM MEDICAL WESTHOLME DIVISION,18/07/2013,139,,
Adult Care & Support,Access & Enablement,HOAP,Supplies & Services,Aids & Appliances,PRISM MEDICAL WESTHOLME DIVISION,16/07/2013,157.89,,
Adult Care & Support,Access & Enablement,HOBB,Supplies & Services,Equipment - Purchase,WEST MERCIA SUPPLIES Catalogue Supplies (None Utility),08/07/2013,213.79,,
Adult Care & Support,Access & Enablement,HOCN,Supplies & Services,Other Expenses,Autonomy,22/07/2013,820,,
Adult Care & Support,Access & Enablement,JCAB,Supplies & Services,Supportive Lodgings,REDACTED PERSONAL INFORMATION,01/07/2013,170,,
Adult Care & Support,Access & Enablement,JCAB,Supplies & Services,Supportive Lodgings,NEXT STEP CARE MANAGEMENT LTD,03/07/2013,227.2,,
Adult Care & Support,Access & Enablement,JCAB,Supplies & Services,Supportive Lodgings,NEXT STEP CARE MANAGEMENT LTD,03/07/2013,284,,
Adult Care & Support,Access & Enablement,JCAB,Supplies & Services,Supportive Lodgings,NEXT STEP CARE MANAGEMENT LTD,03/07/2013,128,,
Adult Care & Support,Access & Enablement,JCAB,Supplies & Services,Supportive Lodgings,ABC CARE LTD,03/07/2013,10857.93,,
Adult Care & Support,Access & Enablement,JCAB,Supplies & Services,Supportive Lodgings,HABINTEG HOUSING ASSOCIATION LTD,05/07/2013,200,,
Adult Care & Support,Access & Enablement,JCAB,Supplies & Services,Supportive Lodgings,THEO LANGSTON,29/07/2013,531.34,,
Adult Care & Support,Access & Enablement,JCAB,Supplies & Services,Supportive Lodgings,THEO LANGSTON,29/07/2013,5559.54,,
Adult Care & Support,Access & Enablement,JCAB,Supplies & Services,Supportive Lodgings,HABINTEG HOUSING ASSOCIATION LTD,17/07/2013,-200,,
Adult Care & Support,Access & Enablement,JCAB,Supplies & Services,Supportive Lodgings,THEO LANGSTON,26/07/2013,-464.96,,
Adult Care & Support,Access & Enablement,JCAB,Supplies & Services,Supportive Lodgings,NEXT STEP CARE MANAGEMENT LTD,31/07/2013,2250,,
Adult Care & Support,Access & Enablement,JCAB,Supplies & Services,Supportive Lodgings,THEO LANGSTON,31/07/2013,640.96,,
Adult Care & Support,Access & Enablement,JCAB,Supplies & Services,Supportive Lodgings,NEXT STEP CARE MANAGEMENT LTD,31/07/2013,4092.86,,
Adult Care & Support,Access & Enablement,JCAB,Supplies & Services,Supportive Lodgings,NEXT STEP CARE MANAGEMENT LTD,31/07/2013,2810.8,,
Adult Care & Support,Adult Social Care Commissioning,HCAJ,Supplies & Services,Other Grants (Expenses),PARKWOOD HEALTHCARE LTD,01/07/2013,48195,,
Adult Care & Support,Adult Social Care Commissioning,HHAB,Premises-Related Expenditure,Trade Refuse,PHS DATASHRED,15/07/2013,157.5,,
Adult Care & Support,Adult Social Care Commissioning,HJAA,Supplies & Services,Other Grants (Expenses),HEADWAY SHROPSHIRE,12/07/2013,3013,,
Adult Care & Support,Adult Social Care Commissioning,HJAA,Supplies & Services,Other Grants (Expenses),SHROPSHIRE PEER COUNSELLING & ADVOCACY  SERV,10/07/2013,6423.59,,
Adult Care & Support,Adult Social Care Commissioning,HJAA,Supplies & Services,Other Grants (Expenses),BRITISH RED CROSS SOC (SCOTLAND PRO UNIT,22/07/2013,5645.79,,
Adult Care & Support,Adult Social Care Commissioning,HJAA,Supplies & Services,Other Grants (Expenses),ALZHEIMERS SOCIETY,22/07/2013,1506.5,,
Adult Care & Support,Adult Social Care Commissioning,HJAF,Supplies & Services,Other Grants (Expenses),D H Homecare Limited,04/07/2013,282.18,,
Adult Care & Support,Adult Social Care Commissioning,HJAF,Supplies & Services,Other Grants (Expenses),IRONBRIDGE GORGE MUSEUM TRUST LTD,04/07/2013,2000,,
Adult Care & Support,Adult Social Care Commissioning,HJAF,Supplies & Services,Other Grants (Expenses),SHROPSHIRE COMMUNITY HEALTH NHS TRUST,04/07/2013,-16000,,
Adult Care & Support,Adult Social Care Commissioning,HJAF,Supplies & Services,Other Grants (Expenses),SHROPSHIRE COMMUNITY HEALTH NHS TRUST,24/07/2013,16000,,
Adult Care & Support,Adult Social Care Commissioning,HJAF,Supplies & Services,Other Grants (Expenses),SHROPSHIRE COMMUNITY HEALTH NHS TRUST,24/07/2013,16000,,
Adult Care & Support,Adult Social Care Commissioning,HLEA,Supplies & Services,Other Grants (Expenses),REDACTED PERSONAL INFORMATION,08/07/2013,135.58,,
Adult Care & Support,Adult Social Care Commissioning,HOBK,Supplies & Services,Respite Care,COVERAGE CARE SERVICES LTD,18/07/2013,4333.71,,
Adult Care & Support,Adult Social Care Commissioning,HOBK,Third Party Payments,Nursing Expenditure,COVERAGE CARE SERVICES LTD,16/07/2013,12889.01,,
Adult Care & Support,Adult Social Care Commissioning,HOBK,Third Party Payments,Nursing Expenditure,COVERAGE CARE SERVICES LTD,30/07/2013,-481.39,,
Adult Care & Support,Adult Social Care Commissioning,HOBK,Third Party Payments,Nursing Expenditure,COVERAGE CARE SERVICES LTD,30/07/2013,-1816.83,,
Adult Care & Support,Adult Social Care Commissioning,HOBK,Third Party Payments,Nursing Expenditure,COVERAGE CARE SERVICES LTD,30/07/2013,-13861.43,,
Adult Care & Support,Adult Social Care Commissioning,HOBK,Third Party Payments,Nursing Expenditure,COVERAGE CARE SERVICES LTD,18/07/2013,89732.29,,
Adult Care & Support,Adult Social Care Commissioning,HOBK,Third Party Payments,Nursing Expenditure,COVERAGE CARE SERVICES LTD,22/07/2013,13380.04,,
Adult Care & Support,Adult Social Care Commissioning,HOBL,Third Party Payments,Residential Expenditure,COVERAGE CARE SERVICES LTD,16/07/2013,61475.21,,
Adult Care & Support,Adult Social Care Commissioning,HOBP,Third Party Payments,Daycare Expenditure,COVERAGE CARE SERVICES LTD,16/07/2013,13549.87,,
Adult Care & Support,Adult Social Care Commissioning,HOBQ,Premises-Related Expenditure,General Rents,REDACTED PERSONAL INFORMATION,09/07/2013,7666.25,,
Adult Care & Support,Adult Social Care Commissioning,HOBQ,Premises-Related Expenditure,General Rents,REDACTED PERSONAL INFORMATION,09/07/2013,7666.25,,
Adult Care & Support,Adult Social Care Commissioning,HOBQ,Third Party Payments,Residential Expenditure,ACCORD HOUSING ASSOCIATION LIMITED,16/07/2013,56400.6,,
Adult Care & Support,Adult Social Care Commissioning,HOBR,Third Party Payments,Homecare Expenditure,COVERAGE CARE SERVICES LTD,16/07/2013,35581.66,,
Adult Care & Support,Adult Social Care Commissioning,HOBR,Third Party Payments,Homecare Expenditure,COVERAGE CARE SERVICES LTD,16/07/2013,5487.7,,
Adult Care & Support,Adult Social Care Commissioning,HOBR,Third Party Payments,Homecare Expenditure,COVERAGE CARE SERVICES LTD,16/07/2013,48532.72,,
Adult Care & Support,Adult Social Care Commissioning,HOBR,Third Party Payments,Homecare Expenditure,COVERAGE CARE SERVICES LTD,22/07/2013,-4594.03,,
Adult Care & Support,Adult Social Care Commissioning,HOBR,Third Party Payments,Homecare Expenditure,COVERAGE CARE SERVICES LTD,22/07/2013,1682.03,,
Adult Care & Support,Adult Social Care Commissioning,HOBR,Third Party Payments,Homecare Expenditure,ACCORD HOUSING ASSOCIATION LIMITED,16/07/2013,106673.29,,
Adult Care & Support,Adult Social Care Commissioning,HOBZ,Third Party Payments,Health Funded Services,DIMENSIONS (UK) LTD,05/07/2013,29997,,
Adult Care & Support,Adult Social Care Commissioning,HOBZ,Third Party Payments,Health Funded Services,DIMENSIONS (UK) LTD,05/07/2013,26242.5,,
Adult Care & Support,Adult Social Care Commissioning,HOBZ,Third Party Payments,Health Funded Services,DIMENSIONS (UK) LTD,05/07/2013,36051,,
Adult Care & Support,Adult Social Care Commissioning,HOBZ,Third Party Payments,Health Funded Services,DIMENSIONS (UK) LTD,05/07/2013,43261.2,,
Adult Care & Support,Adult Social Care Commissioning,HOCH,Third Party Payments,Residential Expenditure,COVERAGE CARE SERVICES LTD,29/07/2013,5428.92,,
Adult Care & Support,Adult Social Care Commissioning,HOCJ,Third Party Payments,Residential Expenditure,COVERAGE CARE SERVICES LTD,29/07/2013,5428.92,,
Adult Care & Support,Assessment & Case Management,HLAL,Third Party Payments,Health Funded Services,VISION HOMES ASSOCIATION,15/07/2013,49176.6,,
Adult Care & Support,Assessment & Case Management,HLCG,Third Party Payments,Nursing Expenditure,AIDS & ADAPTIONS LTD,05/07/2013,6272.71,,
Adult Care & Support,Assessment & Case Management,HLCG,Third Party Payments,Nursing Expenditure,AIDS & ADAPTIONS LTD,05/07/2013,322,,
Adult Care & Support,Assessment & Case Management,HLCG,Third Party Payments,Nursing Expenditure,ULTIMATE SYSTEMS,05/07/2013,3200,,
Adult Care & Support,Assessment & Case Management,HLCG,Third Party Payments,Nursing Expenditure,BROMFORD HOUSING ASSOCIATION LIMITED,29/07/2013,12756.83,,
Adult Care & Support,Assessment & Case Management,HLCG,Third Party Payments,Nursing Expenditure,CREATIVE SUPPORT LTD,19/07/2013,1170,,
Adult Care & Support,Assessment & Case Management,HLCG,Third Party Payments,Nursing Expenditure,CREATIVE SUPPORT LTD,19/07/2013,1092,,
Adult Care & Support,Assessment & Case Management,HLCG,Third Party Payments,Nursing Expenditure,CREATIVE SUPPORT LTD,19/07/2013,1092,,
Adult Care & Support,Assessment & Case Management,HLCG,Third Party Payments,Nursing Expenditure,CREATIVE SUPPORT LTD,19/07/2013,1092,,
Adult Care & Support,Assessment & Case Management,HLCG,Third Party Payments,Nursing Expenditure,CREATIVE SUPPORT LTD,19/07/2013,1092,,
Adult Care & Support,Assessment & Case Management,HLCG,Third Party Payments,Nursing Expenditure,CREATIVE SUPPORT LTD,19/07/2013,1092,,
Adult Care & Support,Assessment & Case Management,HLCG,Third Party Payments,Nursing Expenditure,CREATIVE SUPPORT LTD,19/07/2013,1092,,
Adult Care & Support,Assessment & Case Management,HLCG,Third Party Payments,Nursing Expenditure,CREATIVE SUPPORT LTD,19/07/2013,1092,,
Adult Care & Support,Assessment & Case Management,HLCG,Third Party Payments,Nursing Expenditure,CREATIVE SUPPORT LTD,19/07/2013,1092,,
Adult Care & Support,Assessment & Case Management,HLCG,Third Party Payments,Nursing Expenditure,CREATIVE SUPPORT LTD,19/07/2013,1092,,
Adult Care & Support,Assessment & Case Management,HLCG,Third Party Payments,Nursing Expenditure,CREATIVE SUPPORT LTD,19/07/2013,1092,,
Adult Care & Support,Assessment & Case Management,HLCG,Third Party Payments,Nursing Expenditure,BOURNVILLE VILLAGE TRUST,19/07/2013,1650,,
Adult Care & Support,Assessment & Case Management,HLCG,Third Party Payments,Nursing Expenditure,BOURNVILLE VILLAGE TRUST,19/07/2013,1785,,
Adult Care & Support,Assessment & Case Management,HLCG,Third Party Payments,Nursing Expenditure,BOURNVILLE VILLAGE TRUST,19/07/2013,1725,,
Adult Care & Support,Assessment & Case Management,HLCG,Third Party Payments,Nursing Expenditure,BOURNVILLE VILLAGE TRUST,19/07/2013,11377.81,,
Adult Care & Support,Assessment & Case Management,HLCG,Third Party Payments,Nursing Expenditure,BOURNVILLE VILLAGE TRUST,19/07/2013,11223.17,,
Adult Care & Support,Assessment & Case Management,HLCG,Third Party Payments,Nursing Expenditure,BOURNVILLE VILLAGE TRUST,19/07/2013,2735.04,,
Adult Care & Support,Assessment & Case Management,HLCG,Third Party Payments,Nursing Expenditure,THE WREKIN HOUSING TRUST,19/07/2013,3264.42,,
Adult Care & Support,Assessment & Case Management,HLCG,Third Party Payments,Nursing Expenditure,THE WREKIN HOUSING TRUST,19/07/2013,14590.28,,
Adult Care & Support,Assessment & Case Management,HLCJ,Third Party Payments,Joint Financing,SHROPSHIRE COUNCIL,05/07/2013,47364.94,,
Adult Care & Support,Assessment & Case Management,HLCJ,Third Party Payments,Joint Financing,SHROPSHIRE COUNCIL,05/07/2013,-6893,,
Adult Care & Support,Assessment & Case Management,HLCK,Employees,Agency Supply Costs,AMG NURSING & CARE SERVICES,17/07/2013,591.38,,
Adult Care & Support,Assessment & Case Management,HLCK,Employees,Agency Supply Costs,AMG NURSING & CARE SERVICES,17/07/2013,1330.56,,
Adult Care & Support,Assessment & Case Management,HLCK,Employees,Agency Supply Costs,AMG NURSING & CARE SERVICES,17/07/2013,163.88,,
Adult Care & Support,Assessment & Case Management,HLCK,Employees,Agency Supply Costs,PRIORITY CARE (SHROPSHIRE) LTD,17/07/2013,145.25,,
Adult Care & Support,Assessment & Case Management,HOAA,Supplies & Services,Telephones,ORANGE PCS LTD,03/07/2013,135,,
Adult Care & Support,Assessment & Case Management,HOBN,Transport-Related Expenditure,Transport,NSL t/a NSL CARE SERVICES,03/07/2013,100.87,,
Adult Care & Support,Assessment & Case Management,HOCR,Supplies & Services,Consultants Fees,GARNER MOORE LTD,23/07/2013,1500,,
Care & Support,Assessment & Case Management,HPAB,Supplies & Services,Computer Software (Maint),CM 2000 CARE MONITORING,22/07/2013, 968.83 ,,
Adult Care & Support,Assessment & Case Management,HPAB,Supplies & Services,Telecomms,BT GLOBAL SERVICES,15/07/2013,409.15,,
Adult Care & Support,Personalisation Support & Service Provision,HLBB,Supplies & Services,Laundry & Towel Hire,PHS ALL CLEAR,15/07/2013,490.37,,
Adult Care & Support,Personalisation Support & Service Provision,HLBC,Supplies & Services,Provisions,BIKOLD,15/07/2013,108.16,,
Adult Care & Support,Personalisation Support & Service Provision,HLBC,Supplies & Services,Provisions,BIKOLD,15/07/2013,100.44,,
Adult Care & Support,Personalisation Support & Service Provision,HLBC,Supplies & Services,Chemicals/Cleaning Products,WEST MERCIA SUPPLIES Catalogue Supplies (None Utility),16/07/2013,121.94,,
Adult Care & Support,Personalisation Support & Service Provision,HLBC,Supplies & Services,Chemicals/Cleaning Products,WEST MERCIA SUPPLIES Catalogue Supplies (None Utility),16/07/2013,113.31,,
Adult Care & Support,Personalisation Support & Service Provision,HLBC,Supplies & Services,Provisions,BIKOLD,31/07/2013,143.32,,
Adult Care & Support,Personalisation Support & Service Provision,HLBC,Supplies & Services,Photocopying,WEST MERCIA SUPPLIES Catalogue Supplies (None Utility),03/07/2013,146.35,,
Adult Care & Support,Personalisation Support & Service Provision,HLBC,Supplies & Services,Laundry & Towel Hire,PHS GROUP LTD,22/07/2013,411.6,,
Adult Care & Support,Personalisation Support & Service Provision,HLDB,Supplies & Services,Items For Resale,TELFORD TIMBER SUPPLIES,02/07/2013,200,,
Adult Care & Support,Personalisation Support & Service Provision,HLDB,Supplies & Services,Items For Resale,TELFORD TIMBER SUPPLIES,02/07/2013,300,,
Adult Care & Support,Personalisation Support & Service Provision,HLDB,Supplies & Services,Equipment - Purchase,Ra'alloy Ramps Ltd,03/07/2013,365,,
Adult Care & Support,Personalisation Support & Service Provision,HLEB,Employees,Agency Supply Costs,AMG NURSING & CARE SERVICES,03/07/2013,856.98,,
Adult Care & Support,Personalisation Support & Service Provision,HLEB,Employees,Agency Supply Costs,AMG NURSING & CARE SERVICES,03/07/2013,320.22,,
Adult Care & Support,Personalisation Support & Service Provision,HLEB,Employees,Agency Supply Costs,AMG NURSING & CARE SERVICES,03/07/2013,737.85,,
Adult Care & Support,Personalisation Support & Service Provision,HLEB,Employees,Agency Supply Costs,AMG NURSING & CARE SERVICES,30/07/2013,1034.34,,
Adult Care & Support,Personalisation Support & Service Provision,HLEB,Employees,Agency Supply Costs,AMG NURSING & CARE SERVICES,30/07/2013,777.92,,
Adult Care & Support,Personalisation Support & Service Provision,HLEB,Employees,Agency Supply Costs,AMG NURSING & CARE SERVICES,30/07/2013,1258.81,,
Adult Care & Support,Personalisation Support & Service Provision,HLEB,Employees,Other Employee Costs,AMG NURSING & CARE SERVICES,30/07/2013,724.29,,
Adult Care & Support,Personalisation Support & Service Provision,HLEB,Supplies & Services,Equipment - Purchase,THE CONSORTIUM FOR PURCHASING & DISTRIBUTION LTD T/A WEST MERCIA SUPPLIES,30/07/2013,643.92,,
Adult Care & Support,Personalisation Support & Service Provision,HLEC,Capital Financing Costs,Leased Equipment,LEX AUTOLEASE LTD,03/07/2013,500.14,,
Adult Care & Support,Personalisation Support & Service Provision,HLEC,Capital Financing Costs,Leased Equipment,RICOH UK LIMITED,26/07/2013,324.03,,
Adult Care & Support,Personalisation Support & Service Provision,HLEC,Employees,Agency Supply Costs,AMG NURSING & CARE SERVICES,26/07/2013,225.02,,
Adult Care & Support,Personalisation Support & Service Provision,HLEC,Employees,Agency Supply Costs,AMG NURSING & CARE SERVICES,26/07/2013,228.75,,
Adult Care & Support,Personalisation Support & Service Provision,HLEC,Employees,Agency Supply Costs,AMG NURSING & CARE SERVICES,26/07/2013,443.33,,
Adult Care & Support,Personalisation Support & Service Provision,HLEC,Premises-Related Expenditure,Clean Mats & Toilet Requisites,CARESHOP LIMITED,03/07/2013,436.37,,
Adult Care & Support,Personalisation Support & Service Provision,HLEC,Supplies & Services,Protective Clothing,CARESHOP LIMITED,26/07/2013,123.03,,
Adult Care & Support,Personalisation Support & Service Provision,HLEE,Premises-Related Expenditure,Gas,NPOWER,02/07/2013,226.87,,
Adult Care & Support,Personalisation Support & Service Provision,HLEE,Premises-Related Expenditure,Gas,NPOWER LIMITED,02/07/2013,226.87,,
Adult Care & Support,Personalisation Support & Service Provision,HLEE,Premises-Related Expenditure,Gas,NPOWER,08/07/2013,-226.87,,
Adult Care & Support,Personalisation Support & Service Provision,HLEE,Supplies & Services,Equipment - Purchase,ORANGE PCS LTD,03/07/2013,325,,
Adult Care & Support,Personalisation Support & Service Provision,HLEE,Supplies & Services,Telephones,BRITISH TELECOMMUNICATIONS PLC,30/07/2013,638.76,,
Adult Care & Support,Personalisation Support & Service Provision,HLEG,Supplies & Services,Respite Care,REDACTED PERSONAL INFORMATION,04/07/2013,345.61,,
Adult Care & Support,Personalisation Support & Service Provision,HMAA,Supplies & Services,Service Contracts,SRCL LTD,11/07/2013,750.87,,
Adult Care & Support,Personalisation Support & Service Provision,HMAC,Premises-Related Expenditure,Hire Of Rooms,THE SALVATION ARMY,11/07/2013,120,,
Adult Care & Support,Personalisation Support & Service Provision,HMBG,Supplies & Services,Other Grants (Expenses),POHWER,12/07/2013,3259.11,,
Adult Care & Support,Personalisation Support & Service Provision,HMBG,Supplies & Services,Other Grants (Expenses),POHWER,19/07/2013,8375.75,,
Adult Care & Support,Personalisation Support & Service Provision,HMBJ,Supplies & Services,Furniture - Purchase,CHAIRS & SPARES,15/07/2013,140,,
Adult Care & Support,Personalisation Support & Service Provision,HMBJ,Third Party Payments,Residential Expenditure,D B ROBERTS,11/07/2013,199.99,,
Adult Care & Support,Personalisation Support & Service Provision,HMBJ,Third Party Payments,Residential Expenditure,D B ROBERTS,11/07/2013,199.99,,
Adult Care & Support,Personalisation Support & Service Provision,HOCP,Supplies & Services,Subscriptions,QUICKCALC LTD,30/07/2013,143.96,,
Children's Safeguarding,Child Protection & Assessment,JMAB,Transport-Related Expenditure,Taxi Costs,CORKYS CARS,11/07/2013,760,,
Children's Safeguarding,Child Protection & Assessment,JMAD,Supplies & Services,Section 17 Childrens Act,REDACTED PERSONAL INFORMATION,01/07/2013,125,,
Children's Safeguarding,Child Protection & Assessment,JMAD,Supplies & Services,Doctors Fees,ALPHA BIOLABORATORIES LIMITED,09/07/2013,420,,
Children's Safeguarding,Child Protection & Assessment,JMAD,Supplies & Services,Section 17 Childrens Act,REDACTED PERSONAL INFORMATION,08/07/2013,125,,
Children's Safeguarding,Child Protection & Assessment,JMAD,Supplies & Services,Section 17 Childrens Act,REDACTED PERSONAL INFORMATION,15/07/2013,125,,
Children's Safeguarding,Child Protection & Assessment,JMAD,Supplies & Services,Section 17 Childrens Act,REDACTED PERSONAL INFORMATION,29/07/2013,125,,
Children's Safeguarding,Child Protection & Assessment,JMAD,Supplies & Services,Section 17 Childrens Act,REDACTED PERSONAL INFORMATION,22/07/2013,125,,
Children's Safeguarding,Child Protection & Assessment,JMAD,Supplies & Services,Furniture - Purchase,DAWLEY BARGAIN CENTRE,15/07/2013,110,,
Children's Safeguarding,Child Protection & Assessment,JMAD,Third Party Payments,Childminders,CHIPMUNKS NURSERY,09/07/2013,157.48,,
Children's Safeguarding,Child Protection & Assessment,JMAD,Third Party Payments,Childminders,WOODEN TOPS DAY NURSERY A/C 2862358,26/07/2013,392.76,,
Children's Safeguarding,Child Protection & Assessment,JMAD,Third Party Payments,Childminders,PARKLANDS DAY NURSERY,15/07/2013,156,,
Children's Safeguarding,Child Protection & Assessment,JMAE,Supplies & Services,Other Services,SW Expertise,18/07/2013,120,,
Children's Safeguarding,Child Protection & Assessment,JMAE,Supplies & Services,Other Services,SW Expertise,18/07/2013,1377,,
Children's Safeguarding,Child Protection & Assessment,JMAE,Supplies & Services,Other Services,SW Expertise,18/07/2013,2013,,
Children's Safeguarding,Child Protection & Assessment,JMAE,Supplies & Services,Other Services,SW Expertise,18/07/2013,355.45,,
Children's Safeguarding,Child Protection & Assessment,JMAE,Supplies & Services,Other Services,SW Expertise,18/07/2013,1625.5,,
Children's Safeguarding,Child Protection & Assessment,JMAE,Supplies & Services,Other Services,MEDIATION WORKS,29/07/2013,833,,
Children's Safeguarding,Child Protection & Assessment,JMAE,Supplies & Services,Other Services,LIVING SPRINGS FAMILY CENTRE,29/07/2013,16678.81,,
Children's Safeguarding,Child Protection & Assessment,JMAE,Supplies & Services,Other Services,LIVING SPRINGS FAMILY CENTRE,29/07/2013,7239,,
Children's Safeguarding,Child Protection & Assessment,JMAE,Supplies & Services,Other Services,VOICE,16/07/2013,259.2,,
Children's Safeguarding,Child Protection & Assessment,JMAE,Supplies & Services,Other Services,S STAFFORDSHIRE & SHROPSHIRE HEALTHCARE,25/07/2013,351,,
Children's Safeguarding,Child Protection & Assessment,JMAE,Supplies & Services,Other Services,NEWSTART NETWORKS CIC,26/07/2013,2760,,
Children's Safeguarding,Child Protection & Assessment,JMAE,Supplies & Services,Other Services,SW Expertise,26/07/2013,2013,,
Children's Safeguarding,Child Protection & Assessment,JMAE,Supplies & Services,Other Services,SW Expertise,26/07/2013,2013,,
Children's Safeguarding,Child Protection & Assessment,JMAE,Supplies & Services,Other Services,FIRST BASE (CREATIVE THERAPIES) LTD,26/07/2013,350,,
Children's Safeguarding,Child Protection & Assessment,JMAE,Supplies & Services,Other Services,ELMHURST PSYCHOLOGY LTD,26/07/2013,1988,,
Children's Safeguarding,Child Protection & Assessment,JMAE,Supplies & Services,Other Services,Psyben Limited,26/07/2013,1322.63,,
Children's Safeguarding,Child Protection & Assessment,JMAE,Supplies & Services,Other Services,SEMAPHORE,26/07/2013,1750,,
Children's Safeguarding,Child Protection & Assessment,JMAE,Supplies & Services,Other Services,LIVING SPRINGS FAMILY CENTRE,26/07/2013,7139.34,,
Children's Safeguarding,Child Protection & Assessment,JMAE,Supplies & Services,Other Services,LIVING SPRINGS FAMILY CENTRE,31/07/2013,13135.6,,
Children's Safeguarding,Child Protection & Assessment,JMAE,Supplies & Services,Other Services,LIVING SPRINGS FAMILY CENTRE,31/07/2013,12627.59,,
Children's Safeguarding,Child Protection & Assessment,JMAE,Supplies & Services,Other Services,ELMHURST PSYCHOLOGY LTD,31/07/2013,1078.12,,
Children's Safeguarding,Child Protection & Assessment,JMAL,Supplies & Services,Mobile Phones,ORANGE PCS LTD,08/07/2013,135,,
Children's Safeguarding,Child Protection & Assessment,JMAL,Supplies & Services,Other Services,NESTOR PRIMECARE SERVICES LTD T/A ALLIED HEALTHCARE,15/07/2013,620.3,,
Children's Safeguarding,Child Protection & Assessment,JMAL,Supplies & Services,Other Services,NESTOR PRIMECARE SERVICES LTD T/A ALLIED HEALTHCARE,15/07/2013,544.47,,
Children's Safeguarding,Child Protection & Assessment,JMAL,Supplies & Services,Other Services,NESTOR PRIMECARE SERVICES LTD T/A ALLIED HEALTHCARE,17/07/2013,771.39,,
Children's Safeguarding,Child Protection & Assessment,JMAL,Supplies & Services,Other Services,NESTOR PRIMECARE SERVICES LTD T/A ALLIED HEALTHCARE,17/07/2013,626.8,,
Children's Safeguarding,Child Protection & Assessment,JMAL,Supplies & Services,Doctors Fees,ELMHURST PSYCHOLOGY LTD,18/07/2013,2661,,
Children's Safeguarding,Child Protection & Assessment,JMAL,Supplies & Services,CL - External Accommodation,Madeley Lettings,26/07/2013,525,,
Children's Safeguarding,Child Protection & Assessment,JMAL,Third Party Payments,Childminders,ABC Day Nursery - Hadley,08/07/2013,300,,
Children's Safeguarding,Child Protection & Assessment,JMAL,Third Party Payments,Childminders,WOODVILLE DAY NURSERY,26/07/2013,498,,
Children's Safeguarding,Child Protection & Assessment,JSAB,Supplies & Services,Section 17 Childrens Act,DAWLEY BARGAIN CENTRE,31/07/2013,135,,
Children's Safeguarding,Child Protection & Assessment,JSAB,Third Party Payments,Interpreters Fees,PEARL LINGUISTICS LTD,15/07/2013,252.8,,
Children's Safeguarding,Children in Care & Fostering,HMAE,Employees,Professional Subs,ESSA MIDLANDS REGION TRAINING CONSORTIUM,04/07/2013,400,,
Children's Safeguarding,Children in Care & Fostering,JMAF,Supplies & Services,Supportive Lodgings,IMPACTING LIVES LIMITED,15/07/2013,227.2,,
Children's Safeguarding,Children in Care & Fostering,JMAF,Supplies & Services,Section 17 Childrens Act,EXPOTEL HOTEL RESERVATIONS LIMITED,16/07/2013,193.7,,
Children's Safeguarding,Children in Care & Fostering,JMAF,Supplies & Services,Mobile Phones,ORANGE PCS LTD,26/07/2013,135,,
Children's Safeguarding,Children in Care & Fostering,JMAF,Third Party Payments,Social Care External Contact,CONNECT CONTACT CENTRES,15/07/2013,240,,
Children's Safeguarding,Children in Care & Fostering,JMAF,Transport-Related Expenditure,Taxi Costs,DIAMOND CARS (TELFORD) LTD,22/07/2013,175,,
Children's Safeguarding,Children in Care & Fostering,JPAD,Third Party Payments,External Foster Care Payments,CORE ASSETS FOSTERING LIMITED,03/07/2013,2950.74,,
Children's Safeguarding,Children in Care & Fostering,JPAD,Third Party Payments,External Foster Care Payments,FOSTERING PRIORY,03/07/2013,3609.29,,
Children's Safeguarding,Children in Care & Fostering,JPAD,Third Party Payments,External Foster Care Payments,PROGRESS CHILDREN'S SERVICES LTD,03/07/2013,3682.8,,
Children's Safeguarding,Children in Care & Fostering,JPAD,Third Party Payments,External Foster Care Payments,PROGRESS CHILDREN'S SERVICES LTD,03/07/2013,3564,,
Children's Safeguarding,Children in Care & Fostering,JPAD,Third Party Payments,External Foster Care Payments,PROGRESS CHILDREN'S SERVICES LTD,03/07/2013,4406.34,,
Children's Safeguarding,Children in Care & Fostering,JPAD,Third Party Payments,External Foster Care Payments,PROGRESS CHILDREN'S SERVICES LTD,03/07/2013,4264.2,,
Children's Safeguarding,Children in Care & Fostering,JPAD,Third Party Payments,External Foster Care Payments,FREEDOM FOSTERING,04/07/2013,600,,
Children's Safeguarding,Children in Care & Fostering,JPAD,Third Party Payments,External Foster Care Payments,INDEPENDENT CHILDCARE GROUP OF SCHOOLS L,04/07/2013,2571.3,,
Children's Safeguarding,Children in Care & Fostering,JPAD,Third Party Payments,External Foster Care Payments,CORE ASSETS FOSTERING LIMITED,05/07/2013,3160.26,,
Children's Safeguarding,Children in Care & Fostering,JPAD,Third Party Payments,External Foster Care Payments,PARK FOSTER CARE,12/07/2013,720,,
Children's Safeguarding,Children in Care & Fostering,JPAD,Third Party Payments,External Foster Care Payments,HILLCREST CARE LTD,08/07/2013,3236.79,,
Children's Safeguarding,Children in Care & Fostering,JPAD,Third Party Payments,External Foster Care Payments,HILLCREST CARE LTD,08/07/2013,3271.8,,
Children's Safeguarding,Children in Care & Fostering,JPAD,Third Party Payments,External Foster Care Payments,HILLCREST CARE LTD,08/07/2013,3139.67,,
Children's Safeguarding,Children in Care & Fostering,JPAD,Third Party Payments,External Foster Care Payments,HILLCREST CARE LTD,08/07/2013,2978.57,,
Children's Safeguarding,Children in Care & Fostering,JPAD,Third Party Payments,External Foster Care Payments,HILLCREST CARE LTD,08/07/2013,3139.67,,
Children's Safeguarding,Children in Care & Fostering,JPAD,Third Party Payments,External Foster Care Payments,HILLCREST CARE LTD,08/07/2013,2951.79,,
Children's Safeguarding,Children in Care & Fostering,JPAD,Third Party Payments,External Foster Care Payments,HILLCREST CARE LTD,08/07/2013,2951.79,,
Children's Safeguarding,Children in Care & Fostering,JPAD,Third Party Payments,External Foster Care Payments,HILLCREST CARE LTD,08/07/2013,3172.07,,
Children's Safeguarding,Children in Care & Fostering,JPAD,Third Party Payments,External Foster Care Payments,HILLCREST CARE LTD,08/07/2013,3107.14,,
Children's Safeguarding,Children in Care & Fostering,JPAD,Third Party Payments,External Foster Care Payments,HILLCREST CARE LTD,08/07/2013,2978.57,,
Children's Safeguarding,Children in Care & Fostering,JPAD,Third Party Payments,External Foster Care Payments,HILLCREST CARE LTD,08/07/2013,2863.24,,
Children's Safeguarding,Children in Care & Fostering,JPAD,Third Party Payments,External Foster Care Payments,HILLCREST CARE LTD,08/07/2013,2838,,
Children's Safeguarding,Children in Care & Fostering,JPAD,Third Party Payments,Residential Expenditure,HILLCREST CARE LTD,08/07/2013,3139.67,,
Children's Safeguarding,Children in Care & Fostering,JPAD,Third Party Payments,External Foster Care Payments,HILLCREST CARE LTD,08/07/2013,2678.57,,
Children's Safeguarding,Children in Care & Fostering,JPAD,Third Party Payments,External Foster Care Payments,HILLCREST CARE LTD,08/07/2013,3339,,
Children's Safeguarding,Children in Care & Fostering,JPAD,Third Party Payments,External Foster Care Payments,HILLCREST CARE LTD,08/07/2013,3236.79,,
Children's Safeguarding,Children in Care & Fostering,JPAD,Third Party Payments,External Foster Care Payments,HILLCREST CARE LTD,08/07/2013,3236.79,,
Children's Safeguarding,Children in Care & Fostering,JPAD,Third Party Payments,External Foster Care Payments,HILLCREST CARE LTD,08/07/2013,3107.14,,
Children's Safeguarding,Children in Care & Fostering,JPAD,Third Party Payments,External Foster Care Payments,FAMILIES@FAMILYCARE,08/07/2013,4583.35,,
Children's Safeguarding,Children in Care & Fostering,JPAD,Third Party Payments,External Foster Care Payments,PARK FOSTER CARE,08/07/2013,6428.7,,
Children's Safeguarding,Children in Care & Fostering,JPAD,Third Party Payments,External Foster Care Payments,HILLCREST CARE LTD,08/07/2013,3407.14,,
Children's Safeguarding,Children in Care & Fostering,JPAD,Third Party Payments,External Foster Care Payments,HILLCREST CARE LTD,12/07/2013,340.71,,
Children's Safeguarding,Children in Care & Fostering,JPAD,Third Party Payments,External Foster Care Payments,FREEDOM FOSTERING,12/07/2013,1470.86,,
Children's Safeguarding,Children in Care & Fostering,JPAD,Third Party Payments,External Foster Care Payments,HILLCREST CARE LTD,12/07/2013,3139.67,,
Children's Safeguarding,Children in Care & Fostering,JPAD,Third Party Payments,External Foster Care Payments,FREEDOM FOSTERING,12/07/2013,1323.77,,
Children's Safeguarding,Children in Care & Fostering,JPAD,Third Party Payments,External Foster Care Payments,FREEDOM FOSTERING,12/07/2013,1323.77,,
Children's Safeguarding,Children in Care & Fostering,JPAD,Third Party Payments,External Foster Care Payments,FOSTERING PRIORY,12/07/2013,1727.14,,
Children's Safeguarding,Children in Care & Fostering,JPAD,Third Party Payments,External Foster Care Payments,NEXUS FOSTERING,10/07/2013,3693,,
Children's Safeguarding,Children in Care & Fostering,JPAD,Third Party Payments,External Foster Care Payments,PARK FOSTER CARE,08/07/2013,3309.6,,
Children's Safeguarding,Children in Care & Fostering,JPAD,Third Party Payments,External Foster Care Payments,CORE ASSETS FOSTERING LIMITED,08/07/2013,228.2,,
Children's Safeguarding,Children in Care & Fostering,JPAD,Third Party Payments,External Foster Care Payments,CORE ASSETS FOSTERING LIMITED,08/07/2013,3956.4,,
Children's Safeguarding,Children in Care & Fostering,JPAD,Third Party Payments,External Foster Care Payments,SWIIS FOSTER CARE LTD,09/07/2013,895,,
Children's Safeguarding,Children in Care & Fostering,JPAD,Third Party Payments,External Foster Care Payments,NEXUS FOSTERING,09/07/2013,3816.1,,
Children's Safeguarding,Children in Care & Fostering,JPAD,Third Party Payments,Residential Expenditure,CORE ASSETS FOSTERING LIMITED,05/07/2013,5040,,
Children's Safeguarding,Children in Care & Fostering,JPAD,Third Party Payments,External Foster Care Payments,CORE ASSETS FOSTERING LIMITED,05/07/2013,3320.31,,
Children's Safeguarding,Children in Care & Fostering,JPAD,Third Party Payments,External Foster Care Payments,FREEDOM FOSTERING,05/07/2013,967.32,,
Children's Safeguarding,Children in Care & Fostering,JPAD,Third Party Payments,External Foster Care Payments,CORE ASSETS FOSTERING LIMITED,05/07/2013,3537.1,,
Children's Safeguarding,Children in Care & Fostering,JPAD,Third Party Payments,External Foster Care Payments,HILLCREST CARE LTD,05/07/2013,1224.14,,
Children's Safeguarding,Children in Care & Fostering,JPAD,Third Party Payments,External Foster Care Payments,CORE ASSETS FOSTERING LIMITED,26/07/2013,-8184.31,,
Children's Safeguarding,Children in Care & Fostering,JPAD,Third Party Payments,External Foster Care Payments,CORE ASSETS FOSTERING LIMITED,26/07/2013,-3423,,
Children's Safeguarding,Children in Care & Fostering,JPAD,Third Party Payments,External Foster Care Payments,CORE ASSETS FOSTERING LIMITED,26/07/2013,-3345.44,,
Children's Safeguarding,Children in Care & Fostering,JPAD,Third Party Payments,External Foster Care Payments,By The Bridge,26/07/2013,-1094.96,,
Children's Safeguarding,Children in Care & Fostering,JPAD,Third Party Payments,External Foster Care Payments,HILLCREST CARE LTD,24/07/2013,3238.41,,
Children's Safeguarding,Children in Care & Fostering,JPAD,Third Party Payments,External Foster Care Payments,HILLCREST CARE LTD,24/07/2013,2493.77,,
Children's Safeguarding,Children in Care & Fostering,JPAD,Third Party Payments,External Foster Care Payments,REGIONAL FOSTER PLACEMENTS,16/07/2013,3338.7,,
Children's Safeguarding,Children in Care & Fostering,JPAD,Third Party Payments,External Foster Care Payments,THE ADOLESCENT & CHILDRENS TRUST,16/07/2013,2907,,
Children's Safeguarding,Children in Care & Fostering,JPAD,Third Party Payments,External Foster Care Payments,HILLCREST CARE LTD,24/07/2013,3346.36,,
Children's Safeguarding,Children in Care & Fostering,JPAD,Third Party Payments,External Foster Care Payments,RED KITE FOSTERING,17/07/2013,5078.57,,
Children's Safeguarding,Children in Care & Fostering,JPAD,Third Party Payments,External Foster Care Payments,FOSTERING SOLUTIONS LTD,17/07/2013,3376.74,,
Children's Safeguarding,Children in Care & Fostering,JPAD,Third Party Payments,External Foster Care Payments,SWIIS FOSTER CARE LTD,17/07/2013,895,,
Children's Safeguarding,Children in Care & Fostering,JPAD,Third Party Payments,External Foster Care Payments,HILLCREST CARE LTD,18/07/2013,3520.71,,
Children's Safeguarding,Children in Care & Fostering,JPAD,Third Party Payments,External Foster Care Payments,HILLCREST CARE LTD,18/07/2013,3407.14,,
Children's Safeguarding,Children in Care & Fostering,JPAD,Third Party Payments,External Foster Care Payments,By The Bridge,30/07/2013,4379.86,,
Children's Safeguarding,Children in Care & Fostering,JPAD,Third Party Payments,External Foster Care Payments,By The Bridge,30/07/2013,4238.57,,
Children's Safeguarding,Children in Care & Fostering,JPAD,Third Party Payments,External Foster Care Payments,By The Bridge,30/07/2013,4379.86,,
Children's Safeguarding,Children in Care & Fostering,JPAD,Third Party Payments,External Foster Care Payments,INDEPENDENT CHILDCARE GROUP OF SCHOOLS L,31/07/2013,3361.64,,
Children's Safeguarding,Children in Care & Fostering,JPAD,Third Party Payments,External Foster Care Payments,CORE ASSETS FOSTERING LIMITED,22/07/2013,3537.1,,
Children's Safeguarding,Children in Care & Fostering,JPAD,Third Party Payments,External Foster Care Payments,CORE ASSETS FOSTERING LIMITED,22/07/2013,3537.1,,
Children's Safeguarding,Children in Care & Fostering,JPAD,Third Party Payments,External Foster Care Payments,CORE ASSETS FOSTERING LIMITED,22/07/2013,3445.32,,
Children's Safeguarding,Children in Care & Fostering,JPAD,Third Party Payments,External Foster Care Payments,CORE ASSETS FOSTERING LIMITED,22/07/2013,3537.1,,
Children's Safeguarding,Children in Care & Fostering,JPAD,Third Party Payments,External Foster Care Payments,CORE ASSETS FOSTERING LIMITED,22/07/2013,3049.1,,
Children's Safeguarding,Children in Care & Fostering,JPAD,Third Party Payments,External Foster Care Payments,Compass Childrens Services,22/07/2013,2178,,
Children's Safeguarding,Children in Care & Fostering,JPAD,Third Party Payments,External Foster Care Payments,Compass Childrens Services,22/07/2013,408,,
Children's Safeguarding,Children in Care & Fostering,JPAD,Third Party Payments,External Foster Care Payments,NATIONAL FOSTERING AGENCY,26/07/2013,2978.7,,
Children's Safeguarding,Children in Care & Fostering,JPAD,Third Party Payments,External Foster Care Payments,CLIFFORD HOUSE FOSTERING LTD,23/07/2013,3412,,
Children's Safeguarding,Children in Care & Fostering,JPAD,Third Party Payments,External Foster Care Payments,NATIONAL FOSTERING AGENCY,26/07/2013,2978.7,,
Children's Safeguarding,Children in Care & Fostering,JPAD,Third Party Payments,External Foster Care Payments,NATIONAL FOSTERING AGENCY,26/07/2013,3271.8,,
Children's Safeguarding,Children in Care & Fostering,JPAD,Third Party Payments,External Foster Care Payments,NATIONAL FOSTERING AGENCY,26/07/2013,3271.8,,
Children's Safeguarding,Children in Care & Fostering,JPAD,Third Party Payments,External Foster Care Payments,NATIONAL FOSTERING AGENCY,26/07/2013,3204.9,,
Children's Safeguarding,Children in Care & Fostering,JPAD,Third Party Payments,External Foster Care Payments,NATIONAL FOSTERING AGENCY,26/07/2013,3129,,
Children's Safeguarding,Children in Care & Fostering,JPAD,Third Party Payments,External Foster Care Payments,NATIONAL FOSTERING AGENCY,26/07/2013,2978.7,,
Children's Safeguarding,Children in Care & Fostering,JPAD,Third Party Payments,External Foster Care Payments,NATIONAL FOSTERING AGENCY,26/07/2013,2978.7,,
Children's Safeguarding,Children in Care & Fostering,JPAD,Third Party Payments,External Foster Care Payments,FREEDOM FOSTERING,26/07/2013,678.85,,
Children's Safeguarding,Children in Care & Fostering,JPAD,Third Party Payments,External Foster Care Payments,NATIONAL FOSTERING AGENCY,26/07/2013,3073.2,,
Children's Safeguarding,Children in Care & Fostering,JPAD,Third Party Payments,External Foster Care Payments,NATIONAL FOSTERING AGENCY,26/07/2013,2978.7,,
Children's Safeguarding,Children in Care & Fostering,JPAD,Third Party Payments,External Foster Care Payments,NATIONAL FOSTERING AGENCY,26/07/2013,3065.1,,
Children's Safeguarding,Children in Care & Fostering,JPAD,Third Party Payments,External Foster Care Payments,FREEDOM FOSTERING,26/07/2013,2929.04,,
Children's Safeguarding,Children in Care & Fostering,JPAD,Third Party Payments,External Foster Care Payments,PHOENIX FOSTERING,26/07/2013,5900,,
Children's Safeguarding,Children in Care & Fostering,JPAD,Third Party Payments,External Foster Care Payments,NATIONAL FOSTERING AGENCY,26/07/2013,1377.88,,
Children's Safeguarding,Children in Care & Fostering,JPAD,Third Party Payments,External Foster Care Payments,NATIONAL FOSTERING AGENCY,26/07/2013,1668.8,,
Children's Safeguarding,Children in Care & Fostering,JPAD,Third Party Payments,External Foster Care Payments,NATIONAL FOSTERING AGENCY,26/07/2013,3129,,
Children's Safeguarding,Children in Care & Fostering,JPAD,Third Party Payments,External Foster Care Payments,FREEDOM FOSTERING,26/07/2013,610.97,,
Children's Safeguarding,Children in Care & Fostering,JPAD,Third Party Payments,External Foster Care Payments,FREEDOM FOSTERING,26/07/2013,2977.92,,
Children's Safeguarding,Children in Care & Fostering,JPAD,Third Party Payments,External Foster Care Payments,PHOENIX FOSTERING,26/07/2013,5900,,
Children's Safeguarding,Children in Care & Fostering,JPAD,Third Party Payments,External Foster Care Payments,PHOENIX FOSTERING,26/07/2013,5310,,
Children's Safeguarding,Children in Care & Fostering,JPAD,Third Party Payments,External Foster Care Payments,FREEDOM FOSTERING,26/07/2013,610.97,,
Children's Safeguarding,Children in Care & Fostering,JPAD,Third Party Payments,External Foster Care Payments,Childcare Bureau,11/07/2013,4130.75,,
Children's Safeguarding,Children in Care & Fostering,JPAD,Third Party Payments,External Foster Care Payments,By The Bridge,11/07/2013,4738.57,,
Children's Safeguarding,Children in Care & Fostering,JPAD,Third Party Payments,Residential Expenditure,MGM CARE SERVICES LTD,15/07/2013,11539.5,,
Children's Safeguarding,Children in Care & Fostering,JPAD,Third Party Payments,External Foster Care Payments,PHOENIX FOSTERING,23/07/2013,5310,,
Children's Safeguarding,Children in Care & Fostering,JPAD,Third Party Payments,External Foster Care Payments,HILLCREST CARE LTD,23/07/2013,2576.9,,
Children's Safeguarding,Children in Care & Fostering,JPAD,Third Party Payments,External Foster Care Payments,CLIFFORD HOUSE FOSTERING LTD,23/07/2013,3412,,
Children's Safeguarding,Children in Care & Fostering,JPAD,Third Party Payments,External Foster Care Payments,CORE ASSETS FOSTERING LIMITED,23/07/2013,3265.6,,
Children's Safeguarding,Children in Care & Fostering,JPAD,Third Party Payments,External Foster Care Payments,HILLCREST CARE LTD,23/07/2013,3238.41,,
Children's Safeguarding,Children in Care & Fostering,JPAD,Third Party Payments,External Foster Care Payments,HILLCREST CARE LTD,09/07/2013,3139.67,,
Children's Safeguarding,Children in Care & Fostering,JPAD,Third Party Payments,External Foster Care Payments,HILLCREST CARE LTD,09/07/2013,3244.33,,
Children's Safeguarding,Children in Care & Fostering,JPAD,Third Party Payments,External Foster Care Payments,PARK FOSTER CARE,08/07/2013,3309.6,,
Children's Safeguarding,Children in Care & Fostering,JPAD,Third Party Payments,External Foster Care Payments,PARK FOSTER CARE,08/07/2013,6000,,
Children's Safeguarding,Children in Care & Fostering,JPAD,Third Party Payments,External Foster Care Payments,INDEPENDENT CHILDCARE GROUP OF SCHOOLS L,01/07/2013,3361.64,,
Children's Safeguarding,Children in Care & Fostering,JPAM,Premises-Related Expenditure,Contract Cleaning,FRESH PURPOSE CARE,08/07/2013,137.5,,
Children's Safeguarding,Children in Care & Fostering,JPAM,Supplies & Services,Subscriptions,FOSTERING NETWORK,03/07/2013,690,,
Children's Safeguarding,Children in Care & Fostering,JPAM,Supplies & Services,Subscriptions,FOSTERING NETWORK,12/07/2013,2702,,
Children's Safeguarding,Children in Care & Fostering,JPAM,Third Party Payments,Childminders,ABC Day Nursery - Hadley,08/07/2013,177.52,,
Children's Safeguarding,Children in Care & Fostering,JPAM,Third Party Payments,Childminders,ABC Day Nursery - Hadley,08/07/2013,177.52,,
Children's Safeguarding,Children in Care & Fostering,JPAN,Third Party Payments,External Foster Care Payments,HILLCREST CARE LTD,08/07/2013,2550,,
Children's Safeguarding,Children in Care & Fostering,JPAN,Third Party Payments,Residential Expenditure,ST HELENS COUNCIL,11/07/2013,18002.7,,
Children's Safeguarding,Children in Care & Fostering,JPAN,Third Party Payments,Residential Expenditure,PROGRESS CHILDREN'S SERVICES LTD,03/07/2013,13740,,
Children's Safeguarding,Children in Care & Fostering,JPAN,Third Party Payments,Residential Expenditure,PROGRESS CHILDREN'S SERVICES LTD,03/07/2013,14198,,
Children's Safeguarding,Children in Care & Fostering,JPAN,Third Party Payments,Residential Expenditure,KEYS CHILDCARE LTD,04/07/2013,850,,
Children's Safeguarding,Children in Care & Fostering,JPAN,Third Party Payments,Residential Expenditure,KEYS CHILDCARE LTD,04/07/2013,1275,,
Children's Safeguarding,Children in Care & Fostering,JPAN,Third Party Payments,Residential Expenditure,Wrixon Care Escorts and Outreach,04/07/2013,458.7,,
Children's Safeguarding,Children in Care & Fostering,JPAN,Third Party Payments,Residential Expenditure,ABC CARE LTD,04/07/2013,12000,,
Children's Safeguarding,Children in Care & Fostering,JPAN,Third Party Payments,Residential Expenditure,NEW HORIZONS CHILD CARE LTD,09/07/2013,13728.66,,
Children's Safeguarding,Children in Care & Fostering,JPAN,Third Party Payments,Residential Expenditure,ABC CARE LTD,05/07/2013,16518.45,,
Children's Safeguarding,Children in Care & Fostering,JPAN,Third Party Payments,Residential Expenditure,EDUCARE ADOLESCENT SERVICES LTD,05/07/2013,13064.33,,
Children's Safeguarding,Children in Care & Fostering,JPAN,Third Party Payments,Residential Expenditure,EDUCARE ADOLESCENT SERVICES LTD,05/07/2013,13064.33,,
Children's Safeguarding,Children in Care & Fostering,JPAN,Third Party Payments,Residential Expenditure,EDUCARE ADOLESCENT SERVICES LTD,05/07/2013,13064.33,,
Children's Safeguarding,Children in Care & Fostering,JPAN,Third Party Payments,Residential Expenditure,CASTLE HOMES CARE LIMITED,12/07/2013,37972.58,,
Children's Safeguarding,Children in Care & Fostering,JPAN,Third Party Payments,Residential Expenditure,Wrixon Care Escorts and Outreach,09/07/2013,560.7,,
Children's Safeguarding,Children in Care & Fostering,JPAN,Third Party Payments,Residential Expenditure,CARE TODAY CHILDRENS SERVICES,12/07/2013,1597.16,,
Children's Safeguarding,Children in Care & Fostering,JPAN,Third Party Payments,Residential Expenditure,NEW HORIZONS CHILD CARE LTD,05/07/2013,8414.34,,
Children's Safeguarding,Children in Care & Fostering,JPAN,Third Party Payments,Residential Expenditure,ABC CARE LTD,05/07/2013,16518.45,,
Children's Safeguarding,Children in Care & Fostering,JPAN,Third Party Payments,Residential Expenditure,ABC CARE LTD,05/07/2013,14775,,
Children's Safeguarding,Children in Care & Fostering,JPAN,Third Party Payments,Residential Expenditure,Young Options Pathways Stoke,26/07/2013,18010.11,,
Children's Safeguarding,Children in Care & Fostering,JPAN,Third Party Payments,Residential Expenditure,KEYS CHILDCARE LTD,16/07/2013,11071.34,,
Children's Safeguarding,Children in Care & Fostering,JPAN,Third Party Payments,Residential Expenditure,Wrixon Care Escorts and Outreach,16/07/2013,523.95,,
Children's Safeguarding,Children in Care & Fostering,JPAN,Third Party Payments,Residential Expenditure,SUNFIELD CHILDRENS HOMES LTD,16/07/2013,13831.5,,
Children's Safeguarding,Children in Care & Fostering,JPAN,Third Party Payments,Residential Expenditure,CASTLE HOMES CARE LIMITED,16/07/2013,9965.19,,
Children's Safeguarding,Children in Care & Fostering,JPAN,Third Party Payments,Residential Expenditure,KEYS CHILDCARE LTD,16/07/2013,11691.34,,
Children's Safeguarding,Children in Care & Fostering,JPAN,Third Party Payments,Residential Expenditure,CARE TODAY CHILDRENS SERVICES,17/07/2013,15784.2,,
Children's Safeguarding,Children in Care & Fostering,JPAN,Third Party Payments,Residential Expenditure,Sandwell Home Care - MELROPE LTD,22/07/2013,5657.14,,
Children's Safeguarding,Children in Care & Fostering,JPAN,Third Party Payments,Residential Expenditure,MGM CARE SERVICES LTD,31/07/2013,11539.5,,
Children's Safeguarding,Children in Care & Fostering,JPAN,Third Party Payments,Residential Expenditure,Wrixon Care Escorts and Outreach,26/07/2013,900.95,,
Children's Safeguarding,Children in Care & Fostering,JPAN,Third Party Payments,Residential Expenditure,SACCS CARE LTD,26/07/2013,18496,,
Children's Safeguarding,Children in Care & Fostering,JPAN,Third Party Payments,Residential Expenditure,CASTLE HOMES CARE LIMITED,26/07/2013,4317.5,,
Children's Safeguarding,Children in Care & Fostering,JPAN,Third Party Payments,Residential Expenditure,CASTLE HOMES CARE LIMITED,23/07/2013,13384.25,,
Children's Safeguarding,Children in Care & Fostering,JPAN,Third Party Payments,Residential Expenditure,CASTLE HOMES CARE LIMITED,23/07/2013,13384.25,,
Children's Safeguarding,Children in Care & Fostering,JPAN,Third Party Payments,Residential Expenditure,CASTLE HOMES CARE LIMITED,23/07/2013,13384.25,,
Children's Safeguarding,Children in Care & Fostering,JPAN,Third Party Payments,Residential Expenditure,AMBERLEIGH CARE LIMITED,23/07/2013,15074.86,,
Children's Safeguarding,Children in Care & Fostering,JPAT,Third Party Payments,Childminders,EARLYWORLD LIMITED ,04/07/2013,550,,
Children's Safeguarding,Children in Care & Fostering,JPAT,Third Party Payments,Childminders,EARLYWORLD LIMITED ,09/07/2013,575,,
Children's Safeguarding,Children in Care & Fostering,JPAT,Third Party Payments,Childminders,EARLYWORLD LIMITED ,31/07/2013,575,,
Children's Safeguarding,Safeguarding Advisory,JAAA,Employees,Training Expenses,SHROPSHIRE COUNCIL,17/07/2013,160,,
Children's Safeguarding,Safeguarding Advisory,JAAC,Supplies & Services,Subsistence,EXPOTEL HOTEL RESERVATIONS LIMITED,23/07/2013,100.17,,
Children's Safeguarding,Safeguarding Advisory,JAAC,Third Party Payments,Other Government - Services,SHROPSHIRE COMMUNITY HEALTH NHS TRUST,23/07/2013,3468.39,,
Children's Safeguarding,Safeguarding Advisory,JAAC,Third Party Payments,Other Government - Services,NEWSTART NETWORKS CIC,23/07/2013,200,,
Co-Operative Council,Community Engagement & Voluntary Sector,AEAH,Supplies & Services,Grants To Voluntary Organis,Rights and Fairness Telford,03/07/2013,17000,,
Co-Operative Council,Community Engagement & Voluntary Sector,LEAC,Supplies & Services,Telephones,BRITISH TELECOMMUNICATIONS PLC,18/07/2013,146.41,,
Co-Operative Council,Community Engagement & Voluntary Sector,LEAC,Supplies & Services,Other Expenses,PARK LANE CENTRE,26/07/2013,10600,,
Co-Operative Council,Community Engagement & Voluntary Sector,MCAB,Supplies & Services,Printing - Other,MARKETING AT THE MILL,03/07/2013,122,,
Co-Operative Council,Community Engagement & Voluntary Sector,MCAB,Supplies & Services,Translation Services,VISS LTD,17/07/2013,140,,
Co-Operative Council,Community Engagement & Voluntary Sector,MCAE,Supplies & Services,Grants To Voluntary Organis,WROCKWARDINE PARISH COUNCIL ,08/07/2013,666,,
Co-Operative Council,Community Engagement & Voluntary Sector,MCAE,Supplies & Services,Grants To Voluntary Organis,NEW COLLEGE,08/07/2013,150,,
Co-Operative Council,Community Engagement & Voluntary Sector,MCAE,Supplies & Services,Grants To Voluntary Organis,TELFORD JUNIORS,10/07/2013,250,,
Co-Operative Council,Community Engagement & Voluntary Sector,MCAE,Supplies & Services,Grants To Voluntary Organis,WROCKWARDINE WOOD & TRENCH PC ,08/07/2013,1000,,
Co-Operative Council,Corporate Communications,MMAB,Supplies & Services,Photography,METRO PHOTOGRAPHIC,08/07/2013,300,,
Co-Operative Council,Corporate Communications,MMAB,Supplies & Services,External Computer Use,Headstar.com,22/07/2013,195,,
Co-Operative Council,Corporate Communications,MMAD,Employees,Recruitment Advertising,TOTALJOBS GROUP,10/07/2013,495,,
Co-Operative Council,Corporate Communications,MMAD,Employees,Recruitment Advertising,THE MIDLAND NEWS ASSOCIATION LTD,10/07/2013,631.08,,
Co-Operative Council,Corporate Communications,MMAD,Employees,Recruitment Advertising,TSL EDUCATION LIMITED,25/07/2013,120,,
Co-Operative Council,Corporate Communications,MMAD,Employees,Recruitment Advertising,BATOD British Association of Teachers of the Deaf,16/07/2013,225,,
Co-Operative Council,Corporate Communications,MMAD,Employees,Recruitment Advertising,BMJ Publishing Group,16/07/2013,1690.2,,
Co-Operative Council,Corporate Communications,MMAD,Supplies & Services,Advertising,ClearChannel Outdoor,01/07/2013,320,,
Co-Operative Council,Corporate Communications,MMAD,Supplies & Services,Advertising,Mums The Word Magazine,01/07/2013,140,,
Co-Operative Council,Corporate Communications,MMAD,Supplies & Services,Advertising,THE MIDLAND NEWS ASSOCIATION LTD,03/07/2013,385.65,,
Co-Operative Council,Corporate Communications,MMAD,Supplies & Services,Advertising,INANDAROUND MAGAZINES,03/07/2013,340,,
Co-Operative Council,Corporate Communications,MMAD,Supplies & Services,Advertising,THE MIDLAND NEWS ASSOCIATION LTD,03/07/2013,110.88,,
Co-Operative Council,Corporate Communications,MMAD,Supplies & Services,Advertising,THE MIDLAND NEWS ASSOCIATION LTD,03/07/2013,113.4,,
Co-Operative Council,Corporate Communications,MMAD,Supplies & Services,Advertising,THE MIDLAND NEWS ASSOCIATION LTD,03/07/2013,561.6,,
Co-Operative Council,Corporate Communications,MMAD,Supplies & Services,Advertising,Shrewsbury Folk Festival,03/07/2013,181.5,,
Co-Operative Council,Corporate Communications,MMAD,Supplies & Services,Advertising,Scene Local Media Ltd,03/07/2013,500,,
Co-Operative Council,Corporate Communications,MMAD,Supplies & Services,Advertising,THE MIDLAND NEWS ASSOCIATION LTD,03/07/2013,169.35,,
Co-Operative Council,Corporate Communications,MMAD,Supplies & Services,Advertising,Positive Media Marketing,10/07/2013,375,,
Co-Operative Council,Corporate Communications,MMAD,Supplies & Services,Advertising,THE MIDLAND NEWS ASSOCIATION LTD,10/07/2013,364.5,,
Co-Operative Council,Corporate Communications,MMAD,Supplies & Services,Advertising,THE MIDLAND NEWS ASSOCIATION LTD,15/07/2013,510.3,,
Co-Operative Council,Corporate Communications,MMAD,Supplies & Services,Advertising,THE MIDLAND NEWS ASSOCIATION LTD,15/07/2013,126,,
Co-Operative Council,Corporate Communications,MMAD,Supplies & Services,Advertising,THE MIDLAND NEWS ASSOCIATION LTD,15/07/2013,113.4,,
Co-Operative Council,Corporate Communications,MMAD,Supplies & Services,Advertising,THE MIDLAND NEWS ASSOCIATION LTD,15/07/2013,169.35,,
Co-Operative Council,Corporate Communications,MMAD,Supplies & Services,Advertising,THE MIDLAND NEWS ASSOCIATION LTD,08/07/2013,731.25,,
Co-Operative Council,Corporate Communications,MMAD,Supplies & Services,Advertising,THE MIDLAND NEWS ASSOCIATION LTD,08/07/2013,731.25,,
Co-Operative Council,Corporate Communications,MMAD,Supplies & Services,Advertising,ORION MEDIA,16/07/2013,416.19,,
Co-Operative Council,Corporate Communications,MMAD,Supplies & Services,Advertising,PARTNERSHIP PUBLISHING LTD,16/07/2013,175,,
Co-Operative Council,Corporate Communications,MMAD,Supplies & Services,Advertising,THE MIDLAND NEWS ASSOCIATION LTD,25/07/2013,1093.5,,
Co-Operative Council,Corporate Communications,MMAD,Supplies & Services,Advertising,THE MIDLAND NEWS ASSOCIATION LTD,25/07/2013,121.5,,
Co-Operative Council,Corporate Communications,MMAD,Supplies & Services,Advertising,THE MIDLAND NEWS ASSOCIATION LTD,25/07/2013,221.76,,
Co-Operative Council,Corporate Communications,MMAD,Supplies & Services,Advertising,WHATS ON MAGAZINES LTD,25/07/2013,260,,
Co-Operative Council,Corporate Communications,MMAD,Supplies & Services,Advertising,WHATS ON MAGAZINES LTD,25/07/2013,445.5,,
Co-Operative Council,Corporate Communications,MMAD,Supplies & Services,Advertising,THE MIDLAND NEWS ASSOCIATION LTD,25/07/2013,876.6,,
Co-Operative Council,Corporate Communications,MMAD,Supplies & Services,Advertising,THE MIDLAND NEWS ASSOCIATION LTD,25/07/2013,121.5,,
Co-Operative Council,Corporate Communications,MMAD,Supplies & Services,Advertising,THE MIDLAND NEWS ASSOCIATION LTD,25/07/2013,181.8,,
Co-Operative Council,Corporate Communications,MMAD,Supplies & Services,Advertising,THE MIDLAND NEWS ASSOCIATION LTD,25/07/2013,228.6,,
Co-Operative Council,Corporate Communications,MMAD,Supplies & Services,Advertising,CBS OUTDOOR LIMITED,25/07/2013,300,,
Co-Operative Council,Corporate Communications,MMAD,Supplies & Services,Advertising,THE MIDLAND NEWS ASSOCIATION LTD,25/07/2013,316.8,,
Co-Operative Council,Corporate Communications,MMAD,Supplies & Services,Advertising,THE MIDLAND NEWS ASSOCIATION LTD,16/07/2013,170.1,,
Co-Operative Council,Corporate Communications,MMAD,Supplies & Services,Advertising,ONLINE NOVA NEWS,16/07/2013,215.2,,
Co-Operative Council,Corporate Communications,MMAD,Supplies & Services,Advertising,ONLINE NOVA NEWS,16/07/2013,394.3,,
Co-Operative Council,Corporate Communications,MMAD,Supplies & Services,Advertising,THE MIDLAND NEWS ASSOCIATION LTD,16/07/2013,577.49,,
Co-Operative Council,Corporate Communications,MMAD,Supplies & Services,Advertising,THE MIDLAND NEWS ASSOCIATION LTD,18/07/2013,286.2,,
Co-Operative Council,Corporate Communications,MMAD,Supplies & Services,Advertising,THE MIDLAND NEWS ASSOCIATION LTD,18/07/2013,145.8,,
Co-Operative Council,Corporate Communications,MMAD,Supplies & Services,Advertising,THE MIDLAND NEWS ASSOCIATION LTD,18/07/2013,314.1,,
Co-Operative Council,Corporate Communications,MMAD,Supplies & Services,Advertising,THE MIDLAND NEWS ASSOCIATION LTD,18/07/2013,510.3,,
Co-Operative Council,Corporate Communications,MMAD,Supplies & Services,Advertising,THE MIDLAND NEWS ASSOCIATION LTD,18/07/2013,390.28,,
Co-Operative Council,Corporate Communications,MMAD,Supplies & Services,Community Newspaper,Leaflet Distribution Services Ltd,18/07/2013,5061.77,,
Co-Operative Council,Corporate Communications,MMAD,Supplies & Services,Advertising,ORION MEDIA,18/07/2013,550,,
Co-Operative Council,Corporate Communications,MMAD,Supplies & Services,Advertising,UTV Media (GB) Accounts,18/07/2013,140,,
Co-Operative Council,Corporate Communications,MMAD,Supplies & Services,Advertising,UTV Media (GB) Accounts,18/07/2013,140,,
Co-Operative Council,Corporate Communications,MMAD,Supplies & Services,Advertising,The Potent Mix,18/07/2013,1060,,
Co-Operative Council,Corporate Communications,MMAD,Supplies & Services,Web Services,JADU LIMITED,26/07/2013,1600,,
Co-Operative Council,Corporate Communications,MMAD,Supplies & Services,Advertising,THE MIDLAND NEWS ASSOCIATION LTD,08/07/2013,731.25,,
Co-Operative Council,Corporate Communications,MMAD,Supplies & Services,Advertising,THE MIDLAND NEWS ASSOCIATION LTD,08/07/2013,731.25,,
Co-Operative Council,Corporate Communications,MMAD,Supplies & Services,Advertising,THE MIDLAND NEWS ASSOCIATION LTD,08/07/2013,228.6,,
Co-Operative Council,Corporate Communications,MMAD,Supplies & Services,Advertising,THE MIDLAND NEWS ASSOCIATION LTD,08/07/2013,128.47,,
Co-Operative Council,Corporate Core,MHAB,Supplies & Services,Conference Expenses,ADCS,08/07/2013,780,,
Co-Operative Council,Corporate Core,MHAC,Supplies & Services,Conference Expenses,MEETING POINT TRUST LTD,11/07/2013,167.1,,
Co-Operative Council,Corporate Core,MHAC,Supplies & Services,Conference Expenses,MEETING POINT TRUST LTD,11/07/2013,102.6,,
Co-Operative Council,Policy & Strategy,MMAF,Supplies & Services,Printing - Other,LION FPG LIMITED,03/07/2013,217,,
Co-Operative Council,Policy & Strategy,MMAF,Supplies & Services,Graphic Design Charges,LION FPG LIMITED,08/07/2013,243,,
Co-Operative Council,Policy & Strategy,MMAF,Supplies & Services,Comp Software (Purch / Hire),CLARITY RETAIL SYSTEMS LTD,08/07/2013,1875,,
Co-Operative Council,Policy & Strategy,MMAF,Supplies & Services,Comp Software (Purch / Hire),CLARITY RETAIL SYSTEMS LTD,08/07/2013,1875,,
Co-Operative Council,Policy & Strategy,MPAA,Supplies & Services,Other Expenses,APSE,10/07/2013,1640.93,,
Customer & People Services,Benefits,LRSF,Supplies & Services,Crisis Assistance,A W HOLDINGS,03/07/2013,149,,
Customer & People Services,Benefits,LRSF,Supplies & Services,Crisis Assistance,A W HOLDINGS,04/07/2013,-120,,
Customer & People Services,Benefits,LRSF,Supplies & Services,Crisis Assistance,A W HOLDINGS,03/07/2013,179,,
Customer & People Services,Benefits,LRSF,Supplies & Services,Crisis Assistance,A W HOLDINGS,03/07/2013,110,,
Customer & People Services,Benefits,LRSF,Supplies & Services,Crisis Assistance,A W HOLDINGS,04/07/2013,149,,
Customer & People Services,Benefits,LRSF,Supplies & Services,Crisis Assistance,A W HOLDINGS,05/07/2013,208,,
Customer & People Services,Benefits,LRSF,Supplies & Services,Crisis Assistance,A W HOLDINGS,10/07/2013,149,,
Customer & People Services,Benefits,LRSF,Supplies & Services,Crisis Assistance,PayPoint Network Limited,10/07/2013,120.5,,
Customer & People Services,Benefits,LRSF,Supplies & Services,Crisis Assistance,A W HOLDINGS,16/07/2013,120,,
Customer & People Services,Benefits,LRSF,Supplies & Services,Crisis Assistance,A W HOLDINGS,17/07/2013,149,,
Customer & People Services,Benefits,LRSF,Supplies & Services,Crisis Assistance,A W HOLDINGS,17/07/2013,347,,
Customer & People Services,Benefits,LRSF,Supplies & Services,Crisis Assistance,A W HOLDINGS,17/07/2013,208,,
Customer & People Services,Benefits,LRSF,Supplies & Services,Crisis Assistance,A W HOLDINGS,19/07/2013,328,,
Customer & People Services,Benefits,LRSF,Supplies & Services,Crisis Assistance,A W HOLDINGS,19/07/2013,208,,
Customer & People Services,Benefits,LRSF,Supplies & Services,Crisis Assistance,DAWLEY BARGAIN CENTRE,31/07/2013,135,,
Customer & People Services,Benefits,LRSF,Supplies & Services,Crisis Assistance,Reviive,31/07/2013,115,,
Customer & People Services,Benefits,LRSF,Supplies & Services,Crisis Assistance,A W HOLDINGS,31/07/2013,149,,
Customer & People Services,Benefits,LRSF,Supplies & Services,Crisis Assistance,A W HOLDINGS,31/07/2013,149,,
Customer & People Services,Benefits,LRSF,Supplies & Services,Crisis Assistance,A W HOLDINGS,31/07/2013,259,,
Customer & People Services,Benefits,LRSF,Supplies & Services,Crisis Assistance,DAWLEY BARGAIN CENTRE,31/07/2013,200,,
Customer & People Services,Benefits,LRSF,Supplies & Services,Crisis Assistance,PayPoint Network Limited,18/07/2013,152,,
Customer & People Services,Benefits,LRTA,Supplies & Services,Postages,ROYAL MAIL GROUP LTD,11/07/2013,3626.24,,
Customer & People Services,Benefits,LRTA,Supplies & Services,Postages,ROYAL MAIL GROUP LTD,08/07/2013,2906.31,,
Customer & People Services,Benefits,LRTA,Supplies & Services,Postages,ROYAL MAIL GROUP LTD,02/07/2013,-3896.88,,
Customer & People Services,Benefits,LRTA,Supplies & Services,Postages,ROYAL MAIL GROUP LTD,31/07/2013,5520.92,,
Customer & People Services,Benefits,LRTA,Supplies & Services,Publications,PCF PRINT MANAGEMENT LTD,31/07/2013,425,,
Customer & People Services,Benefits,LRTA,Supplies & Services,Postages,G FORCE EXPRESS PARCELS LTD,19/07/2013,427.45,,
Customer & People Services,Benefits,LRTA,Supplies & Services,Postages,ROYAL MAIL GROUP LTD,19/07/2013,3352.1,,
Customer & People Services,Benefits,LRTB,Supplies & Services,Comp Software (Purch / Hire),MAG:NET Solutions Ltd,11/07/2013,1000,,
Customer & People Services,Benefits,LRTB,Supplies & Services,Service Contracts,NORTHGATE INFORMATION SOLUTIONS UK LTD,10/07/2013,7000,,
Customer & People Services,Catering & Home Care,CAHC,Employees,Training Expenses,CHARTERED INSTITUTE OF EDUCATION ASSOC,04/07/2013,-526.45,,
Customer & People Services,Catering & Home Care,CAHC,Employees,Training Expenses,CIEH,08/07/2013,526.45,,
Customer & People Services,Catering & Home Care,CAHC,Employees,Training Expenses,CIEH,18/07/2013,151.5,,
Customer & People Services,Catering & Home Care,CAHC,Employees,Training Expenses,CIEH,18/07/2013,288.95,,
Customer & People Services,Catering & Home Care,CAHC,Employees,Training Expenses,CIEH,18/07/2013,322.69,,
Customer & People Services,Catering & Home Care,CAMA,Supplies & Services,Equipment - Purchase,ELEKTRON TECHNOLOGY UK LTD,08/07/2013,246,,
Customer & People Services,Catering & Home Care,CAMA,Supplies & Services,Stationery,PLANGLOW LTD,08/07/2013,260.1,,
Customer & People Services,Catering & Home Care,CAMA,Supplies & Services,Other Expenses,DEWBERRY REDPOINT LTD,24/07/2013,790,,
Customer & People Services,Catering & Home Care,CASM,Supplies & Services,EEC Whole Milk,JOHAL DAIRIES,24/07/2013,2019.08,,
Customer & People Services,Catering & Home Care,CASM,Supplies & Services,EEC Whole Milk,JOHAL DAIRIES,24/07/2013,738.94,,
Customer & People Services,Catering & Home Care,CASM,Supplies & Services,EEC Whole Milk,JOHAL DAIRIES,17/07/2013,2026.86,,
Customer & People Services,Catering & Home Care,CASM,Supplies & Services,EEC Whole Milk,JOHAL DAIRIES,17/07/2013,740.12,,
Customer & People Services,Catering & Home Care,CASM,Supplies & Services,EEC Whole Milk,JOHAL DAIRIES,17/07/2013,2026.86,,
Customer & People Services,Catering & Home Care,CASM,Supplies & Services,EEC Whole Milk,JOHAL DAIRIES,17/07/2013,754.16,,
Customer & People Services,Catering & Home Care,CASM,Supplies & Services,EEC Whole Milk,JOHAL DAIRIES,17/07/2013,761.94,,
Customer & People Services,Catering & Home Care,CASM,Supplies & Services,EEC Whole Milk,JOHAL DAIRIES,17/07/2013,761.94,,
Customer & People Services,Catering & Home Care,CASM,Supplies & Services,EEC Whole Milk,JOHAL DAIRIES,17/07/2013,2092.19,,
Customer & People Services,Catering & Home Care,CASM,Supplies & Services,EEC Whole Milk,JOHAL DAIRIES,17/07/2013,2017.69,,
Customer & People Services,Catering & Home Care,CASM,Supplies & Services,EEC Whole Milk,JOHAL DAIRIES,17/07/2013,741.3,,
Customer & People Services,Catering & Home Care,CASM,Supplies & Services,EEC Whole Milk,JOHAL DAIRIES,22/07/2013,203.52,,
Customer & People Services,Catering & Home Care,CASP,Supplies & Services,Provisions,G N BADLEY & SONS,03/07/2013,104.09,,
Customer & People Services,Catering & Home Care,CASP,Supplies & Services,Provisions,G N BADLEY & SONS,03/07/2013,197.69,,
Customer & People Services,Catering & Home Care,CASP,Supplies & Services,Provisions,G N BADLEY & SONS,03/07/2013,216.51,,
Customer & People Services,Catering & Home Care,CASP,Supplies & Services,Provisions,BIKOLD,11/07/2013,154.06,,
Customer & People Services,Catering & Home Care,CASP,Supplies & Services,Provisions,BIKOLD,11/07/2013,114.34,,
Customer & People Services,Catering & Home Care,CASP,Supplies & Services,Provisions,BIKOLD,11/07/2013,161.19,,
Customer & People Services,Catering & Home Care,CASP,Supplies & Services,Provisions,BIKOLD,11/07/2013,122.51,,
Customer & People Services,Catering & Home Care,CASP,Supplies & Services,Provisions,BIKOLD,11/07/2013,111.93,,
Customer & People Services,Catering & Home Care,CASP,Supplies & Services,Provisions,BIKOLD,11/07/2013,147.85,,
Customer & People Services,Catering & Home Care,CASP,Supplies & Services,Provisions,BIKOLD,11/07/2013,101.09,,
Customer & People Services,Catering & Home Care,CASP,Supplies & Services,Provisions,BIKOLD,11/07/2013,102.64,,
Customer & People Services,Catering & Home Care,CASP,Supplies & Services,Provisions,BIKOLD,11/07/2013,149.69,,
Customer & People Services,Catering & Home Care,CASP,Supplies & Services,Provisions,BIKOLD,11/07/2013,177.91,,
Customer & People Services,Catering & Home Care,CASP,Supplies & Services,Provisions,BIKOLD,11/07/2013,140.24,,
Customer & People Services,Catering & Home Care,CASP,Supplies & Services,Provisions,BIKOLD,11/07/2013,112.49,,
Customer & People Services,Catering & Home Care,CASP,Supplies & Services,Provisions,BIKOLD,11/07/2013,119.82,,
Customer & People Services,Catering & Home Care,CASP,Supplies & Services,Provisions,BIKOLD,11/07/2013,111.18,,
Customer & People Services,Catering & Home Care,CASP,Supplies & Services,Provisions,BIKOLD,11/07/2013,121.84,,
Customer & People Services,Catering & Home Care,CASP,Supplies & Services,Provisions,BIKOLD,11/07/2013,177.56,,
Customer & People Services,Catering & Home Care,CASP,Supplies & Services,Provisions,BIKOLD,11/07/2013,187.83,,
Customer & People Services,Catering & Home Care,CASP,Supplies & Services,Provisions,BIKOLD,11/07/2013,218.49,,
Customer & People Services,Catering & Home Care,CASP,Supplies & Services,Provisions,BIKOLD,11/07/2013,105.47,,
Customer & People Services,Catering & Home Care,CASP,Supplies & Services,Provisions,BIKOLD,11/07/2013,167.56,,
Customer & People Services,Catering & Home Care,CASP,Supplies & Services,Provisions,BIKOLD,11/07/2013,172.74,,
Customer & People Services,Catering & Home Care,CASP,Supplies & Services,Provisions,BIKOLD,11/07/2013,108.65,,
Customer & People Services,Catering & Home Care,CASP,Supplies & Services,Provisions,BIKOLD,11/07/2013,226.56,,
Customer & People Services,Catering & Home Care,CASP,Supplies & Services,Provisions,BIKOLD,11/07/2013,121.4,,
Customer & People Services,Catering & Home Care,CASP,Supplies & Services,Provisions,BIKOLD,11/07/2013,148.14,,
Customer & People Services,Catering & Home Care,CASP,Supplies & Services,Provisions,BIKOLD,11/07/2013,159.38,,
Customer & People Services,Catering & Home Care,CASP,Supplies & Services,Provisions,BIKOLD,11/07/2013,130.09,,
Customer & People Services,Catering & Home Care,CASP,Supplies & Services,Provisions,BIKOLD,11/07/2013,287.77,,
Customer & People Services,Catering & Home Care,CASP,Supplies & Services,Provisions,BIKOLD,11/07/2013,324.8,,
Customer & People Services,Catering & Home Care,CASP,Supplies & Services,Provisions,BIKOLD,11/07/2013,158.43,,
Customer & People Services,Catering & Home Care,CASP,Supplies & Services,Provisions,BIKOLD,11/07/2013,198.66,,
Customer & People Services,Catering & Home Care,CASP,Supplies & Services,Provisions,BIKOLD,11/07/2013,171.85,,
Customer & People Services,Catering & Home Care,CASP,Supplies & Services,Provisions,BIKOLD,11/07/2013,200.41,,
Customer & People Services,Catering & Home Care,CASP,Supplies & Services,Provisions,BIKOLD,11/07/2013,206.06,,
Customer & People Services,Catering & Home Care,CASP,Supplies & Services,Provisions,BIKOLD,11/07/2013,268.08,,
Customer & People Services,Catering & Home Care,CASP,Supplies & Services,Provisions,BIKOLD,11/07/2013,143.36,,
Customer & People Services,Catering & Home Care,CASP,Supplies & Services,Provisions,BIKOLD,11/07/2013,294.67,,
Customer & People Services,Catering & Home Care,CASP,Supplies & Services,Provisions,BIKOLD,11/07/2013,275.81,,
Customer & People Services,Catering & Home Care,CASP,Supplies & Services,Provisions,BIKOLD,11/07/2013,103.75,,
Customer & People Services,Catering & Home Care,CASP,Supplies & Services,Provisions,BIKOLD,11/07/2013,103.27,,
Customer & People Services,Catering & Home Care,CASP,Supplies & Services,Provisions,BIKOLD,11/07/2013,132.84,,
Customer & People Services,Catering & Home Care,CASP,Supplies & Services,Provisions,BIKOLD,11/07/2013,300.01,,
Customer & People Services,Catering & Home Care,CASP,Supplies & Services,Provisions,BIKOLD,11/07/2013,221.89,,
Customer & People Services,Catering & Home Care,CASP,Supplies & Services,Provisions,BIKOLD,11/07/2013,113.49,,
Customer & People Services,Catering & Home Care,CASP,Supplies & Services,Provisions,BIKOLD,11/07/2013,113.81,,
Customer & People Services,Catering & Home Care,CASP,Supplies & Services,Provisions,BIKOLD,11/07/2013,219.01,,
Customer & People Services,Catering & Home Care,CASP,Supplies & Services,Provisions,BIKOLD,04/07/2013,100.73,,
Customer & People Services,Catering & Home Care,CASP,Supplies & Services,Provisions,BIKOLD,04/07/2013,173.44,,
Customer & People Services,Catering & Home Care,CASP,Supplies & Services,Provisions,BIKOLD,04/07/2013,186.54,,
Customer & People Services,Catering & Home Care,CASP,Supplies & Services,Provisions,BIKOLD,04/07/2013,112.84,,
Customer & People Services,Catering & Home Care,CASP,Supplies & Services,Provisions,BIKOLD,04/07/2013,164.1,,
Customer & People Services,Catering & Home Care,CASP,Supplies & Services,Provisions,BIKOLD,04/07/2013,128.3,,
Customer & People Services,Catering & Home Care,CASP,Supplies & Services,Provisions,BIKOLD,04/07/2013,222.89,,
Customer & People Services,Catering & Home Care,CASP,Supplies & Services,Provisions,BIKOLD,04/07/2013,138.55,,
Customer & People Services,Catering & Home Care,CASP,Supplies & Services,Provisions,BIKOLD,04/07/2013,252.35,,
Customer & People Services,Catering & Home Care,CASP,Supplies & Services,Provisions,BIKOLD,04/07/2013,156.37,,
Customer & People Services,Catering & Home Care,CASP,Supplies & Services,Provisions,BIKOLD,04/07/2013,124.36,,
Customer & People Services,Catering & Home Care,CASP,Supplies & Services,Provisions,BIKOLD,04/07/2013,157.41,,
Customer & People Services,Catering & Home Care,CASP,Supplies & Services,Provisions,BIKOLD,04/07/2013,123.97,,
Customer & People Services,Catering & Home Care,CASP,Supplies & Services,Provisions,BIKOLD,04/07/2013,104.82,,
Customer & People Services,Catering & Home Care,CASP,Supplies & Services,Provisions,BIKOLD,04/07/2013,271.32,,
Customer & People Services,Catering & Home Care,CASP,Supplies & Services,Provisions,BIKOLD,04/07/2013,127.62,,
Customer & People Services,Catering & Home Care,CASP,Supplies & Services,Provisions,BIKOLD,04/07/2013,310.52,,
Customer & People Services,Catering & Home Care,CASP,Supplies & Services,Provisions,BIKOLD,04/07/2013,270.46,,
Customer & People Services,Catering & Home Care,CASP,Supplies & Services,Provisions,BIKOLD,04/07/2013,286.81,,
Customer & People Services,Catering & Home Care,CASP,Supplies & Services,Provisions,BIKOLD,04/07/2013,152.39,,
Customer & People Services,Catering & Home Care,CASP,Supplies & Services,Provisions,BIKOLD,04/07/2013,125.13,,
Customer & People Services,Catering & Home Care,CASP,Supplies & Services,Provisions,BIKOLD,04/07/2013,179.38,,
Customer & People Services,Catering & Home Care,CASP,Supplies & Services,Provisions,BIKOLD,04/07/2013,225.57,,
Customer & People Services,Catering & Home Care,CASP,Supplies & Services,Provisions,BIKOLD,04/07/2013,176.17,,
Customer & People Services,Catering & Home Care,CASP,Supplies & Services,Provisions,BIKOLD,04/07/2013,106.74,,
Customer & People Services,Catering & Home Care,CASP,Supplies & Services,Provisions,BIKOLD,04/07/2013,181.91,,
Customer & People Services,Catering & Home Care,CASP,Supplies & Services,Provisions,BIKOLD,04/07/2013,252.15,,
Customer & People Services,Catering & Home Care,CASP,Supplies & Services,Provisions,BIKOLD,04/07/2013,130.15,,
Customer & People Services,Catering & Home Care,CASP,Supplies & Services,Provisions,BIKOLD,04/07/2013,120.21,,
Customer & People Services,Catering & Home Care,CASP,Supplies & Services,Provisions,BIKOLD,04/07/2013,156.33,,
Customer & People Services,Catering & Home Care,CASP,Supplies & Services,Provisions,BIKOLD,04/07/2013,151.66,,
Customer & People Services,Catering & Home Care,CASP,Supplies & Services,Provisions,BIKOLD,04/07/2013,147.31,,
Customer & People Services,Catering & Home Care,CASP,Supplies & Services,Provisions,BIKOLD,04/07/2013,110.7,,
Customer & People Services,Catering & Home Care,CASP,Supplies & Services,Provisions,BIKOLD,04/07/2013,155.95,,
Customer & People Services,Catering & Home Care,CASP,Supplies & Services,Provisions,BIKOLD,04/07/2013,218.04,,
Customer & People Services,Catering & Home Care,CASP,Supplies & Services,Provisions,BIKOLD,04/07/2013,154.35,,
Customer & People Services,Catering & Home Care,CASP,Supplies & Services,Provisions,BIKOLD,04/07/2013,213.8,,
Customer & People Services,Catering & Home Care,CASP,Supplies & Services,Provisions,BIKOLD,04/07/2013,127.87,,
Customer & People Services,Catering & Home Care,CASP,Supplies & Services,Provisions,BIKOLD,04/07/2013,131.66,,
Customer & People Services,Catering & Home Care,CASP,Supplies & Services,Provisions,BIKOLD,04/07/2013,227.89,,
Customer & People Services,Catering & Home Care,CASP,Supplies & Services,Provisions,BIKOLD,04/07/2013,126.65,,
Customer & People Services,Catering & Home Care,CASP,Supplies & Services,Provisions,BIKOLD,04/07/2013,106.3,,
Customer & People Services,Catering & Home Care,CASP,Supplies & Services,Provisions,WELSH BROS FOODS LTD,04/07/2013,104.75,,
Customer & People Services,Catering & Home Care,CASP,Supplies & Services,Provisions,WELSH BROS FOODS LTD,04/07/2013,103.35,,
Customer & People Services,Catering & Home Care,CASP,Supplies & Services,Provisions,WELSH BROS FOODS LTD,04/07/2013,107.25,,
Customer & People Services,Catering & Home Care,CASP,Supplies & Services,Provisions,WELSH BROS FOODS LTD,04/07/2013,124.5,,
Customer & People Services,Catering & Home Care,CASP,Supplies & Services,Provisions,WELSH BROS FOODS LTD,04/07/2013,171.78,,
Customer & People Services,Catering & Home Care,CASP,Supplies & Services,Provisions,WELSH BROS FOODS LTD,04/07/2013,171.03,,
Customer & People Services,Catering & Home Care,CASP,Supplies & Services,Provisions,WELSH BROS FOODS LTD,04/07/2013,129.85,,
Customer & People Services,Catering & Home Care,CASP,Supplies & Services,Provisions,WELSH BROS FOODS LTD,04/07/2013,124.75,,
Customer & People Services,Catering & Home Care,CASP,Supplies & Services,Provisions,BIKOLD,04/07/2013,121.08,,
Customer & People Services,Catering & Home Care,CASP,Supplies & Services,Provisions,BIKOLD,04/07/2013,162.63,,
Customer & People Services,Catering & Home Care,CASP,Supplies & Services,Provisions,BIKOLD,04/07/2013,151.9,,
Customer & People Services,Catering & Home Care,CASP,Supplies & Services,Provisions,BIKOLD,04/07/2013,119.49,,
Customer & People Services,Catering & Home Care,CASP,Supplies & Services,Provisions,BIKOLD,04/07/2013,239.48,,
Customer & People Services,Catering & Home Care,CASP,Supplies & Services,Provisions,BIKOLD,04/07/2013,151.73,,
Customer & People Services,Catering & Home Care,CASP,Supplies & Services,Provisions,BIKOLD,04/07/2013,115.2,,
Customer & People Services,Catering & Home Care,CASP,Supplies & Services,Provisions,BIKOLD,04/07/2013,156.51,,
Customer & People Services,Catering & Home Care,CASP,Supplies & Services,Provisions,THE FABULOUS BAKIN BOYS,08/07/2013,117.62,,
Customer & People Services,Catering & Home Care,CASP,Supplies & Services,Provisions,THE FABULOUS BAKIN BOYS,08/07/2013,117.62,,
Customer & People Services,Catering & Home Care,CASP,Supplies & Services,Provisions,SMART FOOD,08/07/2013,697.83,,
Customer & People Services,Catering & Home Care,CASP,Supplies & Services,Provisions,G N BADLEY & SONS,08/07/2013,132.48,,
Customer & People Services,Catering & Home Care,CASP,Supplies & Services,Provisions,G N BADLEY & SONS,08/07/2013,118.71,,
Customer & People Services,Catering & Home Care,CASP,Supplies & Services,Provisions,G N BADLEY & SONS,08/07/2013,198.68,,
Customer & People Services,Catering & Home Care,CASP,Supplies & Services,Provisions,ROWLANDS & COMPANY,12/07/2013,159.55,,
Customer & People Services,Catering & Home Care,CASP,Supplies & Services,Provisions,ROWLANDS & COMPANY,12/07/2013,164.61,,
Customer & People Services,Catering & Home Care,CASP,Supplies & Services,Provisions,ROWLANDS & COMPANY,12/07/2013,210.3,,
Customer & People Services,Catering & Home Care,CASP,Supplies & Services,Provisions,ROWLANDS & COMPANY,12/07/2013,198.14,,
Customer & People Services,Catering & Home Care,CASP,Supplies & Services,Provisions,ROWLANDS & COMPANY,12/07/2013,102.81,,
Customer & People Services,Catering & Home Care,CASP,Supplies & Services,Provisions,FRESHVIEW FOODS LTD,19/07/2013,123.58,,
Customer & People Services,Catering & Home Care,CASP,Supplies & Services,Provisions,G N BADLEY & SONS,24/07/2013,152.69,,
Customer & People Services,Catering & Home Care,CASP,Supplies & Services,Provisions,G N BADLEY & SONS,24/07/2013,262.54,,
Customer & People Services,Catering & Home Care,CASP,Supplies & Services,Provisions,WELSH BROS FOODS LTD,16/07/2013,107.83,,
Customer & People Services,Catering & Home Care,CASP,Supplies & Services,Provisions,WELSH BROS FOODS LTD,16/07/2013,116.6,,
Customer & People Services,Catering & Home Care,CASP,Supplies & Services,Provisions,WELSH BROS FOODS LTD,16/07/2013,128.5,,
Customer & People Services,Catering & Home Care,CASP,Supplies & Services,Provisions,WELSH BROS FOODS LTD,16/07/2013,114.56,,
Customer & People Services,Catering & Home Care,CASP,Supplies & Services,Provisions,WELSH BROS FOODS LTD,16/07/2013,112.3,,
Customer & People Services,Catering & Home Care,CASP,Supplies & Services,Provisions,WELSH BROS FOODS LTD,16/07/2013,101.28,,
Customer & People Services,Catering & Home Care,CASP,Supplies & Services,Provisions,WELSH BROS FOODS LTD,16/07/2013,132.5,,
Customer & People Services,Catering & Home Care,CASP,Supplies & Services,Provisions,WELSH BROS FOODS LTD,16/07/2013,104.73,,
Customer & People Services,Catering & Home Care,CASP,Supplies & Services,Provisions,SAFY IMPEX T/A SPICE TIME,24/07/2013,154.5,,
Customer & People Services,Catering & Home Care,CASP,Supplies & Services,Provisions,ROWLANDS & COMPANY,16/07/2013,106.89,,
Customer & People Services,Catering & Home Care,CASP,Supplies & Services,Provisions,ROWLANDS & COMPANY,16/07/2013,123.16,,
Customer & People Services,Catering & Home Care,CASP,Supplies & Services,Provisions,ROWLANDS & COMPANY,16/07/2013,191.37,,
Customer & People Services,Catering & Home Care,CASP,Supplies & Services,Provisions,ROWLANDS & COMPANY,16/07/2013,103.63,,
Customer & People Services,Catering & Home Care,CASP,Supplies & Services,Provisions,ROWLANDS & COMPANY,16/07/2013,179.23,,
Customer & People Services,Catering & Home Care,CASP,Supplies & Services,Provisions,ROWLANDS & COMPANY,16/07/2013,119.99,,
Customer & People Services,Catering & Home Care,CASP,Supplies & Services,Provisions,WELSH BROS FOODS LTD,16/07/2013,108.8,,
Customer & People Services,Catering & Home Care,CASP,Supplies & Services,Provisions,WELSH BROS FOODS LTD,16/07/2013,109.75,,
Customer & People Services,Catering & Home Care,CASP,Supplies & Services,Provisions,WELSH BROS FOODS LTD,16/07/2013,154.5,,
Customer & People Services,Catering & Home Care,CASP,Supplies & Services,Provisions,WELSH BROS FOODS LTD,16/07/2013,145.13,,
Customer & People Services,Catering & Home Care,CASP,Supplies & Services,Provisions,WELSH BROS FOODS LTD,16/07/2013,122.5,,
Customer & People Services,Catering & Home Care,CASP,Supplies & Services,Provisions,WELSH BROS FOODS LTD,16/07/2013,136.44,,
Customer & People Services,Catering & Home Care,CASP,Supplies & Services,Provisions,ROWLANDS & COMPANY,16/07/2013,126.61,,
Customer & People Services,Catering & Home Care,CASP,Supplies & Services,Provisions,FRESHVIEW FOODS LTD,16/07/2013,122.08,,
Customer & People Services,Catering & Home Care,CASP,Supplies & Services,Provisions,FRESHVIEW FOODS LTD,16/07/2013,-368.53,,
Customer & People Services,Catering & Home Care,CASP,Supplies & Services,Provisions,FRESHVIEW FOODS LTD,16/07/2013,100.04,,
Customer & People Services,Catering & Home Care,CASP,Supplies & Services,Provisions,FRESHVIEW FOODS LTD,16/07/2013,183.53,,
Customer & People Services,Catering & Home Care,CASP,Supplies & Services,Provisions,FRESHVIEW FOODS LTD,16/07/2013,108.47,,
Customer & People Services,Catering & Home Care,CASP,Supplies & Services,Provisions,FRESHVIEW FOODS LTD,16/07/2013,102.88,,
Customer & People Services,Catering & Home Care,CASP,Supplies & Services,Provisions,FRESHVIEW FOODS LTD,16/07/2013,395.07,,
Customer & People Services,Catering & Home Care,CASP,Supplies & Services,Provisions,ROWLANDS & COMPANY,16/07/2013,190.9,,
Customer & People Services,Catering & Home Care,CASP,Supplies & Services,Provisions,ROWLANDS & COMPANY,16/07/2013,198.64,,
Customer & People Services,Catering & Home Care,CASP,Supplies & Services,Provisions,ROWLANDS & COMPANY,16/07/2013,114.57,,
Customer & People Services,Catering & Home Care,CASP,Supplies & Services,Provisions,FRESHVIEW FOODS LTD,16/07/2013,127.48,,
Customer & People Services,Catering & Home Care,CASP,Supplies & Services,Provisions,FRESHVIEW FOODS LTD,16/07/2013,119.12,,
Customer & People Services,Catering & Home Care,CASP,Supplies & Services,Provisions,FRESHVIEW FOODS LTD,16/07/2013,105.99,,
Customer & People Services,Catering & Home Care,CASP,Supplies & Services,Provisions,FRESHVIEW FOODS LTD,16/07/2013,130.89,,
Customer & People Services,Catering & Home Care,CASP,Supplies & Services,Provisions,FRESHVIEW FOODS LTD,16/07/2013,105.2,,
Customer & People Services,Catering & Home Care,CASP,Supplies & Services,Provisions,FRESHVIEW FOODS LTD,16/07/2013,175.87,,
Customer & People Services,Catering & Home Care,CASP,Supplies & Services,Provisions,FRESHVIEW FOODS LTD,16/07/2013,203.55,,
Customer & People Services,Catering & Home Care,CASP,Supplies & Services,Provisions,FRESHVIEW FOODS LTD,19/07/2013,126.2,,
Customer & People Services,Catering & Home Care,CASP,Supplies & Services,Provisions,WELSH BROS FOODS LTD,19/07/2013,144.54,,
Customer & People Services,Catering & Home Care,CASP,Supplies & Services,Provisions,WELSH BROS FOODS LTD,19/07/2013,102,,
Customer & People Services,Catering & Home Care,CASP,Supplies & Services,Provisions,WELSH BROS FOODS LTD,19/07/2013,139.63,,
Customer & People Services,Catering & Home Care,CASP,Supplies & Services,Provisions,FRESHVIEW FOODS LTD,19/07/2013,129.45,,
Customer & People Services,Catering & Home Care,CASP,Supplies & Services,Provisions,FRESHVIEW FOODS LTD,19/07/2013,163.06,,
Customer & People Services,Catering & Home Care,CASP,Supplies & Services,Provisions,ROWLANDS & COMPANY,19/07/2013,135.63,,
Customer & People Services,Catering & Home Care,CASP,Supplies & Services,Provisions,ROWLANDS & COMPANY,19/07/2013,124.06,,
Customer & People Services,Catering & Home Care,CASP,Supplies & Services,Provisions,ROWLANDS & COMPANY,19/07/2013,128.01,,
Customer & People Services,Catering & Home Care,CASP,Supplies & Services,Provisions,ROWLANDS & COMPANY,19/07/2013,187.54,,
Customer & People Services,Catering & Home Care,CASP,Supplies & Services,Provisions,BIKOLD,19/07/2013,275.53,,
Customer & People Services,Catering & Home Care,CASP,Supplies & Services,Provisions,BIKOLD,19/07/2013,171.78,,
Customer & People Services,Catering & Home Care,CASP,Supplies & Services,Provisions,BIKOLD,19/07/2013,155.38,,
Customer & People Services,Catering & Home Care,CASP,Supplies & Services,Provisions,BIKOLD,19/07/2013,141.8,,
Customer & People Services,Catering & Home Care,CASP,Supplies & Services,Provisions,BIKOLD,19/07/2013,115.46,,
Customer & People Services,Catering & Home Care,CASP,Supplies & Services,Provisions,BIKOLD,19/07/2013,219.65,,
Customer & People Services,Catering & Home Care,CASP,Supplies & Services,Provisions,BIKOLD,19/07/2013,209.51,,
Customer & People Services,Catering & Home Care,CASP,Supplies & Services,Provisions,BIKOLD,19/07/2013,204.22,,
Customer & People Services,Catering & Home Care,CASP,Supplies & Services,Provisions,BIKOLD,19/07/2013,154.97,,
Customer & People Services,Catering & Home Care,CASP,Supplies & Services,Provisions,BIKOLD,19/07/2013,112.36,,
Customer & People Services,Catering & Home Care,CASP,Supplies & Services,Provisions,BIKOLD,19/07/2013,134.07,,
Customer & People Services,Catering & Home Care,CASP,Supplies & Services,Provisions,BIKOLD,19/07/2013,140.23,,
Customer & People Services,Catering & Home Care,CASP,Supplies & Services,Provisions,BIKOLD,19/07/2013,103.79,,
Customer & People Services,Catering & Home Care,CASP,Supplies & Services,Provisions,BIKOLD,19/07/2013,102.11,,
Customer & People Services,Catering & Home Care,CASP,Supplies & Services,Provisions,BIKOLD,19/07/2013,128.66,,
Customer & People Services,Catering & Home Care,CASP,Supplies & Services,Provisions,BIKOLD,19/07/2013,105,,
Customer & People Services,Catering & Home Care,CASP,Supplies & Services,Provisions,BIKOLD,19/07/2013,161.03,,
Customer & People Services,Catering & Home Care,CASP,Supplies & Services,Provisions,BIKOLD,19/07/2013,112.9,,
Customer & People Services,Catering & Home Care,CASP,Supplies & Services,Provisions,BIKOLD,19/07/2013,238.59,,
Customer & People Services,Catering & Home Care,CASP,Supplies & Services,Provisions,BIKOLD,19/07/2013,185.34,,
Customer & People Services,Catering & Home Care,CASP,Supplies & Services,Provisions,BIKOLD,19/07/2013,126.62,,
Customer & People Services,Catering & Home Care,CASP,Supplies & Services,Provisions,BIKOLD,19/07/2013,218.43,,
Customer & People Services,Catering & Home Care,CASP,Supplies & Services,Provisions,BIKOLD,19/07/2013,135.88,,
Customer & People Services,Catering & Home Care,CASP,Supplies & Services,Provisions,BIKOLD,19/07/2013,163.06,,
Customer & People Services,Catering & Home Care,CASP,Supplies & Services,Provisions,BIKOLD,19/07/2013,272.42,,
Customer & People Services,Catering & Home Care,CASP,Supplies & Services,Provisions,BIKOLD,19/07/2013,254.53,,
Customer & People Services,Catering & Home Care,CASP,Supplies & Services,Provisions,BIKOLD,19/07/2013,102.83,,
Customer & People Services,Catering & Home Care,CASP,Supplies & Services,Provisions,BIKOLD,19/07/2013,128.71,,
Customer & People Services,Catering & Home Care,CASP,Supplies & Services,Provisions,BIKOLD,19/07/2013,112.39,,
Customer & People Services,Catering & Home Care,CASP,Supplies & Services,Provisions,BIKOLD,19/07/2013,164.39,,
Customer & People Services,Catering & Home Care,CASP,Supplies & Services,Provisions,THE FABULOUS BAKIN BOYS,22/07/2013,117.62,,
Customer & People Services,Catering & Home Care,CASP,Supplies & Services,Provisions,SAFY IMPEX T/A SPICE TIME,22/07/2013,110,,
Customer & People Services,Catering & Home Care,CASP,Supplies & Services,Provisions,G N BADLEY & SONS,22/07/2013,130.69,,
Customer & People Services,Catering & Home Care,CASP,Supplies & Services,Provisions,G N BADLEY & SONS,22/07/2013,269.15,,
Customer & People Services,Catering & Home Care,CASP,Supplies & Services,Provisions,G N BADLEY & SONS,22/07/2013,161.43,,
Customer & People Services,Catering & Home Care,CASP,Supplies & Services,Provisions,FRESHVIEW FOODS LTD,19/07/2013,167.56,,
Customer & People Services,Catering & Home Care,CASP,Supplies & Services,Provisions,FRESHVIEW FOODS LTD,19/07/2013,105.54,,
Customer & People Services,Catering & Home Care,CASP,Supplies & Services,Provisions,FRESHVIEW FOODS LTD,19/07/2013,152.48,,
Customer & People Services,Catering & Home Care,CASP,Supplies & Services,Provisions,ROWLANDS & COMPANY,19/07/2013,103.52,,
Customer & People Services,Catering & Home Care,CASP,Supplies & Services,Provisions,ROWLANDS & COMPANY,19/07/2013,182.1,,
Customer & People Services,Catering & Home Care,CASP,Supplies & Services,Provisions,ROWLANDS & COMPANY,12/07/2013,172.37,,
Customer & People Services,Catering & Home Care,CASP,Supplies & Services,Provisions,ROWLANDS & COMPANY,12/07/2013,120.15,,
Customer & People Services,Catering & Home Care,CASS,Supplies & Services,Provisions,THE FABULOUS BAKIN BOYS,03/07/2013,105.42,,
Customer & People Services,Catering & Home Care,CASS,Supplies & Services,Provisions,SMART FOOD,03/07/2013,503,,
Customer & People Services,Catering & Home Care,CASS,Supplies & Services,Provisions,SMART FOOD,03/07/2013,229.2,,
Customer & People Services,Catering & Home Care,CASS,Supplies & Services,Provisions,BIKOLD,11/07/2013,214.16,,
Customer & People Services,Catering & Home Care,CASS,Supplies & Services,Provisions,BIKOLD,11/07/2013,387.05,,
Customer & People Services,Catering & Home Care,CASS,Supplies & Services,Provisions,BIKOLD,11/07/2013,104.59,,
Customer & People Services,Catering & Home Care,CASS,Supplies & Services,Provisions,BIKOLD,11/07/2013,176.12,,
Customer & People Services,Catering & Home Care,CASS,Supplies & Services,Provisions,BIKOLD,11/07/2013,162.09,,
Customer & People Services,Catering & Home Care,CASS,Supplies & Services,Provisions,BIKOLD,11/07/2013,227.04,,
Customer & People Services,Catering & Home Care,CASS,Supplies & Services,Provisions,BIKOLD,11/07/2013,152.64,,
Customer & People Services,Catering & Home Care,CASS,Supplies & Services,Provisions,BIKOLD,11/07/2013,101.39,,
Customer & People Services,Catering & Home Care,CASS,Supplies & Services,Provisions,BIKOLD,11/07/2013,232.75,,
Customer & People Services,Catering & Home Care,CASS,Supplies & Services,Provisions,BIKOLD,11/07/2013,370.15,,
Customer & People Services,Catering & Home Care,CASS,Supplies & Services,Provisions,BIKOLD,11/07/2013,139.42,,
Customer & People Services,Catering & Home Care,CASS,Supplies & Services,Provisions,BIKOLD,11/07/2013,176.93,,
Customer & People Services,Catering & Home Care,CASS,Supplies & Services,Provisions,BIKOLD,11/07/2013,206.37,,
Customer & People Services,Catering & Home Care,CASS,Supplies & Services,Provisions,BIKOLD,11/07/2013,192.59,,
Customer & People Services,Catering & Home Care,CASS,Supplies & Services,Provisions,BIKOLD,04/07/2013,326.77,,
Customer & People Services,Catering & Home Care,CASS,Supplies & Services,Provisions,BIKOLD,04/07/2013,135,,
Customer & People Services,Catering & Home Care,CASS,Supplies & Services,Provisions,BIKOLD,04/07/2013,164.28,,
Customer & People Services,Catering & Home Care,CASS,Supplies & Services,Provisions,BIKOLD,04/07/2013,116.35,,
Customer & People Services,Catering & Home Care,CASS,Supplies & Services,Provisions,BIKOLD,04/07/2013,105.66,,
Customer & People Services,Catering & Home Care,CASS,Supplies & Services,Provisions,BIKOLD,04/07/2013,210.29,,
Customer & People Services,Catering & Home Care,CASS,Supplies & Services,Provisions,BIKOLD,04/07/2013,160.62,,
Customer & People Services,Catering & Home Care,CASS,Supplies & Services,Provisions,BIKOLD,04/07/2013,111.53,,
Customer & People Services,Catering & Home Care,CASS,Supplies & Services,Provisions,BIKOLD,04/07/2013,130.04,,
Customer & People Services,Catering & Home Care,CASS,Supplies & Services,Provisions,BIKOLD,04/07/2013,236.63,,
Customer & People Services,Catering & Home Care,CASS,Supplies & Services,Provisions,BIKOLD,04/07/2013,119.05,,
Customer & People Services,Catering & Home Care,CASS,Supplies & Services,Provisions,BIKOLD,04/07/2013,259.92,,
Customer & People Services,Catering & Home Care,CASS,Supplies & Services,Provisions,BIKOLD,04/07/2013,467.54,,
Customer & People Services,Catering & Home Care,CASS,Supplies & Services,Provisions,BIKOLD,04/07/2013,152.4,,
Customer & People Services,Catering & Home Care,CASS,Supplies & Services,Provisions,BIKOLD,04/07/2013,270.19,,
Customer & People Services,Catering & Home Care,CASS,Supplies & Services,Provisions,BIKOLD,04/07/2013,119,,
Customer & People Services,Catering & Home Care,CASS,Supplies & Services,Provisions,BIKOLD,04/07/2013,322.31,,
Customer & People Services,Catering & Home Care,CASS,Supplies & Services,Provisions,BIKOLD,04/07/2013,142.2,,
Customer & People Services,Catering & Home Care,CASS,Supplies & Services,Provisions,BIKOLD,11/07/2013,184.93,,
Customer & People Services,Catering & Home Care,CASS,Supplies & Services,Provisions,THE FABULOUS BAKIN BOYS,08/07/2013,160.39,,
Customer & People Services,Catering & Home Care,CASS,Supplies & Services,Provisions,THE FABULOUS BAKIN BOYS,08/07/2013,114.73,,
Customer & People Services,Catering & Home Care,CASS,Supplies & Services,Provisions,SMART FOOD,08/07/2013,367,,
Customer & People Services,Catering & Home Care,CASS,Supplies & Services,Computer Hardware (Maint),NATIONWIDE RETAIL SYSTEMS LTD,16/07/2013,107,,
Customer & People Services,Catering & Home Care,CASS,Supplies & Services,Provisions,WELSH BROS FOODS LTD,16/07/2013,144.24,,
Customer & People Services,Catering & Home Care,CASS,Supplies & Services,Provisions,THE FABULOUS BAKIN BOYS,24/07/2013,121.02,,
Customer & People Services,Catering & Home Care,CASS,Supplies & Services,Provisions,BIKOLD,19/07/2013,369.56,,
Customer & People Services,Catering & Home Care,CASS,Supplies & Services,Provisions,BIKOLD,19/07/2013,231.59,,
Customer & People Services,Catering & Home Care,CASS,Supplies & Services,Provisions,BIKOLD,19/07/2013,193.65,,
Customer & People Services,Catering & Home Care,CASS,Supplies & Services,Provisions,BIKOLD,19/07/2013,382.57,,
Customer & People Services,Catering & Home Care,CASS,Supplies & Services,Provisions,SMART FOOD,22/07/2013,384.4,,
Customer & People Services,Catering & Home Care,CASS,Supplies & Services,Provisions,SMART FOOD,22/07/2013,501.6,,
Customer & People Services,Catering & Home Care,CASS,Supplies & Services,Provisions,SLUSH PUPPIE LTD,22/07/2013,137.2,,
Customer & People Services,Catering & Home Care,CASX,Supplies & Services,Provisions,BIKOLD,11/07/2013,102.32,,
Customer & People Services,Catering & Home Care,CASX,Supplies & Services,Provisions,BIKOLD,04/07/2013,105,,
Customer & People Services,Catering & Home Care,CASX,Supplies & Services,Provisions,BIKOLD,04/07/2013,129.83,,
Customer & People Services,Catering & Home Care,CASX,Supplies & Services,Provisions,SMART FOOD,08/07/2013,229.2,,
Customer & People Services,Catering & Home Care,CASX,Supplies & Services,Provisions,FRESHVIEW FOODS LTD,16/07/2013,104.64,,
Customer & People Services,Catering & Home Care,CFAN,Premises-Related Expenditure,R&M -Buildings DLO Charge,FIRE MARQUE,01/07/2013,250,,
Customer & People Services,Catering & Home Care,COMM,Supplies & Services,Provisions,BIKOLD,11/07/2013,101.53,,
Customer & People Services,Catering & Home Care,COMM,Supplies & Services,Provisions,BIKOLD,11/07/2013,133.58,,
Customer & People Services,Catering & Home Care,COMM,Supplies & Services,Provisions,BIKOLD,11/07/2013,357.95,,
Customer & People Services,Catering & Home Care,COMM,Supplies & Services,Provisions,BIKOLD,11/07/2013,111.65,,
Customer & People Services,Catering & Home Care,COMM,Supplies & Services,Provisions,BIKOLD,11/07/2013,161.07,,
Customer & People Services,Catering & Home Care,COMM,Supplies & Services,Provisions,G N BADLEY & SONS,08/07/2013,275.86,,
Customer & People Services,Catering & Home Care,COMM,Supplies & Services,Provisions,G N BADLEY & SONS,08/07/2013,238.3,,
Customer & People Services,Catering & Home Care,COMM,Supplies & Services,Promotion Expenses,SIGNS EXPRESS (TELFORD),18/07/2013,1954,,
Customer & People Services,Catering & Home Care,COMM,Supplies & Services,Provisions,BIKOLD,19/07/2013,125.9,,
Customer & People Services,Catering & Home Care,COMM,Supplies & Services,Provisions,BIKOLD,19/07/2013,180.71,,
Customer & People Services,Catering & Home Care,COMM,Supplies & Services,Provisions,BIKOLD,19/07/2013,153.22,,
Customer & People Services,Catering & Home Care,COMM,Supplies & Services,Provisions,BIKOLD,19/07/2013,328.13,,
Customer & People Services,Catering & Home Care,COMM,Supplies & Services,Provisions,BIKOLD,19/07/2013,101.34,,
Customer & People Services,Catering & Home Care,COMM,Supplies & Services,Provisions,G N BADLEY & SONS,23/07/2013,253.43,,
Customer & People Services,Customer & Registrars Services,LMAA,Supplies & Services,Translation Services,VISS LTD,11/07/2013,125,,
Customer & People Services,Customer & Registrars Services,LMAA,Supplies & Services,Furniture - Purchase,CHRISBEON OFFICE SUPPLIES,22/07/2013,400,,
Customer & People Services,Customer & Registrars Services,LMAA,Supplies & Services,Printing - Other,TUDOR PRINT & SIGNS,25/07/2013,108,,
Customer & People Services,Customer & Registrars Services,LMAA,Supplies & Services,Protective Clothing,IMAGE@WORK LTD,23/07/2013,103.1,,
Customer & People Services,Customer & Registrars Services,LSAA,Supplies & Services,Equipment - Purchase,RAILEX PROJECTS LTD,11/07/2013,472.64,,
Customer & People Services,Customer & Registrars Services,LSAA,Supplies & Services,Equipment - Purchase,SPECIALIST COMPUTERS CENTRES PLC,22/07/2013,340.2,,
Customer & People Services,Customer & Registrars Services,LSAB,Premises-Related Expenditure,Grounds Maintenance - Cemeteries,P & W MAINTENANCE CONTRACTING LTD,16/07/2013,2440.42,,
Customer & People Services,Customer & Registrars Services,LSAB,Premises-Related Expenditure,Grounds Maintenance - Cemeteries,P & W MAINTENANCE CONTRACTING LTD,16/07/2013,4264.73,,
Customer & People Services,Customer & Registrars Services,LSAB,Supplies & Services,Funeral Services,HARRY EDWARDS & SONS FUNERAL DIRECTORS,01/07/2013,607,,
Customer & People Services,ICT,CBAB,Employees,Agency Supply Costs,EVOLUTION RECRUITMENT SOLUTIONS LTD,12/07/2013,637.5,,
Customer & People Services,ICT,CBAB,Employees,Agency Supply Costs,EVOLUTION RECRUITMENT SOLUTIONS LTD,04/07/2013,620.5,,
Customer & People Services,ICT,CBAB,Employees,Agency Supply Costs,EVOLUTION RECRUITMENT SOLUTIONS LTD,04/07/2013,680,,
Customer & People Services,ICT,CBAB,Employees,Agency Supply Costs,EVOLUTION RECRUITMENT SOLUTIONS LTD,12/07/2013,407,,
Customer & People Services,ICT,CBAB,Employees,Agency Supply Costs,EVOLUTION RECRUITMENT SOLUTIONS LTD,12/07/2013,612,,
Customer & People Services,ICT,CBAB,Employees,Agency Supply Costs,EVOLUTION RECRUITMENT SOLUTIONS LTD,23/07/2013,407,,
Customer & People Services,ICT,CBAB,Employees,Agency Supply Costs,EVOLUTION RECRUITMENT SOLUTIONS LTD,23/07/2013,527,,
Customer & People Services,ICT,CBAB,Employees,Agency Supply Costs,EVOLUTION RECRUITMENT SOLUTIONS LTD,23/07/2013,641.75,,
Customer & People Services,ICT,CBAB,Employees,Agency Supply Costs,EVOLUTION RECRUITMENT SOLUTIONS LTD,31/07/2013,697,,
Customer & People Services,ICT,CBAB,Employees,Agency Supply Costs,EVOLUTION RECRUITMENT SOLUTIONS LTD,31/07/2013,407,,
Customer & People Services,ICT,CBAB,Employees,Agency Supply Costs,EVOLUTION RECRUITMENT SOLUTIONS LTD,31/07/2013,595,,
Customer & People Services,ICT,CBAB,Employees,Agency Supply Costs,EVOLUTION RECRUITMENT SOLUTIONS LTD,12/07/2013,654.5,,
Customer & People Services,ICT,CBAB,Employees,Agency Supply Costs,EVOLUTION RECRUITMENT SOLUTIONS LTD,12/07/2013,409.75,,
Customer & People Services,ICT,CBAB,Employees,Agency Supply Costs,EVOLUTION RECRUITMENT SOLUTIONS LTD,12/07/2013,552.5,,
Customer & People Services,ICT,CBAF,Supplies & Services,Comp Hardware (Purch / Hire),ORANGE PERSONAL COMM SERVICES LTD,04/07/2013,303.83,,
Customer & People Services,ICT,CBAF,Supplies & Services,Comp Hardware (Purch / Hire),ORANGE PERSONAL COMM SERVICES LTD,04/07/2013,679.29,,
Customer & People Services,ICT,CBAF,Supplies & Services,Equipment - Purchase,WREKIN SERVICES LTD,10/07/2013,6638,,
Customer & People Services,ICT,CBAF,Supplies & Services,Equipment - Purchase,WREKIN SERVICES LTD,08/07/2013,553.32,,
Customer & People Services,ICT,CBAF,Supplies & Services,Equipment - Purchase,EUROPEAN ELECTRONIQUE LTD,08/07/2013,910,,
Customer & People Services,ICT,CBAG,Supplies & Services,Telephones,VIRGIN MEDIA BUSINESS,04/07/2013,9594.2,,
Customer & People Services,ICT,CBAG,Supplies & Services,Telephones,VIRGIN MEDIA BUSINESS,04/07/2013,9521.65,,
Customer & People Services,ICT,CBAG,Supplies & Services,Mobile Phones,ORANGE PERSONAL COMM SERVICES LTD,04/07/2013,1527.19,,
Customer & People Services,ICT,CBAG,Supplies & Services,Mobile Phones,ORANGE PERSONAL COMM SERVICES LTD,04/07/2013,19025.94,,
Customer & People Services,ICT,CBAG,Supplies & Services,Mobile Phones,ORANGE PERSONAL COMM SERVICES LTD,04/07/2013,717.83,,
Customer & People Services,ICT,CBAG,Supplies & Services,Mobile Phones,ORANGE PERSONAL COMM SERVICES LTD,04/07/2013,7768.44,,
Customer & People Services,ICT,CBAG,Supplies & Services,Other Expenses,PROCESS FLOWS UK LTD,12/07/2013,633.76,,
Customer & People Services,ICT,CBAG,Supplies & Services,Telephones,CCS MEDIA LIMITED,24/07/2013,470,,
Customer & People Services,ICT,CBAG,Supplies & Services,Mobile Phones,ORANGE PERSONAL COMM SERVICES LTD,12/07/2013,283.96,,
Customer & People Services,ICT,CBAG,Supplies & Services,Mobile Phones,ORANGE PERSONAL COMM SERVICES LTD,12/07/2013,4338.86,,
Customer & People Services,ICT,CBAH,Premises-Related Expenditure,R&M -Building Other,WREKIN SERVICES LTD,31/07/2013,307.5,,
Customer & People Services,ICT,CBAH,Premises-Related Expenditure,R&M -Building Other,WREKIN SERVICES LTD,31/07/2013,480,,
Customer & People Services,ICT,CBAH,Supplies & Services,External Computer Use,MICROSOFT LTD,23/07/2013,27063.5,,
Customer & People Services,ICT,CBAJ,Employees,Staff Training,EXPOTEL HOTEL RESERVATIONS LIMITED,18/07/2013,355.37,,
Customer & People Services,ICT,CBAJ,Employees,Staff Training,EXPOTEL HOTEL RESERVATIONS LIMITED,30/07/2013,1266.83,,
Customer & People Services,ICT,CBAJ,Supplies & Services,Comp Software (Purch / Hire),AQ LIMITED,04/07/2013,106.79,,
Customer & People Services,ICT,CBAJ,Supplies & Services,Comp Software (Purch / Hire),NCC ServicesLtd,10/07/2013,1106,,
Customer & People Services,ICT,CBAJ,Supplies & Services,Computer Hardware (Maint),CCS MEDIA LIMITED,15/07/2013,503.8,,
Customer & People Services,ICT,CBAJ,Supplies & Services,Telecomms,CAPITA IT SERVICES LIMITED,24/07/2013,6196,,
Customer & People Services,ICT,CBAJ,Supplies & Services,Comp Software (Purch / Hire),UNIT4 BUSINESS SOFTWARE LTD,29/07/2013,618.6,,
Customer & People Services,ICT,CBAJ,Supplies & Services,Comp Software (Purch / Hire),PHOENIX SOFTWARE LTD,17/07/2013,19135.48,,
Customer & People Services,ICT,CBAJ,Supplies & Services,Comp Software (Purch / Hire),PHOENIX SOFTWARE LTD,17/07/2013,8458.4,,
Customer & People Services,ICT,CBAJ,Supplies & Services,Comp Software (Purch / Hire),PHOENIX SOFTWARE LTD,17/07/2013,2244.26,,
Customer & People Services,ICT,CBAJ,Supplies & Services,Telecomms,Cable & Wireless Worldwide,18/07/2013,2595.72,,
Customer & People Services,ICT,CBAJ,Supplies & Services,Comp Hardware (Purch / Hire),SPECIALIST COMPUTERS CENTRES PLC,22/07/2013,806,,
Customer & People Services,ICT,CBAJ,Supplies & Services,Telephones,BRITISH TELECOMMUNICATIONS PLC,23/07/2013,3809.44,,
Customer & People Services,ICT,CBAJ,Supplies & Services,External Computer Use,MICROSOFT LTD,23/07/2013,27063.5,,
Customer & People Services,ICT,CBAJ,Transport-Related Expenditure,Transport,EXPOTEL HOTEL RESERVATIONS LIMITED,10/07/2013,115,,
Customer & People Services,ICT,CBAJ,Transport-Related Expenditure,Transport,EXPOTEL HOTEL RESERVATIONS LIMITED,09/07/2013,125.2,,
Customer & People Services,ICT,CBAL,Supplies & Services,Stationery,PREMIER PAPER GROUP LTD,09/07/2013,293.13,,
Customer & People Services,ICT,CBAL,Supplies & Services,Equipment - Hire,CIT VENDOR FINANCE (UK) LIMITED,12/07/2013,525.94,,
Customer & People Services,ICT,CBAL,Supplies & Services,Stationery,PREMIER PAPER GROUP LTD,18/07/2013,281.4,,
Customer & People Services,ICT,CBAL,Supplies & Services,Equipment - Hire,CIT VENDOR FINANCE (UK) LIMITED,23/07/2013,18638.52,,
Customer & People Services,ICT,CBAL,Supplies & Services,Stationery,PREMIER PAPER GROUP LTD,03/07/2013,586.25,,
Customer & People Services,ICT,CBAL,Supplies & Services,Stationery,PREMIER PAPER GROUP LTD,24/07/2013,305.48,,
Customer & People Services,ICT,WCAG,Capital Expenditure,Payments to Contractor,SPECIALIST COMPUTERS CENTRES PLC,03/07/2013,560,,
Customer & People Services,ICT,WCAG,Capital Expenditure,Payments to Contractor,SPECIALIST COMPUTERS CENTRES PLC,03/07/2013,840,,
Customer & People Services,ICT,WCAG,Capital Expenditure,Payments to Contractor,SPECIALIST COMPUTERS CENTRES PLC,03/07/2013,1432,,
Customer & People Services,ICT,WCAG,Capital Expenditure,Payments to Contractor,SPECIALIST COMPUTERS CENTRES PLC,03/07/2013,2656,,
Customer & People Services,ICT,WCAG,Capital Expenditure,Computer Hardware,CCS MEDIA LIMITED,09/07/2013,20416,,
Customer & People Services,ICT,WCAG,Capital Expenditure,Payments to Contractor,CCS MEDIA LIMITED,09/07/2013,1872.7,,
Customer & People Services,Library Services,LLAA,Supplies & Services,Libraries Book Fund,ULVERSCROFT LARGE PRINT BOOKS LIMITED,11/07/2013,111.68,,
Customer & People Services,Library Services,LLAA,Supplies & Services,Libraries Book Fund,ULVERSCROFT LARGE PRINT BOOKS LIMITED,11/07/2013,148,,
Customer & People Services,Library Services,LLAA,Supplies & Services,Libraries Book Fund,Magnadata International Ltd,11/07/2013,156.42,,
Customer & People Services,Library Services,LLAA,Supplies & Services,Libraries Book Fund,ULVERSCROFT LARGE PRINT BOOKS LIMITED,11/07/2013,107.04,,
Customer & People Services,Library Services,LLAA,Supplies & Services,Libraries Book Fund,ULVERSCROFT LARGE PRINT BOOKS LIMITED,11/07/2013,239.2,,
Customer & People Services,Library Services,LLAA,Supplies & Services,Libraries Book Fund,BERTRAMS LIBRARY SERVICES,11/07/2013,232.88,,
Customer & People Services,Library Services,LLAA,Supplies & Services,Libraries Book Fund,BERTRAMS LIBRARY SERVICES,11/07/2013,189.47,,
Customer & People Services,Library Services,LLAA,Supplies & Services,Libraries Book Fund,BERTRAMS LIBRARY SERVICES,11/07/2013,271.26,,
Customer & People Services,Library Services,LLAA,Supplies & Services,Libraries Book Fund,ULVERSCROFT LARGE PRINT BOOKS LIMITED,11/07/2013,127.04,,
Customer & People Services,Library Services,LLAA,Supplies & Services,Libraries Book Fund,BERTRAMS LIBRARY SERVICES,09/07/2013,220.28,,
Customer & People Services,Library Services,LLAA,Supplies & Services,Libraries Book Fund,LIBRARY MAGNA BOOKS LIMITED,09/07/2013,249.76,,
Customer & People Services,Library Services,LLAA,Supplies & Services,Libraries Book Fund,W F HOWES LTD,09/07/2013,187.2,,
Customer & People Services,Library Services,LLAA,Supplies & Services,Libraries Book Fund,LIBRARY MAGNA BOOKS LIMITED,09/07/2013,266.23,,
Customer & People Services,Library Services,LLAA,Supplies & Services,Libraries Book Fund,BERTRAMS LIBRARY SERVICES,09/07/2013,365.3,,
Customer & People Services,Library Services,LLAA,Supplies & Services,Libraries Book Fund,BERTRAMS LIBRARY SERVICES,09/07/2013,174.35,,
Customer & People Services,Library Services,LLAA,Supplies & Services,Libraries Book Fund,AUDIOGO LIMITED,05/07/2013,144.25,,
Customer & People Services,Library Services,LLAA,Supplies & Services,Libraries Book Fund,AUDIOGO LIMITED,05/07/2013,127.08,,
Customer & People Services,Library Services,LLAA,Supplies & Services,Libraries Book Fund,BERTRAMS LIBRARY SERVICES,29/07/2013,245.54,,
Customer & People Services,Library Services,LLAA,Supplies & Services,Libraries Book Fund,BERTRAMS LIBRARY SERVICES,29/07/2013,380.88,,
Customer & People Services,Library Services,LLAA,Supplies & Services,Libraries Book Fund,BERTRAMS LIBRARY SERVICES,29/07/2013,495.61,,
Customer & People Services,Library Services,LLAA,Supplies & Services,Libraries Book Fund,BERTRAMS LIBRARY SERVICES,29/07/2013,441.58,,
Customer & People Services,Library Services,LLAA,Supplies & Services,Libraries Book Fund,W F HOWES LTD,29/07/2013,187.2,,
Customer & People Services,Library Services,LLAA,Supplies & Services,Libraries Book Fund,BERTRAMS LIBRARY SERVICES,29/07/2013,230.22,,
Customer & People Services,Library Services,LLAA,Supplies & Services,Libraries Book Fund,W F HOWES LTD,29/07/2013,373.6,,
Customer & People Services,Library Services,LLAA,Supplies & Services,Libraries Book Fund,BERTRAMS LIBRARY SERVICES,30/07/2013,157.97,,
Customer & People Services,Library Services,LLAA,Supplies & Services,Libraries Book Fund,BERTRAMS LIBRARY SERVICES,30/07/2013,180.85,,
Customer & People Services,Library Services,LLAA,Supplies & Services,Libraries Book Fund,SHROPSHIRE COUNCIL,18/07/2013,-313.5,,
Customer & People Services,Library Services,LLAA,Supplies & Services,Libraries Book Fund,BERTRAMS LIBRARY SERVICES,18/07/2013,197.8,,
Customer & People Services,Library Services,LLAA,Supplies & Services,Libraries Book Fund,AUDIOGO LIMITED,18/07/2013,212.88,,
Customer & People Services,Library Services,LLAA,Supplies & Services,Libraries Book Fund,AUDIOGO LIMITED,18/07/2013,156.92,,
Customer & People Services,Library Services,LLAA,Supplies & Services,Libraries Book Fund,BERTRAMS LIBRARY SERVICES,18/07/2013,499.89,,
Customer & People Services,Library Services,LLAA,Supplies & Services,Libraries Book Fund,BERTRAMS LIBRARY SERVICES,18/07/2013,128.38,,
Customer & People Services,Library Services,LLAA,Supplies & Services,Libraries Book Fund,SHROPSHIRE COUNCIL,18/07/2013,502.5,,
Customer & People Services,Library Services,LLAA,Supplies & Services,Libraries Book Fund,BERTRAMS LIBRARY SERVICES,18/07/2013,436.32,,
Customer & People Services,Library Services,LLAA,Supplies & Services,Libraries Book Fund,AUDIOGO LIMITED,23/07/2013,231.75,,
Customer & People Services,Library Services,LLAA,Supplies & Services,Libraries Book Fund,BERTRAMS LIBRARY SERVICES,23/07/2013,153.31,,
Customer & People Services,Library Services,LLAA,Supplies & Services,Libraries Book Fund,BERTRAMS LIBRARY SERVICES,23/07/2013,167.78,,
Customer & People Services,Library Services,LLAA,Supplies & Services,Libraries Book Fund,BERTRAMS LIBRARY SERVICES,23/07/2013,116.64,,
Customer & People Services,Library Services,LLAA,Supplies & Services,Libraries Book Fund,BERTRAMS LIBRARY SERVICES,23/07/2013,304.21,,
Customer & People Services,Library Services,LLAA,Supplies & Services,Libraries Book Fund,OAKHILL PUBLISHING LTD,23/07/2013,332.5,,
Customer & People Services,Library Services,LLAA,Supplies & Services,Libraries Book Fund,AUDIOGO LIMITED,29/07/2013,127.08,,
Customer & People Services,People Services,NHAC,Employees,Professional Subs,CHARTERED INST OF PERSONNEL DEVELOPMENT,04/07/2013,138,,
Customer & People Services,People Services,NHAC,Employees,Professional Subs,CHARTERED INST OF PERSONNEL DEVELOPMENT,04/07/2013,138,,
Customer & People Services,People Services,NHAC,Employees,Professional Subs,CHARTERED INST OF PERSONNEL DEVELOPMENT,04/07/2013,138,,
Customer & People Services,People Services,NHAC,Supplies & Services,Subscriptions,CHARTERED INST OF PERSONNEL DEVELOPMENT,12/07/2013,138,,
Customer & People Services,People Services,NOAG,Supplies & Services,Refreshments Meetings,AUTOBAR VENDING SERVICES LTD,03/07/2013,159.36,,
Customer & People Services,People Services,NOAH,Supplies & Services,Computer Software (Maint),Oaresome LTD,31/07/2013,5000,,
Customer & People Services,People Services,NOAH,Supplies & Services,Consultants Fees,West Midlands Employers,22/07/2013,400,,
Customer & People Services,People Services,NOAT,Employees,Training Exp's (Facilitators),VIGOUR CLIENT SERVICES LTD,11/07/2013,750,,
Customer & People Services,People Services,NOAT,Employees,Staff Training,BAAF REGISTERED CHARITY,04/07/2013,798,,
Customer & People Services,People Services,NOAT,Employees,Course Fees,DARTINGTON HALL TRUST,11/07/2013,15000,,
Customer & People Services,People Services,NOAT,Employees,Course Fees,TELFORD OCCUPATIONAL HEALTH SERVICE LTD,09/07/2013,105,,
Customer & People Services,People Services,NOAT,Employees,Training Exp's (Facilitators),BLITHFIELD SAFETY TRAINING,09/07/2013,490,,
Customer & People Services,People Services,NOAT,Employees,Training Exp's (Facilitators),VIGOUR CLIENT SERVICES LTD,10/07/2013,375,,
Customer & People Services,People Services,NOAT,Employees,Training Exp's (Facilitators),VIGOUR CLIENT SERVICES LTD,10/07/2013,375,,
Customer & People Services,People Services,NOAT,Employees,Training Exp's (Facilitators),Independent Practice Teaching & Training (lPTT Ltd),08/07/2013,675,,
Customer & People Services,People Services,NOAT,Employees,Training Exp's (Facilitators),Independent Practice Teaching & Training (lPTT Ltd),12/07/2013,706.5,,
Customer & People Services,People Services,NOAT,Employees,Training Exp's (Facilitators),VIGOUR CLIENT SERVICES LTD,16/07/2013,750,,
Customer & People Services,People Services,NOAT,Employees,Training Exp's (Facilitators),SEFAT CONSULTANCY SERVICES,17/07/2013,372.67,,
Customer & People Services,People Services,NOAT,Employees,Training Exp's (Facilitators),VIGOUR CLIENT SERVICES LTD,30/07/2013,750,,
Customer & People Services,People Services,NOAT,Employees,Training Exp's (Facilitators),SHROPSHIRE PARTNERS IN CARE LTD,31/07/2013,1105,,
Customer & People Services,People Services,NOAT,Employees,Training Exp's (Facilitators),BLITHFIELD SAFETY TRAINING,22/07/2013,595,,
Customer & People Services,People Services,NOAT,Employees,Training Exp's (Facilitators),BLITHFIELD SAFETY TRAINING,22/07/2013,595,,
Customer & People Services,People Services,NOAT,Employees,Cont Prof Development,CITY & GUILDS,25/07/2013,318,,
Customer & People Services,People Services,NOAT,Employees,Training Exp's (Facilitators),VIGOUR CLIENT SERVICES LTD,23/07/2013,792,,
Customer & People Services,People Services,NOAT,Employees,Training Exp's (Facilitators),FIRE MARQUE,23/07/2013,250,,
Customer & People Services,Revenues,CBAK,Supplies & Services,Stationery,PREMIER PAPER GROUP LTD,03/07/2013,719.73,,
Customer & People Services,Revenues,CBAK,Supplies & Services,Stationery,IMPACT MAIL & PRINT LTD,10/07/2013,1030.2,,
Customer & People Services,Revenues,CBAK,Supplies & Services,Printing - Other,TAWS PRINTERS LTD,10/07/2013,141.2,,
Customer & People Services,Revenues,CBAK,Supplies & Services,Stationery,WEST MERCIA SUPPLIES Catalogue Supplies (None Utility),09/07/2013,256.2,,
Customer & People Services,Revenues,CBAK,Supplies & Services,Stationery,PREMIER PAPER GROUP LTD,02/07/2013,115.92,,
Customer & People Services,Revenues,CBAK,Supplies & Services,Printing - Other,TAWS PRINTERS LTD,29/07/2013,234.5,,
Customer & People Services,Revenues,CBAK,Supplies & Services,Stationery,IMPACT MAIL & PRINT LTD,16/07/2013,2494,,
Customer & People Services,Revenues,CBAK,Supplies & Services,Computer Hardware (Maint),NEOPOST LIMITED,31/07/2013,7858.06,,
Customer & People Services,Revenues,CBAK,Supplies & Services,Printing - Print Room,XEROX (UK) LTD,17/07/2013,2917.41,,
Customer & People Services,Revenues,CBAK,Supplies & Services,Printing - Print Room,XEROX (UK) LTD,17/07/2013,124.71,,
Customer & People Services,Revenues,CBAK,Supplies & Services,Printing - Print Room,XEROX (UK) LTD,17/07/2013,124.71,,
Customer & People Services,Revenues,CBAK,Supplies & Services,Printing - Print Room,XEROX (UK) LTD,17/07/2013,2370.61,,
Customer & People Services,Revenues,CBAK,Supplies & Services,Printing - Print Room,XEROX (UK) LTD,31/07/2013,704.77,,
Customer & People Services,Revenues,CBAK,Supplies & Services,Printing - Print Room,XEROX (UK) LTD,31/07/2013,457.57,,
Customer & People Services,Revenues,CBAK,Supplies & Services,Printing - Print Room,XEROX (UK) LTD,31/07/2013,683.97,,
Customer & People Services,Revenues,CBAK,Supplies & Services,Printing - Print Room,XEROX (UK) LTD,31/07/2013,714.44,,
Customer & People Services,Revenues,CBAK,Supplies & Services,Printing - Print Room,XEROX (UK) LTD,31/07/2013,1523.82,,
Customer & People Services,Revenues,CBAK,Supplies & Services,Printing - Other,THE FINISHING POINT LTD,22/07/2013,135,,
Customer & People Services,Revenues,CBAK,Supplies & Services,Printing - Other,XEROX OFFICE SUPPLIES 4202,22/07/2013,192.64,,
Customer & People Services,Revenues,CBAK,Supplies & Services,Printing - Print Room,XEROX (UK) LTD,23/07/2013,272.43,,
Customer & People Services,Revenues,CBAK,Supplies & Services,Printing - Print Room,XEROX (UK) LTD,23/07/2013,2438.04,,
Customer & People Services,Revenues,CBAK,Supplies & Services,Printing - Print Room,XEROX (UK) LTD,23/07/2013,121.93,,
Customer & People Services,Revenues,CBAK,Supplies & Services,Printing - Print Room,XEROX (UK) LTD,23/07/2013,1670,,
Customer & People Services,Revenues,CBAK,Supplies & Services,Printing - Print Room,XEROX (UK) LTD,23/07/2013,17245.8,,
Customer & People Services,Revenues,CBAK,Supplies & Services,Printing - Print Room,SPECIALIST COMPUTERS CENTRES PLC,24/07/2013,14265.83,,
Customer & People Services,Revenues,COAB,Supplies & Services,Computer Software (Maint),PITNEY BOWES LTD,02/07/2013,150,,
Customer & People Services,Revenues,COAB,Supplies & Services,Postages,FREELANCE BUSINESS ASSOCIATES,17/07/2013,315,,
Customer & People Services,Revenues,COAB,Supplies & Services,Postages,FREELANCE BUSINESS ASSOCIATES,17/07/2013,300,,
Customer & People Services,Revenues,COAC,Supplies & Services,Postages,FRANCOTYP-POSTALIA LIMITED,17/07/2013,5072,,
Customer & People Services,Revenues,COAC,Supplies & Services,Printing - Print Room,PITNEY BOWES LTD,26/07/2013,175,,
Customer & People Services,Revenues,LRTC,Supplies & Services,Stationery,NORTHGATE INFORMATION SOLUTIONS UK LTD,09/07/2013,1370.8,,
Customer & People Services,Revenues,LRTD,Employees,Professional Subs,IRRV,08/07/2013,146,,
Customer & People Services,Revenues,LRTD,Third Party Payments,Other Government - Services,NORTHGATE INFORMATION SOLUTIONS UK LTD,10/07/2013,417.42,,
"Development, Business & Housing","AD - Development, Business & Housing",AEAJ,Supplies & Services,Web Services,The Web Orchard.com,01/07/2013,140,,
"Development, Business & Housing","AD - Development, Business & Housing",AEAJ,Supplies & Services,Business Sector Development,UNIVERSITY OF WOLVERHAMPTON,01/07/2013,181,,
"Development, Business & Housing","AD - Development, Business & Housing",AEAJ,Supplies & Services,Printing - Other,MARKETING AT THE MILL,04/07/2013,925,,
"Development, Business & Housing","AD - Development, Business & Housing",AEAJ,Supplies & Services,Printing - Other,TUDOR PRINT & SIGNS,26/07/2013,830,,
"Development, Business & Housing","AD - Development, Business & Housing",WCAN,Capital Expenditure,Site Purchase,Parry Carver Solicitors,04/07/2013,2000,,
"Development, Business & Housing","AD - Development, Business & Housing",WCAN,Capital Expenditure,Payments to Contractor,KNOWLES,16/07/2013,175,,
"Development, Business & Housing","AD - Development, Business & Housing",WCAR,Capital Expenditure,Payments to Contractor,MCPHILLIPS (WELLINGTON) LTD,24/07/2013,16236.13,,
"Development, Business & Housing","AD - Development, Business & Housing",WCAR,Capital Expenditure,Payments to Contractor,VPS (UK) LTD,17/07/2013,210,,
"Development, Business & Housing",Building Schools for the Future (BSF),GFAA,Premises-Related Expenditure,Gas,West Mercia Energy (WME),30/07/2013,21270.28,,
"Development, Business & Housing",Building Schools for the Future (BSF),GFAA,Premises-Related Expenditure,Electricity,West Mercia Energy (WME),30/07/2013,695.66,,
"Development, Business & Housing",Building Schools for the Future (BSF),GFAA,Premises-Related Expenditure,Electricity,West Mercia Energy (WME),30/07/2013,752.76,,
"Development, Business & Housing",Building Schools for the Future (BSF),GFAA,Premises-Related Expenditure,Electricity,West Mercia Energy (WME),30/07/2013,5523.39,,
"Development, Business & Housing",Building Schools for the Future (BSF),GFAA,Premises-Related Expenditure,Electricity,West Mercia Energy (WME),30/07/2013,3554.93,,
"Development, Business & Housing",Building Schools for the Future (BSF),GFAA,Supplies & Services,Legal,WARD HADAWAY SOLICITORS,22/07/2013,335.3,,
"Development, Business & Housing",Building Schools for the Future (BSF),GFAA,Supplies & Services,Consultants Fees,GRANT THORNTON UK LLP,30/07/2013,6000,,
"Development, Business & Housing",Building Schools for the Future (BSF),GFAA,Supplies & Services,Legal,WARD HADAWAY SOLICITORS,18/07/2013,6898.3,,
"Development, Business & Housing",Building Schools for the Future (BSF),WGAD,Capital Expenditure,Payments to Contractor,CHUBB FIRE & SECURITY LTD,04/07/2013,300,,
"Development, Business & Housing",Building Schools for the Future (BSF),WGAD,Capital Expenditure,Payments to Contractor,HOARE LEA CONSULTING ENGINEERS,04/07/2013,1325,,
"Development, Business & Housing",Building Schools for the Future (BSF),WGAD,Capital Expenditure,Payments to Contractor,KIER CONSTRUCTION LTD,25/07/2013,20939.12,,
"Development, Business & Housing",Building Schools for the Future (BSF),WGAF,Capital Expenditure,Legal Fees,WARD HADAWAY SOLICITORS,05/07/2013,118,,
"Development, Business & Housing",Building Schools for the Future (BSF),WGAG,Capital Expenditure,Payments to Contractor,BRITISH GAS BUSINESS (ELECTRICITY),04/07/2013,123.15,,
"Development, Business & Housing",Building Schools for the Future (BSF),WGAG,Capital Expenditure,Payments to Contractor,VPS (UK) LTD,10/07/2013,262.5,,
"Development, Business & Housing",Building Schools for the Future (BSF),WGAG,Capital Expenditure,Payments to Contractor,KIER CONSTRUCTION LTD,26/07/2013,1337539.57,,
"Development, Business & Housing",Building Schools for the Future (BSF),WGAG,Capital Expenditure,External Professional Fees,JACOBS UK LIMITED,24/07/2013,3726.25,,
"Development, Business & Housing",Building Schools for the Future (BSF),WGAG,Capital Expenditure,Payments to Contractor,BRITISH GAS BUSINESS (ELECTRICITY),24/07/2013,127.73,,
"Development, Business & Housing",Building Schools for the Future (BSF),WGAH,Capital Expenditure,Legal Fees,WARD HADAWAY SOLICITORS,05/07/2013,2565.8,,
"Development, Business & Housing",Building Schools for the Future (BSF),WGAH,Capital Expenditure,Legal Fees,WARD HADAWAY SOLICITORS,05/07/2013,140.4,,
"Development, Business & Housing",Building Schools for the Future (BSF),WGAJ,Capital Expenditure,Payments to Contractor,Shepherd Construction Ltd,26/07/2013,499293,,
"Development, Business & Housing",Building Schools for the Future (BSF),WGAL,Capital Expenditure,Legal Fees,WARD HADAWAY SOLICITORS,05/07/2013,1385.1,,
"Development, Business & Housing",Business & Development Planning,AEAB,Supplies & Services,Marketing & Publicity,CORE,01/07/2013,5800,,
"Development, Business & Housing",Business & Development Planning,AEAB,Supplies & Services,Marketing & Publicity,SHROPSHIRE NEWSPAPERS LIMITED,01/07/2013,500,,
"Development, Business & Housing",Business & Development Planning,AEAB,Supplies & Services,Marketing & Publicity,BRIGHTER BUSINESS SOLUTIONS (UK) LTD,09/07/2013,125,,
"Development, Business & Housing",Business & Development Planning,AEAB,Supplies & Services,Marketing & Publicity,CORE,15/07/2013,7910,,
"Development, Business & Housing",Business & Development Planning,AEAG,Supplies & Services,Marketing & Publicity,Julie Grady Media Ltd,09/07/2013,2923,,
"Development, Business & Housing",Business & Development Planning,AEAG,Supplies & Services,Marketing & Publicity,Julie Grady Media Ltd,09/07/2013,294,,
"Development, Business & Housing",Business & Development Planning,AEAG,Supplies & Services,Marketing & Publicity,Julie Grady Media Ltd,09/07/2013,295,,
"Development, Business & Housing",Business & Development Planning,AEAG,Supplies & Services,Marketing & Publicity,Julie Grady Media Ltd,09/07/2013,500,,
"Development, Business & Housing",Business & Development Planning,AEAG,Supplies & Services,Marketing & Publicity,Zen Communications (UK) Ltd,09/07/2013,2000,,
"Development, Business & Housing",Business & Development Planning,AEAG,Supplies & Services,Marketing & Publicity,Julie Grady Media Ltd,08/07/2013,550,,
"Development, Business & Housing",Business & Development Planning,AEAG,Supplies & Services,Marketing & Publicity,METRO PHOTOGRAPHIC,29/07/2013,240,,
"Development, Business & Housing",Business & Development Planning,AEAX,Supplies & Services,Other Grants (Expenses),Good2Great Ltd,23/07/2013,6650,,
"Development, Business & Housing",Business & Development Planning,CEAB,Premises-Related Expenditure,Grounds Maintenance - Other,TELFORD & WREKIN SERVICES LTD,04/07/2013,8618.75,,
"Development, Business & Housing",Business & Development Planning,DDAK,Supplies & Services,Subscriptions,URBAN DESIGN GROUP,25/07/2013,500,,
"Development, Business & Housing",Business & Development Planning,EWAJ,Employees,Professional Subs,R T P I,01/07/2013,270,,
"Development, Business & Housing",Business & Development Planning,EWAJ,Employees,Professional Subs,R T P I,10/07/2013,130,,
"Development, Business & Housing",Business & Development Planning,EWAJ,Supplies & Services,Research Surveys,PELL FRISCHMANN,01/07/2013,4265.5,,
"Development, Business & Housing",Business & Development Planning,EWAJ,Supplies & Services,Stationery,STANFORD MARSH FINANCE LTD,05/07/2013,106.56,,
"Development, Business & Housing",Business & Development Planning,EWAJ,Supplies & Services,Legal Expenses,REDACTED PERSONAL INFORMTION,10/07/2013,900,,
"Development, Business & Housing",Business & Development Planning,EWAJ,Supplies & Services,Research Surveys, WHITE YOUNG GREEN CONSULTING LTD,10/07/2013,12182.5,,
"Development, Business & Housing",Business & Development Planning,EWAJ,Supplies & Services,Research Surveys,WYG Environment Planning Transport Ltd,19/07/2013,12182.5,,
"Development, Business & Housing",Business & Development Planning,EWAJ,Supplies & Services,Research Surveys,COMMUNITY FOREST TRUST,31/07/2013,9300,,
"Development, Business & Housing",Business & Development Planning,WDAF,Capital Expenditure,Other Capital Expenditure,DMW ENVIRONMENTAL SAFETY LTD,01/07/2013,141,,
"Development, Business & Housing",Business & Development Planning,WDAF,Capital Expenditure,Other Capital Expenditure,THREE PINES BUILDING CO LTD,01/07/2013,3955.06,,
"Development, Business & Housing",Business & Development Planning,WDAF,Capital Expenditure,Other Capital Expenditure,DMW ENVIRONMENTAL SAFETY LTD,01/07/2013,102,,
"Development, Business & Housing",Business & Development Planning,WDAF,Capital Expenditure,Other Capital Expenditure,DMW ENVIRONMENTAL SAFETY LTD,01/07/2013,219,,
"Development, Business & Housing",Business & Development Planning,WDAF,Capital Expenditure,Other Capital Expenditure,Onsite,01/07/2013,204,,
"Development, Business & Housing",Business & Development Planning,WDAF,Capital Expenditure,Other Capital Expenditure,Dolphin Lifts,01/07/2013,5120,,
"Development, Business & Housing",Business & Development Planning,WDAF,Capital Expenditure,Other Capital Expenditure,THREE PINES BUILDING CO LTD,01/07/2013,3550.7,,
"Development, Business & Housing",Business & Development Planning,WDAF,Capital Expenditure,Other Capital Expenditure,M J PERRINS,01/07/2013,4478.5,,
"Development, Business & Housing",Business & Development Planning,WDAF,Capital Expenditure,Other Capital Expenditure,M J PERRINS,01/07/2013,4127.65,,
"Development, Business & Housing",Business & Development Planning,WDAF,Capital Expenditure,Other Capital Expenditure,DMW ENVIRONMENTAL SAFETY LTD,01/07/2013,117.5,,
"Development, Business & Housing",Business & Development Planning,WDAF,Capital Expenditure,Other Capital Expenditure,THE WREKIN HOUSING TRUST,11/07/2013,30000,,
"Development, Business & Housing",Business & Development Planning,WDAF,Capital Expenditure,Other Capital Expenditure,GROUND INVESTIGATION & PILING LTD,04/07/2013,1115,,
"Development, Business & Housing",Business & Development Planning,WDAF,Capital Expenditure,Other Capital Expenditure,BOURNVILLE VILLAGE TRUST,04/07/2013,1830.8,,
"Development, Business & Housing",Business & Development Planning,WDAF,Capital Expenditure,Other Capital Expenditure,M J PERRINS,05/07/2013,5075.03,,
"Development, Business & Housing",Business & Development Planning,WDAF,Capital Expenditure,Other Capital Expenditure,MP BUILDING & PLUMBING LTD,05/07/2013,1000,,
"Development, Business & Housing",Business & Development Planning,WDAF,Capital Expenditure,Other Capital Expenditure,DMW ENVIRONMENTAL SAFETY LTD,05/07/2013,111,,
"Development, Business & Housing",Business & Development Planning,WDAF,Capital Expenditure,Other Capital Expenditure,DMW ENVIRONMENTAL SAFETY LTD,09/07/2013,150,,
"Development, Business & Housing",Business & Development Planning,WDAF,Capital Expenditure,Other Capital Expenditure,AIDS & ADAPTIONS LTD,09/07/2013,7660.05,,
"Development, Business & Housing",Business & Development Planning,WDAF,Capital Expenditure,Other Capital Expenditure,MP BUILDING & PLUMBING LTD,09/07/2013,198,,
"Development, Business & Housing",Business & Development Planning,WDAF,Capital Expenditure,Other Capital Expenditure,Onsite,09/07/2013,180,,
"Development, Business & Housing",Business & Development Planning,WDAF,Capital Expenditure,Other Capital Expenditure,STANNAH LIFT SERVICES LTD,09/07/2013,6097,,
"Development, Business & Housing",Business & Development Planning,WDAF,Capital Expenditure,Other Capital Expenditure,PRISM MEDICAL WESTHOLME DIVISION,25/07/2013,2425.45,,
"Development, Business & Housing",Business & Development Planning,WDAF,Capital Expenditure,Other Capital Expenditure,MARTIN EVANS CONSTRUCTION LTD,25/07/2013,210,,
"Development, Business & Housing",Business & Development Planning,WDAF,Capital Expenditure,Other Capital Expenditure,PRISM MEDICAL WESTHOLME DIVISION,25/07/2013,2903.5,,
"Development, Business & Housing",Business & Development Planning,WDAF,Capital Expenditure,Other Capital Expenditure,MARTIN EVANS CONSTRUCTION LTD,25/07/2013,4184.28,,
"Development, Business & Housing",Business & Development Planning,WDAF,Capital Expenditure,Other Capital Expenditure,DMW ENVIRONMENTAL SAFETY LTD,25/07/2013,102,,
"Development, Business & Housing",Business & Development Planning,WDAF,Capital Expenditure,Other Capital Expenditure,AIDS & ADAPTIONS LTD,25/07/2013,3999.97,,
"Development, Business & Housing",Business & Development Planning,WDAF,Capital Expenditure,Other Capital Expenditure,DMW ENVIRONMENTAL SAFETY LTD,25/07/2013,102,,
"Development, Business & Housing",Business & Development Planning,WDAF,Capital Expenditure,Other Capital Expenditure,DMW ENVIRONMENTAL SAFETY LTD,25/07/2013,102,,
"Development, Business & Housing",Business & Development Planning,WDAF,Capital Expenditure,Other Capital Expenditure,DMW ENVIRONMENTAL SAFETY LTD,25/07/2013,102,,
"Development, Business & Housing",Business & Development Planning,WDAF,Capital Expenditure,Other Capital Expenditure,R E BROWN BUILDERS LIMITED,17/07/2013,5231.29,,
"Development, Business & Housing",Business & Development Planning,WDAF,Capital Expenditure,Other Capital Expenditure,TOTAL HYGIENE LIMITED,17/07/2013,3115,,
"Development, Business & Housing",Business & Development Planning,WDAF,Capital Expenditure,Other Capital Expenditure,DMW ENVIRONMENTAL SAFETY LTD,17/07/2013,102,,
"Development, Business & Housing",Business & Development Planning,WDAF,Capital Expenditure,Other Capital Expenditure,ROSEMONT BUILDING CONTRACTORS,17/07/2013,3914.64,,
"Development, Business & Housing",Business & Development Planning,WDAF,Capital Expenditure,Other Capital Expenditure,STANNAH LIFT SERVICES LTD,17/07/2013,1295,,
"Development, Business & Housing",Business & Development Planning,WDAF,Capital Expenditure,Other Capital Expenditure,STANNAH LIFT SERVICES LTD,17/07/2013,1596,,
"Development, Business & Housing",Business & Development Planning,WDAF,Capital Expenditure,Other Capital Expenditure,STANNAH LIFT SERVICES LTD,17/07/2013,1521,,
"Development, Business & Housing",Business & Development Planning,WDAF,Capital Expenditure,Other Capital Expenditure,STANNAH LIFT SERVICES LTD,17/07/2013,1298.14,,
"Development, Business & Housing",Business & Development Planning,WDAF,Capital Expenditure,Other Capital Expenditure,THE WREKIN HOUSING TRUST,17/07/2013,1600,,
"Development, Business & Housing",Business & Development Planning,WDAF,Capital Expenditure,Other Capital Expenditure,THE WREKIN HOUSING TRUST,17/07/2013,1600,,
"Development, Business & Housing",Business & Development Planning,WDAF,Capital Expenditure,Other Capital Expenditure,THE WREKIN HOUSING TRUST,17/07/2013,1600,,
"Development, Business & Housing",Business & Development Planning,WDAF,Capital Expenditure,Other Capital Expenditure,THE WREKIN HOUSING TRUST,17/07/2013,780,,
"Development, Business & Housing",Business & Development Planning,WDAF,Capital Expenditure,Other Capital Expenditure,THE WREKIN HOUSING TRUST,17/07/2013,780,,
"Development, Business & Housing",Business & Development Planning,WDAF,Capital Expenditure,Other Capital Expenditure,THE WREKIN HOUSING TRUST,17/07/2013,1600,,
"Development, Business & Housing",Business & Development Planning,WDAF,Capital Expenditure,Other Capital Expenditure,R E BROWN BUILDERS LIMITED,17/07/2013,4096.52,,
"Development, Business & Housing",Business & Development Planning,WDAF,Capital Expenditure,Other Capital Expenditure,ROSEMONT BUILDING CONTRACTORS,31/07/2013,7856.83,,
"Development, Business & Housing",Business & Development Planning,WDAF,Capital Expenditure,Other Capital Expenditure,MP BUILDING & PLUMBING LTD,31/07/2013,362,,
"Development, Business & Housing",Business & Development Planning,WDAF,Capital Expenditure,Other Capital Expenditure,BUZZ ELECTRICAL CONTRACTORS,31/07/2013,1954,,
"Development, Business & Housing",Business & Development Planning,WDAF,Capital Expenditure,Other Capital Expenditure,MP BUILDING & PLUMBING LTD,31/07/2013,980,,
"Development, Business & Housing",Business & Development Planning,WDAF,Capital Expenditure,Other Capital Expenditure,P CRUMP,31/07/2013,5826.95,,
"Development, Business & Housing",Business & Development Planning,WDAK,Employees,Employee Costs Recharged,PARK LANE CENTRE,17/07/2013,150,,
"Development, Business & Housing",Business & Development Planning,WDAK,Employees,Employee Costs Recharged,PARK LANE CENTRE,17/07/2013,1400,,
"Development, Business & Housing",Business & Development Planning,WDAK,Premises-Related Expenditure,Non Domestic Rates,PARK LANE CENTRE,17/07/2013,352.5,,
"Development, Business & Housing",Business & Development Planning,WDAK,Premises-Related Expenditure,Non Domestic Rates,PARK LANE CENTRE,17/07/2013,261.5,,
"Development, Business & Housing",Business & Development Planning,WDST,Capital Expenditure,Payments to Contractor,GRANVILLE CONSTRUCTION & MAINTENANCE LTD,01/07/2013,3354,,
"Development, Business & Housing",Business & Development Planning,WDST,Capital Expenditure,Purchase of Buildings,MARTIN KAYE,11/07/2013,1200,,
"Development, Business & Housing",Business & Development Planning,WDST,Capital Expenditure,Payments to Contractor,GRANVILLE CONSTRUCTION & MAINTENANCE LTD,04/07/2013,843.78,,
"Development, Business & Housing",Business & Development Planning,WDST,Capital Expenditure,Payments to Contractor,GRANVILLE CONSTRUCTION & MAINTENANCE LTD,04/07/2013,2835,,
"Development, Business & Housing",Business & Development Planning,WDST,Capital Expenditure,Purchase of Buildings,MARTIN KAYE,04/07/2013,55525,,
"Development, Business & Housing",Business & Development Planning,WDST,Capital Expenditure,Purchase of Buildings,MARTIN KAYE,09/07/2013,75800,,
"Development, Business & Housing",Business & Development Planning,WDST,Capital Expenditure,Payments to Contractor,PAVE AWAYS LTD,09/07/2013,74453.89,,
"Development, Business & Housing",Business & Development Planning,WDST,Capital Expenditure,External Professional Fees,Spencer Hustwick Surveyors Ltd,16/07/2013,350,,
"Development, Business & Housing",Business & Development Planning,WDST,Capital Expenditure,Purchase of Buildings,MARTIN KAYE,16/07/2013,1366.47,,
"Development, Business & Housing",Business & Development Planning,WDST,Capital Expenditure,External Professional Fees,BUSINESS WATCH GUARDING LIMITED,17/07/2013,2763.6,,
"Development, Business & Housing",Business & Development Planning,WDST,Capital Expenditure,Payments to Contractor,GRANVILLE CONSTRUCTION & MAINTENANCE LTD,31/07/2013,4928,,
"Development, Business & Housing",Business & Development Planning,WDST,Capital Expenditure,Fixtures & Fittings & Equipment,WICKSTEED LEISURE LTD,31/07/2013,550,,
"Development, Business & Housing",Business & Development Planning,WDST,Capital Expenditure,Payments to Contractor,PAVE AWAYS LTD,22/07/2013,104108.78,,
"Development, Business & Housing",Development Management,DDAC,Supplies & Services,Legal Expenses,Peter Brett Associates LLP,25/07/2013,12923.45,,
"Development, Business & Housing",Development Management,DDAC,Supplies & Services,Legal Expenses,Peter Brett Associates LLP,25/07/2013,18383.52,,
"Development, Business & Housing",Development Management,DDAC,Supplies & Services,Legal Expenses,Peter Brett Associates LLP,25/07/2013,24522.77,,
"Development, Business & Housing",Development Management,DDAG,Supplies & Services,Print & Data Services (Print Room) - Charges,RESOLUTION DATA MANAGEMENT LTD,23/07/2013,126.99,,
"Development, Business & Housing",Facilities Management and Cleaning Services,ASAB,Supplies & Services,Security Services,BUSINESS WATCH GUARDING LIMITED,11/07/2013,1220,,
"Development, Business & Housing",Facilities Management and Cleaning Services,ASAB,Supplies & Services,Other Expenses,WELLINGTON TOWN COUNCIL 05715466,25/07/2013,183.36,,
"Development, Business & Housing",Facilities Management and Cleaning Services,CFAA,Premises-Related Expenditure,Grounds Maintenance - Other,TELFORD & WREKIN SERVICES LTD,24/07/2013,205.24,,
"Development, Business & Housing",Facilities Management and Cleaning Services,CFAA,Premises-Related Expenditure,Grounds Maintenance - Other,TELFORD & WREKIN SERVICES LTD,17/07/2013,410.48,,
"Development, Business & Housing",Facilities Management and Cleaning Services,CFAA,Premises-Related Expenditure,Grounds Maintenance - Other,TELFORD & WREKIN SERVICES LTD,17/07/2013,200,,
"Development, Business & Housing",Facilities Management and Cleaning Services,CFAA,Premises-Related Expenditure,Grounds Maintenance - Other,TELFORD & WREKIN SERVICES LTD,17/07/2013,6069.16,,
"Development, Business & Housing",Facilities Management and Cleaning Services,CFAA,Transport-Related Expenditure,Licences,PVSL,01/07/2013,178.34,,
"Development, Business & Housing",Facilities Management and Cleaning Services,CFAD,Supplies & Services,Security Services,BUSINESS WATCH GUARDING LIMITED,15/07/2013,420,,
"Development, Business & Housing",Facilities Management and Cleaning Services,CFAD,Supplies & Services,Security Services,BUSINESS WATCH GUARDING LIMITED,15/07/2013,17924.19,,
"Development, Business & Housing",Facilities Management and Cleaning Services,CFAM,Premises-Related Expenditure,R&M -Buildings DLO Charge,D P WILCOX & SON,01/07/2013,140,,
"Development, Business & Housing",Facilities Management and Cleaning Services,CFAS,Supplies & Services,Mobile Phones,ORANGE PCS LTD,04/07/2013,135,,
"Development, Business & Housing",Facilities Management and Cleaning Services,CFAV,Capital Financing Costs,Unitary Charge,PYRAMID SCHOOLS (HADLEY) LTD,08/07/2013,802885.88,,
"Development, Business & Housing",Facilities Management and Cleaning Services,CFAV,Capital Financing Costs,Operating Notice of Change � Facilities Management Charge,PYRAMID SCHOOLS (HADLEY) LTD,09/07/2013,864.19,,
"Development, Business & Housing",Facilities Management and Cleaning Services,CFAV,Capital Financing Costs,Operating Notice of Change � Lifecycle Charge,PYRAMID SCHOOLS (HADLEY) LTD,09/07/2013,864.19,,
"Development, Business & Housing",Facilities Management and Cleaning Services,CFAV,Capital Financing Costs,Utility Charge,PYRAMID SCHOOLS (HADLEY) LTD,19/07/2013,802885.88,,
"Development, Business & Housing",Facilities Management and Cleaning Services,CFAV,Capital Financing Costs,Utility Charge,PYRAMID SCHOOLS (HADLEY) LTD,19/07/2013,-206.94,,
"Development, Business & Housing",Facilities Management and Cleaning Services,CFAV,Capital Financing Costs,Construction EWoC � Facilities Management Charge,PYRAMID SCHOOLS (HADLEY) LTD,08/07/2013,1314.8,,
"Development, Business & Housing",Facilities Management and Cleaning Services,CFAV,Capital Financing Costs,Construction EWoC � Facilities Management Charge,PYRAMID SCHOOLS (HADLEY) LTD,19/07/2013,1314.8,,
"Development, Business & Housing",Facilities Management and Cleaning Services,CFAY,Premises-Related Expenditure,R&M -Buildings DLO Charge,STROMA CERIFICATION LTD,03/07/2013,107.52,,
"Development, Business & Housing",Facilities Management and Cleaning Services,CFAY,Premises-Related Expenditure,R&M -Buildings DLO Charge,STROMA CERIFICATION LTD,09/07/2013,697.92,,
"Development, Business & Housing",Facilities Management and Cleaning Services,CFAY,Premises-Related Expenditure,R&M -Buildings DLO Charge,WHITEFOOTS LIMITED,15/07/2013,114.18,,
"Development, Business & Housing",Facilities Management and Cleaning Services,CFAY,Premises-Related Expenditure,R&M -Buildings DLO Charge,SHROPSHIRE HEATING SERVICES LTD,10/07/2013,209.07,,
"Development, Business & Housing",Facilities Management and Cleaning Services,CFAY,Premises-Related Expenditure,R&M -Buildings DLO Charge,SHROPSHIRE HEATING SERVICES LTD,10/07/2013,-209.07,,
"Development, Business & Housing",Facilities Management and Cleaning Services,CFAY,Premises-Related Expenditure,R&M -Buildings DLO Charge,FIRE MARQUE,24/07/2013,250,,
"Development, Business & Housing",Facilities Management and Cleaning Services,CFAY,Premises-Related Expenditure,R&M -Buildings DLO Charge,WHITEFOOTS LIMITED,25/07/2013,110.97,,
"Development, Business & Housing",Facilities Management and Cleaning Services,CFAY,Premises-Related Expenditure,R&M -Buildings DLO Charge,SHROPSHIRE HEATING SERVICES LTD,31/07/2013,102,,
"Development, Business & Housing",Facilities Management and Cleaning Services,CFAY,Premises-Related Expenditure,R&M -Buildings DLO Charge,TELFORD & WREKIN SERVICES LTD,17/07/2013,2742.11,,
"Development, Business & Housing",Facilities Management and Cleaning Services,CFAY,Premises-Related Expenditure,R&M -Buildings DLO Charge,FIRE MARQUE,17/07/2013,250,,
"Development, Business & Housing",Facilities Management and Cleaning Services,CFAY,Premises-Related Expenditure,R&M -Buildings DLO Charge,DOORTECH,17/07/2013,192.4,,
"Development, Business & Housing",Facilities Management and Cleaning Services,CFAY,Premises-Related Expenditure,R&M -Buildings DLO Charge,TELFORD & WREKIN SERVICES LTD,17/07/2013,160,,
"Development, Business & Housing",Facilities Management and Cleaning Services,CFAY,Premises-Related Expenditure,R&M -Buildings DLO Charge,SHIFNAL RECYCLING SERVICES,23/07/2013,140,,
"Development, Business & Housing",Facilities Management and Cleaning Services,CFAY,Premises-Related Expenditure,R&M -Buildings DLO Charge,SDT ELECTRICAL LTD,26/07/2013,2005,,
"Development, Business & Housing",Facilities Management and Cleaning Services,CFAY,Premises-Related Expenditure,R&M -Buildings DLO Charge,SDT ELECTRICAL LTD,26/07/2013,180,,
"Development, Business & Housing",Facilities Management and Cleaning Services,CFAY,Premises-Related Expenditure,R&M -Buildings DLO Charge,SDT ELECTRICAL LTD,26/07/2013,318.55,,
"Development, Business & Housing",Facilities Management and Cleaning Services,CFAY,Premises-Related Expenditure,R&M -Buildings DLO Charge,SDT ELECTRICAL LTD,26/07/2013,280,,
"Development, Business & Housing",Facilities Management and Cleaning Services,CFAY,Premises-Related Expenditure,R&M -Buildings DLO Charge,SDT ELECTRICAL LTD,26/07/2013,238.11,,
"Development, Business & Housing",Facilities Management and Cleaning Services,CFAY,Premises-Related Expenditure,R&M -Buildings DLO Charge,SDT ELECTRICAL LTD,26/07/2013,150,,
"Development, Business & Housing",Facilities Management and Cleaning Services,CFAY,Premises-Related Expenditure,R&M -Buildings DLO Charge,SDT ELECTRICAL LTD,26/07/2013,195,,
"Development, Business & Housing",Facilities Management and Cleaning Services,CFAY,Premises-Related Expenditure,R&M -Buildings DLO Charge,DOORTECH,23/07/2013,292.35,,
"Development, Business & Housing",Facilities Management and Cleaning Services,CLCM,Premises-Related Expenditure,Contract Cleaning,CLEANIT CLEANING SERVICES,15/07/2013,215,,
"Development, Business & Housing",Facilities Management and Cleaning Services,CLCM,Premises-Related Expenditure,Contract Cleaning,CLEANIT CLEANING SERVICES,15/07/2013,180,,
"Development, Business & Housing",Facilities Management and Cleaning Services,CLCM,Premises-Related Expenditure,Contract Cleaning,CLEANIT CLEANING SERVICES,15/07/2013,215,,
"Development, Business & Housing",Facilities Management and Cleaning Services,CLCM,Premises-Related Expenditure,Clean Mats & Toilet Requisites,Border Janitorial Supplies Limited,17/07/2013,400,,
"Development, Business & Housing",Facilities Management and Cleaning Services,CLCM,Premises-Related Expenditure,Clean Mats & Toilet Requisites,WEST MERCIA SUPPLIES Catalogue Supplies (None Utility),18/07/2013,1290.66,,
"Development, Business & Housing",Facilities Management and Cleaning Services,CLCM,Premises-Related Expenditure,Clean Mats & Toilet Requisites,WEST MERCIA SUPPLIES Catalogue Supplies (None Utility),18/07/2013,200.98,,
"Development, Business & Housing",Facilities Management and Cleaning Services,CLCM,Premises-Related Expenditure,Clean Mats & Toilet Requisites,Border Janitorial Supplies Limited,22/07/2013,138.24,,
"Development, Business & Housing",Facilities Management and Cleaning Services,CLCM,Premises-Related Expenditure,Clean Mats & Toilet Requisites,WEST MERCIA SUPPLIES Catalogue Supplies (None Utility),22/07/2013,-200.98,,
"Development, Business & Housing",Facilities Management and Cleaning Services,CLSP,Premises-Related Expenditure,Clean Mats & Toilet Requisites,Border Janitorial Supplies Limited,11/07/2013,126.81,,
"Development, Business & Housing",Facilities Management and Cleaning Services,CLSP,Premises-Related Expenditure,Clean Mats & Toilet Requisites,Border Janitorial Supplies Limited,11/07/2013,108.9,,
"Development, Business & Housing",Facilities Management and Cleaning Services,CLSP,Premises-Related Expenditure,Contract Cleaning,CLEANIT CLEANING SERVICES,04/07/2013,140.63,,
"Development, Business & Housing",Facilities Management and Cleaning Services,CLSP,Premises-Related Expenditure,Clean Mats & Toilet Requisites,Border Janitorial Supplies Limited,12/07/2013,119.68,,
"Development, Business & Housing",Facilities Management and Cleaning Services,CLSP,Premises-Related Expenditure,Clean Mats & Toilet Requisites,Border Janitorial Supplies Limited,15/07/2013,177.1,,
"Development, Business & Housing",Facilities Management and Cleaning Services,CLSP,Premises-Related Expenditure,Clean Mats & Toilet Requisites,Border Janitorial Supplies Limited,15/07/2013,147.66,,
"Development, Business & Housing",Facilities Management and Cleaning Services,CLSP,Premises-Related Expenditure,Clean Mats & Toilet Requisites,Border Janitorial Supplies Limited,15/07/2013,130.53,,
"Development, Business & Housing",Facilities Management and Cleaning Services,CLSP,Premises-Related Expenditure,Clean Mats & Toilet Requisites,Border Janitorial Supplies Limited,15/07/2013,103.81,,
"Development, Business & Housing",Facilities Management and Cleaning Services,CLSP,Premises-Related Expenditure,Clean Mats & Toilet Requisites,Border Janitorial Supplies Limited,15/07/2013,100.74,,
"Development, Business & Housing",Facilities Management and Cleaning Services,CLSP,Premises-Related Expenditure,Clean Mats & Toilet Requisites,Border Janitorial Supplies Limited,15/07/2013,181.76,,
"Development, Business & Housing",Facilities Management and Cleaning Services,CLSP,Premises-Related Expenditure,Clean Mats & Toilet Requisites,Border Janitorial Supplies Limited,15/07/2013,194.02,,
"Development, Business & Housing",Facilities Management and Cleaning Services,CLSP,Premises-Related Expenditure,Clean Mats & Toilet Requisites,Border Janitorial Supplies Limited,15/07/2013,164.18,,
"Development, Business & Housing",Facilities Management and Cleaning Services,CLSP,Premises-Related Expenditure,Clean Mats & Toilet Requisites,Border Janitorial Supplies Limited,31/07/2013,146.58,,
"Development, Business & Housing",Facilities Management and Cleaning Services,CLSP,Premises-Related Expenditure,Clean Mats & Toilet Requisites,Border Janitorial Supplies Limited,22/07/2013,132.02,,
"Development, Business & Housing",Facilities Management and Cleaning Services,CLSP,Supplies & Services,Equipment - Repair,THE CLEAN MACHINE DIRECT LTD,12/07/2013,108.15,,
"Development, Business & Housing",Facilities Management and Cleaning Services,CLSP,Supplies & Services,Equipment - Repair,THE CLEAN MACHINE DIRECT LTD,12/07/2013,231.45,,
"Development, Business & Housing",Facilities Management and Cleaning Services,CLSP,Supplies & Services,Equipment - Repair,THE CLEAN MACHINE DIRECT LTD,12/07/2013,109.16,,
"Development, Business & Housing",Facilities Management and Cleaning Services,CLSS,Premises-Related Expenditure,Clean Mats & Toilet Requisites,Border Janitorial Supplies Limited,15/07/2013,114.75,,
"Development, Business & Housing",Facilities Management and Cleaning Services,CLSS,Premises-Related Expenditure,Clean Mats & Toilet Requisites,Border Janitorial Supplies Limited,15/07/2013,221.66,,
"Development, Business & Housing",Facilities Management and Cleaning Services,CLSS,Premises-Related Expenditure,Clean Mats & Toilet Requisites,Border Janitorial Supplies Limited,18/07/2013,206.96,,
"Development, Business & Housing",Facilities Management and Cleaning Services,CLSX,Premises-Related Expenditure,Clean Mats & Toilet Requisites,Border Janitorial Supplies Limited,11/07/2013,168.43,,
"Development, Business & Housing",Property & Design,CAAG,Premises-Related Expenditure,Minor Alterations,KRM CONTRACTORS LTD,04/07/2013,245,,
"Development, Business & Housing",Property & Design,CAAG,Supplies & Services,Consultants Fees,JORDAN LEWIS ASSOCIATES LTD,11/07/2013,2820.41,,
"Development, Business & Housing",Property & Design,CAAG,Supplies & Services,Comp Software (Purch / Hire),RICS BUSINESS SERVICES,09/07/2013,500,,
"Development, Business & Housing",Property & Design,CAAG,Supplies & Services,Consultants Fees,OLIVEJOYCE LTD,16/07/2013,929.3,,
"Development, Business & Housing",Property & Design,CAAG,Supplies & Services,Consultants Fees,OLIVEJOYCE LTD,18/07/2013,1368.4,,
"Development, Business & Housing",Property & Design,CAAG,Supplies & Services,Consultants Fees,OLIVEJOYCE LTD,25/07/2013,2124.35,,
"Development, Business & Housing",Property & Design,CAAH,Premises-Related Expenditure,R&M -Buildings DLO Charge,PRYCE (BUILDERS) LTD,05/07/2013,1062.8,,
"Development, Business & Housing",Property & Design,CAAH,Premises-Related Expenditure,R&M -Buildings DLO Charge,ADT FIRE & SECURITY PLC,05/07/2013,655.3,,
"Development, Business & Housing",Property & Design,CAAH,Premises-Related Expenditure,R&M -Buildings DLO Charge,PP ELECTRICAL SERVICES (Shropshire) Ltd,05/07/2013,174.25,,
"Development, Business & Housing",Property & Design,CAAH,Premises-Related Expenditure,R&M -Buildings DLO Charge,D P WILCOX & SON,05/07/2013,1947.7,,
"Development, Business & Housing",Property & Design,CAAH,Premises-Related Expenditure,R&M -Buildings DLO Charge,JCE & SONS LTD,05/07/2013,402.5,,
"Development, Business & Housing",Property & Design,CAAH,Premises-Related Expenditure,R&M -Buildings DLO Charge,SHROPSHIRE HEATING SERVICES LTD,05/07/2013,256.5,,
"Development, Business & Housing",Property & Design,CAAH,Premises-Related Expenditure,R&M -Buildings DLO Charge,D P WILCOX & SON,05/07/2013,125,,
"Development, Business & Housing",Property & Design,CAAH,Premises-Related Expenditure,R&M -Buildings DLO Charge,GRA-BERN,09/07/2013,-114.27,,
"Development, Business & Housing",Property & Design,CAAH,Premises-Related Expenditure,R&M -Buildings DLO Charge,HORIZON SOFT DRINKS LTD,09/07/2013,116.91,,
"Development, Business & Housing",Property & Design,CAAH,Premises-Related Expenditure,R&M -Buildings DLO Charge,JCE & SONS LTD,09/07/2013,2187.5,,
"Development, Business & Housing",Property & Design,CAAH,Premises-Related Expenditure,R&M -Buildings DLO Charge,PP ELECTRICAL SERVICES (Shropshire) Ltd,09/07/2013,189.62,,
"Development, Business & Housing",Property & Design,CAAH,Premises-Related Expenditure,R&M -Buildings DLO Charge,PP ELECTRICAL SERVICES (Shropshire) Ltd,10/07/2013,685,,
"Development, Business & Housing",Property & Design,CAAH,Premises-Related Expenditure,R&M -Buildings DLO Charge,PP ELECTRICAL SERVICES (Shropshire) Ltd,10/07/2013,1186.52,,
"Development, Business & Housing",Property & Design,CAAH,Premises-Related Expenditure,R&M -Buildings DLO Charge,PP ELECTRICAL SERVICES (Shropshire) Ltd,10/07/2013,-1871.52,,
"Development, Business & Housing",Property & Design,CAAH,Premises-Related Expenditure,R&M -Buildings DLO Charge,WATERCLEAN SERVICES LTD,26/07/2013,300,,
"Development, Business & Housing",Property & Design,CAAH,Premises-Related Expenditure,R&M -Buildings DLO Charge,WATERCLEAN SERVICES LTD,26/07/2013,300,,
"Development, Business & Housing",Property & Design,CAAH,Premises-Related Expenditure,R&M -Buildings DLO Charge,WATERCLEAN SERVICES LTD,26/07/2013,300,,
"Development, Business & Housing",Property & Design,CAAH,Premises-Related Expenditure,R&M -Buildings DLO Charge,SHROPSHIRE HEATING SERVICES LTD,26/07/2013,262.21,,
"Development, Business & Housing",Property & Design,CAAH,Premises-Related Expenditure,R&M -Buildings DLO Charge,A1 Glass & Glazing (Shropshire) Limited,26/07/2013,190,,
"Development, Business & Housing",Property & Design,CAAH,Premises-Related Expenditure,R&M -Buildings DLO Charge,CHUBB FIRE & SECURITY LTD,26/07/2013,484.67,,
"Development, Business & Housing",Property & Design,CAAH,Premises-Related Expenditure,R&M -Buildings DLO Charge,WATERCLEAN SERVICES LTD,26/07/2013,160,,
"Development, Business & Housing",Property & Design,CAAH,Premises-Related Expenditure,R&M -Buildings DLO Charge,WATERCLEAN SERVICES LTD,26/07/2013,600,,
"Development, Business & Housing",Property & Design,CAAH,Premises-Related Expenditure,R&M -Buildings DLO Charge,WATERCLEAN SERVICES LTD,26/07/2013,600,,
"Development, Business & Housing",Property & Design,CAAH,Premises-Related Expenditure,R&M -Buildings DLO Charge,WATERCLEAN SERVICES LTD,26/07/2013,300,,
"Development, Business & Housing",Property & Design,CAAH,Premises-Related Expenditure,R&M -Buildings DLO Charge,LOCSAFE SECURITY SYSTEMS,26/07/2013,140.56,,
"Development, Business & Housing",Property & Design,CAAH,Premises-Related Expenditure,R&M -Buildings DLO Charge,CHUBB FIRE & SECURITY LTD,26/07/2013,793.6,,
"Development, Business & Housing",Property & Design,CAAH,Premises-Related Expenditure,R&M -Buildings DLO Charge,WATERCLEAN SERVICES LTD,26/07/2013,300,,
"Development, Business & Housing",Property & Design,CAAH,Premises-Related Expenditure,R&M -Buildings DLO Charge,CHUBB FIRE & SECURITY LTD,26/07/2013,517.19,,
"Development, Business & Housing",Property & Design,CAAH,Premises-Related Expenditure,R&M -Buildings DLO Charge,SHROPSHIRE HEATING SERVICES LTD,24/07/2013,296.1,,
"Development, Business & Housing",Property & Design,CAAH,Premises-Related Expenditure,R&M -Buildings DLO Charge,SHROPSHIRE HEATING SERVICES LTD,24/07/2013,140,,
"Development, Business & Housing",Property & Design,CAAH,Premises-Related Expenditure,R&M -Buildings DLO Charge,SHROPSHIRE HEATING SERVICES LTD,24/07/2013,206.25,,
"Development, Business & Housing",Property & Design,CAAH,Premises-Related Expenditure,R&M -Buildings DLO Charge,SHROPSHIRE HEATING SERVICES LTD,24/07/2013,125,,
"Development, Business & Housing",Property & Design,CAAH,Premises-Related Expenditure,R&M -Buildings DLO Charge,SHROPSHIRE HEATING SERVICES LTD,24/07/2013,286.24,,
"Development, Business & Housing",Property & Design,CAAH,Premises-Related Expenditure,R&M -Buildings DLO Charge,SHROPSHIRE HEATING SERVICES LTD,24/07/2013,217.92,,
"Development, Business & Housing",Property & Design,CAAH,Premises-Related Expenditure,R&M -Buildings DLO Charge,GRA-BERN,24/07/2013,199.65,,
"Development, Business & Housing",Property & Design,CAAH,Premises-Related Expenditure,R&M -Buildings DLO Charge,NOBRIDGE LTD,24/07/2013,295,,
"Development, Business & Housing",Property & Design,CAAH,Premises-Related Expenditure,R&M -Buildings DLO Charge,SHROPSHIRE HEATING SERVICES LTD,24/07/2013,300,,
"Development, Business & Housing",Property & Design,CAAH,Premises-Related Expenditure,R&M -Buildings DLO Charge,SHROPSHIRE HEATING SERVICES LTD,24/07/2013,340.01,,
"Development, Business & Housing",Property & Design,CAAH,Premises-Related Expenditure,R&M -Buildings DLO Charge,SHROPSHIRE HEATING SERVICES LTD,24/07/2013,315,,
"Development, Business & Housing",Property & Design,CAAH,Premises-Related Expenditure,R&M -Buildings DLO Charge,SHROPSHIRE HEATING SERVICES LTD,24/07/2013,290,,
"Development, Business & Housing",Property & Design,CAAH,Premises-Related Expenditure,R&M -Buildings DLO Charge,ADT FIRE & SECURITY PLC,24/07/2013,273,,
"Development, Business & Housing",Property & Design,CAAH,Premises-Related Expenditure,R&M -Buildings DLO Charge,RCS ROOFING CONSTRUCTION SERVICES LTD,24/07/2013,1473.4,,
"Development, Business & Housing",Property & Design,CAAH,Premises-Related Expenditure,R&M -Buildings DLO Charge,GRANVILLE CONSTRUCTION & MAINTENANCE LTD,16/07/2013,236.84,,
"Development, Business & Housing",Property & Design,CAAH,Premises-Related Expenditure,R&M -Buildings DLO Charge,GRANVILLE CONSTRUCTION & MAINTENANCE LTD,16/07/2013,1155,,
"Development, Business & Housing",Property & Design,CAAH,Premises-Related Expenditure,R&M -Buildings DLO Charge,GRANVILLE CONSTRUCTION & MAINTENANCE LTD,16/07/2013,454.91,,
"Development, Business & Housing",Property & Design,CAAH,Premises-Related Expenditure,R&M -Buildings DLO Charge,D P WILCOX & SON,16/07/2013,115,,
"Development, Business & Housing",Property & Design,CAAH,Premises-Related Expenditure,R&M -Buildings DLO Charge,D P WILCOX & SON,16/07/2013,170,,
"Development, Business & Housing",Property & Design,CAAH,Premises-Related Expenditure,R&M -Buildings DLO Charge,WELLINGTON INSULATION CO. LTD,16/07/2013,125,,
"Development, Business & Housing",Property & Design,CAAH,Premises-Related Expenditure,R&M -Buildings DLO Charge,D P WILCOX & SON,16/07/2013,382.5,,
"Development, Business & Housing",Property & Design,CAAH,Premises-Related Expenditure,R&M -Buildings DLO Charge,D P WILCOX & SON,16/07/2013,115,,
"Development, Business & Housing",Property & Design,CAAH,Premises-Related Expenditure,R&M -Buildings DLO Charge,SHROPSHIRE HEATING SERVICES LTD,16/07/2013,106.25,,
"Development, Business & Housing",Property & Design,CAAH,Premises-Related Expenditure,R&M -Buildings DLO Charge,Protec Fire Detection PLC,16/07/2013,397.25,,
"Development, Business & Housing",Property & Design,CAAH,Premises-Related Expenditure,R&M -Buildings DLO Charge,D P WILCOX & SON,16/07/2013,435,,
"Development, Business & Housing",Property & Design,CAAH,Premises-Related Expenditure,R&M -Buildings DLO Charge,D P WILCOX & SON,16/07/2013,140,,
"Development, Business & Housing",Property & Design,CAAH,Premises-Related Expenditure,R&M -Buildings DLO Charge,D P WILCOX & SON,16/07/2013,101.5,,
"Development, Business & Housing",Property & Design,CAAH,Premises-Related Expenditure,R&M -Buildings DLO Charge,D P WILCOX & SON,16/07/2013,297.5,,
"Development, Business & Housing",Property & Design,CAAH,Premises-Related Expenditure,R&M -Buildings DLO Charge,GRANVILLE CONSTRUCTION & MAINTENANCE LTD,31/07/2013,-469.96,,
"Development, Business & Housing",Property & Design,CAAH,Premises-Related Expenditure,R&M -Buildings DLO Charge,GRANVILLE CONSTRUCTION & MAINTENANCE LTD,31/07/2013,545.79,,
"Development, Business & Housing",Property & Design,CAAH,Premises-Related Expenditure,R&M -Buildings DLO Charge,WREKIN DRAIN SERVICES LTD,31/07/2013,240,,
"Development, Business & Housing",Property & Design,CAAH,Premises-Related Expenditure,R&M -Buildings DLO Charge,GRANVILLE CONSTRUCTION & MAINTENANCE LTD,31/07/2013,2493.78,,
"Development, Business & Housing",Property & Design,CAAH,Premises-Related Expenditure,R&M -Buildings DLO Charge,GRANVILLE CONSTRUCTION & MAINTENANCE LTD,31/07/2013,1790,,
"Development, Business & Housing",Property & Design,CAAH,Premises-Related Expenditure,R&M -Buildings DLO Charge,NOBRIDGE LTD,31/07/2013,150,,
"Development, Business & Housing",Property & Design,CAAH,Premises-Related Expenditure,R&M -Buildings DLO Charge,SHROPSHIRE HEATING SERVICES LTD,31/07/2013,174,,
"Development, Business & Housing",Property & Design,CAAH,Premises-Related Expenditure,R&M -Buildings DLO Charge,SHROPSHIRE HEATING SERVICES LTD,30/07/2013,450.62,,
"Development, Business & Housing",Property & Design,CAAH,Premises-Related Expenditure,R&M -Buildings DLO Charge,SHROPSHIRE HEATING SERVICES LTD,30/07/2013,307.15,,
"Development, Business & Housing",Property & Design,CAAH,Premises-Related Expenditure,R&M -Buildings DLO Charge,RCS ROOFING CONSTRUCTION SERVICES LTD,30/07/2013,278.09,,
"Development, Business & Housing",Property & Design,CAAH,Premises-Related Expenditure,R&M -Buildings DLO Charge,NOBRIDGE LTD,31/07/2013,980,,
"Development, Business & Housing",Property & Design,CAAH,Premises-Related Expenditure,R&M -Buildings DLO Charge,SHROPSHIRE HEATING SERVICES LTD,31/07/2013,135.5,,
"Development, Business & Housing",Property & Design,CAAH,Premises-Related Expenditure,R&M -Buildings DLO Charge,SHROPSHIRE HEATING SERVICES LTD,31/07/2013,237.25,,
"Development, Business & Housing",Property & Design,CAAH,Premises-Related Expenditure,R&M -Buildings DLO Charge,SHROPSHIRE HEATING SERVICES LTD,31/07/2013,206,,
"Development, Business & Housing",Property & Design,CAAH,Premises-Related Expenditure,R&M -Buildings DLO Charge,SHROPSHIRE HEATING SERVICES LTD,31/07/2013,112,,
"Development, Business & Housing",Property & Design,CAAH,Premises-Related Expenditure,R&M -Buildings DLO Charge,SHROPSHIRE HEATING SERVICES LTD,31/07/2013,112,,
"Development, Business & Housing",Property & Design,CAAH,Premises-Related Expenditure,R&M -Buildings DLO Charge,SHROPSHIRE HEATING SERVICES LTD,31/07/2013,174,,
"Development, Business & Housing",Property & Design,CAAH,Premises-Related Expenditure,R&M -Buildings DLO Charge,WREKIN DRAIN SERVICES LTD,31/07/2013,240,,
"Development, Business & Housing",Property & Design,CAAH,Premises-Related Expenditure,R&M -Buildings DLO Charge,RCS ROOFING CONSTRUCTION SERVICES LTD,31/07/2013,1327.25,,
"Development, Business & Housing",Property & Design,CAAH,Premises-Related Expenditure,R&M -Buildings DLO Charge,SHROPSHIRE HEATING SERVICES LTD,31/07/2013,123,,
"Development, Business & Housing",Property & Design,CAAH,Premises-Related Expenditure,R&M -Buildings DLO Charge,SHROPSHIRE HEATING SERVICES LTD,31/07/2013,112,,
"Development, Business & Housing",Property & Design,CAAH,Premises-Related Expenditure,R&M -Buildings DLO Charge,SHROPSHIRE HEATING SERVICES LTD,31/07/2013,112,,
"Development, Business & Housing",Property & Design,CAAH,Premises-Related Expenditure,R&M -Buildings DLO Charge,PP ELECTRICAL SERVICES (Shropshire) Ltd,31/07/2013,458.5,,
"Development, Business & Housing",Property & Design,CAAH,Premises-Related Expenditure,R&M -Buildings DLO Charge,WREKIN DRAIN SERVICES LTD,31/07/2013,170,,
"Development, Business & Housing",Property & Design,CAAH,Premises-Related Expenditure,R&M -Buildings DLO Charge,SHROPSHIRE HEATING SERVICES LTD,31/07/2013,112,,
"Development, Business & Housing",Property & Design,CAAH,Premises-Related Expenditure,R&M -Buildings DLO Charge,SHROPSHIRE HEATING SERVICES LTD,31/07/2013,185.5,,
"Development, Business & Housing",Property & Design,CAAH,Premises-Related Expenditure,R&M -Buildings DLO Charge,WREKIN DRAIN SERVICES LTD,31/07/2013,310,,
"Development, Business & Housing",Property & Design,CAAH,Premises-Related Expenditure,R&M -Buildings DLO Charge,SHROPSHIRE HEATING SERVICES LTD,31/07/2013,147,,
"Development, Business & Housing",Property & Design,CAAH,Premises-Related Expenditure,R&M -Buildings DLO Charge,PP ELECTRICAL SERVICES (Shropshire) Ltd,22/07/2013,1871.52,,
"Development, Business & Housing",Property & Design,CAAH,Premises-Related Expenditure,R&M -Buildings DLO Charge,RCS ROOFING CONSTRUCTION SERVICES LTD,22/07/2013,612.72,,
"Development, Business & Housing",Property & Design,CAAH,Premises-Related Expenditure,R&M -Buildings DLO Charge,A1 Glass & Glazing (Shropshire) Limited,22/07/2013,190,,
"Development, Business & Housing",Property & Design,CAAH,Premises-Related Expenditure,R&M -Buildings DLO Charge,SDT ELECTRICAL LTD,22/07/2013,205,,
"Development, Business & Housing",Property & Design,CAAH,Premises-Related Expenditure,R&M -Buildings DLO Charge,D P WILCOX & SON,22/07/2013,125,,
"Development, Business & Housing",Property & Design,CAAH,Premises-Related Expenditure,R&M -Buildings DLO Charge,D P WILCOX & SON,22/07/2013,200,,
"Development, Business & Housing",Property & Design,CAAH,Premises-Related Expenditure,R&M -Buildings DLO Charge,SHROPSHIRE HEATING SERVICES LTD,22/07/2013,1419.24,,
"Development, Business & Housing",Property & Design,CAAH,Premises-Related Expenditure,R&M -Buildings DLO Charge,CHRIS BREEZE LTD,22/07/2013,218.5,,
"Development, Business & Housing",Property & Design,CAAH,Premises-Related Expenditure,R&M -Buildings DLO Charge,D P WILCOX & SON,22/07/2013,1018,,
"Development, Business & Housing",Property & Design,CAAH,Premises-Related Expenditure,R&M -Buildings DLO Charge,CHUBB FIRE & SECURITY LTD,22/07/2013,152.86,,
"Development, Business & Housing",Property & Design,CAAH,Premises-Related Expenditure,R&M -Buildings DLO Charge,JCE & SONS LTD,22/07/2013,1260,,
"Development, Business & Housing",Property & Design,CAAH,Premises-Related Expenditure,R&M -Buildings DLO Charge,HORTON AUTOMATICS LTD,22/07/2013,120,,
"Development, Business & Housing",Property & Design,CAAH,Premises-Related Expenditure,R&M -Buildings DLO Charge,HORTON AUTOMATICS LTD,22/07/2013,659,,
"Development, Business & Housing",Property & Design,CAAH,Premises-Related Expenditure,R&M -Buildings DLO Charge,ASLES (TOOL HIRE & SALES) LTD,22/07/2013,424,,
"Development, Business & Housing",Property & Design,CAAH,Premises-Related Expenditure,R&M -Buildings DLO Charge,TELFORD & WREKIN SERVICES LTD,26/07/2013,132,,
"Development, Business & Housing",Property & Design,CAAH,Premises-Related Expenditure,R&M -Buildings DLO Charge,E DAVIES & SON,26/07/2013,123.02,,
"Development, Business & Housing",Property & Design,CAAH,Premises-Related Expenditure,R&M -Buildings DLO Charge,RCS ROOFING CONSTRUCTION SERVICES LTD,26/07/2013,408.03,,
"Development, Business & Housing",Property & Design,CAAH,Premises-Related Expenditure,R&M -Buildings DLO Charge,RCS ROOFING CONSTRUCTION SERVICES LTD,26/07/2013,476.04,,
"Development, Business & Housing",Property & Design,CAAH,Premises-Related Expenditure,R&M -Buildings DLO Charge,WATERCLEAN SERVICES LTD,26/07/2013,300,,
"Development, Business & Housing",Property & Design,CAAH,Premises-Related Expenditure,R&M -Buildings DLO Charge,PP ELECTRICAL SERVICES (Shropshire) Ltd,26/07/2013,323.9,,
"Development, Business & Housing",Property & Design,CAAH,Premises-Related Expenditure,R&M -Buildings DLO Charge,CHUBB FIRE & SECURITY LTD,26/07/2013,162.74,,
"Development, Business & Housing",Property & Design,CFAG,Supplies & Services,Furniture - Purchase,Total Back Care Ltd,04/07/2013,442.4,,
"Development, Business & Housing",Property & Design,CFAG,Supplies & Services,Furniture - Purchase,ADVANCE SEATING DESIGNS,25/07/2013,896.43,,
"Development, Business & Housing",Property & Design,COAE,Premises-Related Expenditure,Electricity,West Mercia Energy (WME),11/07/2013,140.59,,
"Development, Business & Housing",Property & Design,COAE,Premises-Related Expenditure,R&M -Buildings DLO Charge,WREKIN DRAIN SERVICES LTD,11/07/2013,170,,
"Development, Business & Housing",Property & Design,COAE,Premises-Related Expenditure,R&M -Buildings DLO Charge,CONCEPT ELEVATORS (MIDLANDS) LIMITED,11/07/2013,322.5,,
"Development, Business & Housing",Property & Design,COAE,Premises-Related Expenditure,R&M -Buildings DLO Charge,PHS GROUP LTD,11/07/2013,152.81,,
"Development, Business & Housing",Property & Design,COAE,Premises-Related Expenditure,R&M -Buildings DLO Charge,HORIZON SOFT DRINKS LTD,04/07/2013,250,,
"Development, Business & Housing",Property & Design,COAE,Premises-Related Expenditure,R&M -Buildings DLO Charge,TELFORD & WREKIN SERVICES LTD,03/07/2013,2742.11,,
"Development, Business & Housing",Property & Design,COAE,Premises-Related Expenditure,R&M -Buildings DLO Charge,OTIS LIMITED,03/07/2013,488.43,,
"Development, Business & Housing",Property & Design,COAE,Premises-Related Expenditure,Electricity,E.ON,05/07/2013,491.44,,
"Development, Business & Housing",Property & Design,COAE,Premises-Related Expenditure,Electricity,BRITISH GAS BUSINESS (ELECTRICITY),12/07/2013,1544.2,,
"Development, Business & Housing",Property & Design,COAE,Premises-Related Expenditure,R&M -Buildings DLO Charge,THYSSENKRUPP ELEVATOR (UK) LIMITED,25/07/2013,299.79,,
"Development, Business & Housing",Property & Design,COAE,Premises-Related Expenditure,R&M -Buildings DLO Charge,JONES & HAMPTON LTD,25/07/2013,274.79,,
"Development, Business & Housing",Property & Design,COAE,Premises-Related Expenditure,Service Contracts,SHROPSHIRE HEATING SERVICES LTD,31/07/2013,123,,
"Development, Business & Housing",Property & Design,COAE,Premises-Related Expenditure,Water Rates,SEVERN TRENT WATER LTD,17/07/2013,2595.02,,
"Development, Business & Housing",Property & Design,COAE,Premises-Related Expenditure,R&M -Buildings DLO Charge,FCC RECYCLING (UK) LIMITED,31/07/2013,384.24,,
"Development, Business & Housing",Property & Design,COAE,Premises-Related Expenditure,Electricity,West Mercia Energy (WME),17/07/2013,836.05,,
"Development, Business & Housing",Property & Design,COAE,Premises-Related Expenditure,Electricity,West Mercia Energy (WME),17/07/2013,1117.25,,
"Development, Business & Housing",Property & Design,COAE,Premises-Related Expenditure,Electricity,West Mercia Energy (WME),17/07/2013,966.88,,
"Development, Business & Housing",Property & Design,COAE,Premises-Related Expenditure,Electricity,West Mercia Energy (WME),17/07/2013,625.63,,
"Development, Business & Housing",Property & Design,COAE,Premises-Related Expenditure,Electricity,West Mercia Energy (WME),17/07/2013,167.41,,
"Development, Business & Housing",Property & Design,COAE,Premises-Related Expenditure,Electricity,West Mercia Energy (WME),17/07/2013,333.35,,
"Development, Business & Housing",Property & Design,COAE,Premises-Related Expenditure,Electricity,West Mercia Energy (WME),17/07/2013,115.56,,
"Development, Business & Housing",Property & Design,COAE,Premises-Related Expenditure,Gas,Corona Energy,17/07/2013,1288.28,,
"Development, Business & Housing",Property & Design,COAE,Premises-Related Expenditure,Gas,Corona Energy,17/07/2013,2633.98,,
"Development, Business & Housing",Property & Design,COAE,Premises-Related Expenditure,R&M -Buildings DLO Charge,THYSSENKRUPP ELEVATOR (UK) LIMITED,18/07/2013,124.73,,
"Development, Business & Housing",Property & Design,COAE,Premises-Related Expenditure,R&M -Buildings DLO Charge,THYSSENKRUPP ELEVATOR (UK) LIMITED,18/07/2013,218.77,,
"Development, Business & Housing",Property & Design,COAE,Premises-Related Expenditure,R&M -Buildings DLO Charge,THYSSENKRUPP ELEVATOR (UK) LIMITED,30/07/2013,194.46,,
"Development, Business & Housing",Property & Design,COAE,Premises-Related Expenditure,R&M -Buildings DLO Charge,THYSSENKRUPP ELEVATOR (UK) LIMITED,30/07/2013,632.01,,
"Development, Business & Housing",Property & Design,COAE,Premises-Related Expenditure,Gas,West Mercia Energy (WME),22/07/2013,657.03,,
"Development, Business & Housing",Property & Design,COAE,Premises-Related Expenditure,Gas,West Mercia Energy (WME),22/07/2013,297.23,,
"Development, Business & Housing",Property & Design,COAE,Premises-Related Expenditure,Gas,Corona Energy,26/07/2013,132.35,,
"Development, Business & Housing",Property & Design,COAE,Premises-Related Expenditure,Gas,Corona Energy,18/07/2013,27917.77,,
"Development, Business & Housing",Property & Design,COAE,Supplies & Services,Protective Clothing,MAIN MAN SUPPLIES LTD,22/07/2013,107.74,,
"Development, Business & Housing",Property & Design,COAG,Premises-Related Expenditure,R&M -Buildings DLO Charge,D P WILCOX & SON,05/07/2013,313.5,,
"Development, Business & Housing",Property & Design,COAG,Premises-Related Expenditure,Service Contracts,HERRON CLEANING SERVICES,05/07/2013,203.84,,
"Development, Business & Housing",Property & Design,COAG,Premises-Related Expenditure,R&M -Buildings DLO Charge,SHROPSHIRE HEATING SERVICES LTD,24/07/2013,111.08,,
"Development, Business & Housing",Property & Design,COAG,Premises-Related Expenditure,R&M -Buildings DLO Charge,SHROPSHIRE HEATING SERVICES LTD,24/07/2013,171.26,,
"Development, Business & Housing",Property & Design,COAG,Premises-Related Expenditure,Service Contracts,HERRON CLEANING SERVICES,18/07/2013,120,,
"Development, Business & Housing",Property & Design,COAG,Premises-Related Expenditure,Service Contracts,HERRON CLEANING SERVICES,18/07/2013,218.4,,
"Development, Business & Housing",Property & Design,COAG,Premises-Related Expenditure,R&M -Buildings DLO Charge,ERIC NEVILLE CATERING SUPPLIES LTD,18/07/2013,105,,
"Development, Business & Housing",Property & Design,COAG,Premises-Related Expenditure,Service Contracts,HERRON CLEANING SERVICES,18/07/2013,169.52,,
"Development, Business & Housing",Property & Design,COAG,Premises-Related Expenditure,Service Contracts,BRITISH GAS SERVICES (COMMERCIAL) LTD,18/07/2013,126,,
"Development, Business & Housing",Property & Design,COAG,Premises-Related Expenditure,Service Contracts,BRITISH GAS SERVICES (COMMERCIAL) LTD,18/07/2013,252,,
"Development, Business & Housing",Property & Design,COAG,Premises-Related Expenditure,R&M -Buildings DLO Charge,EDRYD JENKINS (ELECTRICAL) LTD,18/07/2013,526.04,,
"Development, Business & Housing",Property & Design,COAG,Premises-Related Expenditure,R&M -Buildings DLO Charge,PP ELECTRICAL SERVICES (Shropshire) Ltd,18/07/2013,308.42,,
"Development, Business & Housing",Property & Design,COAG,Premises-Related Expenditure,R&M -Buildings DLO Charge,D P WILCOX & SON,18/07/2013,196.5,,
"Development, Business & Housing",Property & Design,COAG,Premises-Related Expenditure,R&M -Buildings DLO Charge,EDRYD JENKINS (ELECTRICAL) LTD,18/07/2013,104,,
"Development, Business & Housing",Property & Design,COAG,Premises-Related Expenditure,R&M -Buildings DLO Charge,EDRYD JENKINS (ELECTRICAL) LTD,18/07/2013,325.73,,
"Development, Business & Housing",Property & Design,COAG,Premises-Related Expenditure,Service Contracts,HERRON CLEANING SERVICES,18/07/2013,203.84,,
"Development, Business & Housing",Property & Design,COAG,Premises-Related Expenditure,Service Contracts,BRITISH GAS SERVICES (COMMERCIAL) LTD,18/07/2013,126,,
"Development, Business & Housing",Property & Design,COAG,Premises-Related Expenditure,Service Contracts,BRITISH GAS SERVICES (COMMERCIAL) LTD,18/07/2013,189,,
"Development, Business & Housing",Property & Design,COAG,Premises-Related Expenditure,Service Contracts,HERRON CLEANING SERVICES,18/07/2013,201.76,,
"Development, Business & Housing",Property & Design,COAG,Premises-Related Expenditure,Service Contracts,HERRON CLEANING SERVICES,18/07/2013,172.64,,
"Development, Business & Housing",Property & Design,COAG,Premises-Related Expenditure,Service Contracts,HERRON CLEANING SERVICES,18/07/2013,196.56,,
"Development, Business & Housing",Property & Design,COAG,Premises-Related Expenditure,R&M -Buildings DLO Charge,SDT ELECTRICAL LTD,30/07/2013,322.12,,
"Development, Business & Housing",Property & Design,COAG,Premises-Related Expenditure,R&M -Buildings DLO Charge,ERIC NEVILLE CATERING SUPPLIES LTD,31/07/2013,1435,,
"Development, Business & Housing",Property & Design,COAG,Premises-Related Expenditure,R&M -Buildings DLO Charge,GRA-BERN,31/07/2013,215.54,,
"Development, Business & Housing",Property & Design,COAG,Premises-Related Expenditure,R&M -Buildings DLO Charge,JOHNSON CONTROLS LTD,25/07/2013,3276.38,,
"Development, Business & Housing",Property & Design,COAG,Supplies & Services,Other Expenses,BRITISH GAS SERVICES (COMMERCIAL) LTD,04/07/2013,220.5,,
"Development, Business & Housing",Property & Design,COAH,Premises-Related Expenditure,Clean Mats & Toilet Requisites,PJ Systems (Hygiene) Ltd,31/07/2013,196.56,,
"Development, Business & Housing",Property & Design,COAP,Premises-Related Expenditure,Fuel Oil,West Mercia Energy (WME),11/07/2013,405.12,,
"Development, Business & Housing",Property & Design,COAP,Premises-Related Expenditure,Fuel Oil,West Mercia Energy (WME),11/07/2013,336.85,,
"Development, Business & Housing",Property & Design,COAP,Premises-Related Expenditure,Electricity,West Mercia Energy (WME),11/07/2013,112.72,,
"Development, Business & Housing",Property & Design,COAP,Premises-Related Expenditure,Non Domestic Rates,CYNGOR GWYNEDD COUNCIL,01/07/2013,1601,,
"Development, Business & Housing",Property & Design,COAP,Premises-Related Expenditure,R&M -Buildings DLO Charge,JONES & HAMPTON LTD,11/07/2013,143.06,,
"Development, Business & Housing",Property & Design,COAP,Premises-Related Expenditure,Gas,West Mercia Energy (WME),11/07/2013,265.56,,
"Development, Business & Housing",Property & Design,COAP,Premises-Related Expenditure,R&M -Buildings DLO Charge,JONES & HAMPTON LTD,11/07/2013,154.49,,
"Development, Business & Housing",Property & Design,COAP,Premises-Related Expenditure,R&M -Buildings DLO Charge,JONES & HAMPTON LTD,11/07/2013,102.9,,
"Development, Business & Housing",Property & Design,COAP,Premises-Related Expenditure,Trade Refuse,FCC RECYCLING (UK) LIMITED,11/07/2013,215.15,,
"Development, Business & Housing",Property & Design,COAP,Premises-Related Expenditure,R&M -Buildings DLO Charge,JONES & HAMPTON LTD,11/07/2013,140.28,,
"Development, Business & Housing",Property & Design,COAP,Premises-Related Expenditure,R&M -Buildings DLO Charge,CONCEPT ELEVATORS (MIDLANDS) LIMITED,11/07/2013,954.8,,
"Development, Business & Housing",Property & Design,COAP,Premises-Related Expenditure,R&M -Buildings DLO Charge,ASLES (TOOL HIRE & SALES) LTD,11/07/2013,432.5,,
"Development, Business & Housing",Property & Design,COAP,Premises-Related Expenditure,Clean Mats & Toilet Requisites,PHS GROUP LTD,11/07/2013,551.7,,
"Development, Business & Housing",Property & Design,COAP,Premises-Related Expenditure,R&M -Buildings DLO Charge,JCE & SONS LTD,11/07/2013,168.75,,
"Development, Business & Housing",Property & Design,COAP,Premises-Related Expenditure,R&M -Buildings DLO Charge,CONCEPT ELEVATORS (MIDLANDS) LIMITED,11/07/2013,670.82,,
"Development, Business & Housing",Property & Design,COAP,Premises-Related Expenditure,R&M -Buildings DLO Charge,CONCEPT ELEVATORS (MIDLANDS) LIMITED,11/07/2013,812.5,,
"Development, Business & Housing",Property & Design,COAP,Premises-Related Expenditure,R&M -Buildings DLO Charge,SDT ELECTRICAL LTD,11/07/2013,160,,
"Development, Business & Housing",Property & Design,COAP,Premises-Related Expenditure,Water Rates,SEVERN TRENT WATER LTD,11/07/2013,556.5,,
"Development, Business & Housing",Property & Design,COAP,Premises-Related Expenditure,Water Rates,SEVERN TRENT WATER LTD,11/07/2013,1290.04,,
"Development, Business & Housing",Property & Design,COAP,Premises-Related Expenditure,Gas,BUDGET GAS LTD,03/07/2013,173.94,,
"Development, Business & Housing",Property & Design,COAP,Premises-Related Expenditure,Water Rates,SEVERN TRENT WATER LTD,03/07/2013,935.29,,
"Development, Business & Housing",Property & Design,COAP,Premises-Related Expenditure,Gas,MIDLANDS WOOD FUEL SUPPLY LTD,03/07/2013,168.71,,
"Development, Business & Housing",Property & Design,COAP,Premises-Related Expenditure,Gas,MIDLANDS WOOD FUEL SUPPLY LTD,03/07/2013,393.64,,
"Development, Business & Housing",Property & Design,COAP,Premises-Related Expenditure,Electricity,SP Energy Networks,03/07/2013,823.09,,
"Development, Business & Housing",Property & Design,COAP,Premises-Related Expenditure,Gas,West Mercia Energy (WME),03/07/2013,1580.44,,
"Development, Business & Housing",Property & Design,COAP,Premises-Related Expenditure,R&M -Buildings DLO Charge,PRYCE (BUILDERS) LTD,04/07/2013,575.67,,
"Development, Business & Housing",Property & Design,COAP,Premises-Related Expenditure,Trade Refuse,FCC RECYCLING (UK) LIMITED,05/07/2013,976.95,,
"Development, Business & Housing",Property & Design,COAP,Premises-Related Expenditure,Electricity,West Mercia Energy (WME),05/07/2013,1123.1,,
"Development, Business & Housing",Property & Design,COAP,Premises-Related Expenditure,R&M -Buildings DLO Charge,RCS ROOFING CONSTRUCTION SERVICES LTD,05/07/2013,385.6,,
"Development, Business & Housing",Property & Design,COAP,Premises-Related Expenditure,R&M -Buildings DLO Charge,PROKILL UK LIMITED,05/07/2013,185,,
"Development, Business & Housing",Property & Design,COAP,Premises-Related Expenditure,Service Contracts,WELLINGTON INSULATION CO. LTD,05/07/2013,500,,
"Development, Business & Housing",Property & Design,COAP,Premises-Related Expenditure,Electricity,BRITISH GAS BUSINESS (ELECTRICITY),05/07/2013,140.4,,
"Development, Business & Housing",Property & Design,COAP,Premises-Related Expenditure,Service Contracts,HERRON CLEANING SERVICES,05/07/2013,112.32,,
"Development, Business & Housing",Property & Design,COAP,Premises-Related Expenditure,Service Contracts,HERRON CLEANING SERVICES,05/07/2013,180.96,,
"Development, Business & Housing",Property & Design,COAP,Premises-Related Expenditure,Service Contracts,JCE & SONS LTD,05/07/2013,140,,
"Development, Business & Housing",Property & Design,COAP,Premises-Related Expenditure,Water Rates,SEVERN TRENT WATER LTD,05/07/2013,539.37,,
"Development, Business & Housing",Property & Design,COAP,Premises-Related Expenditure,Gas,BRITISH GAS BUSINESS,05/07/2013,627.42,,
"Development, Business & Housing",Property & Design,COAP,Premises-Related Expenditure,Service Contracts,HERRON CLEANING SERVICES,05/07/2013,164.32,,
"Development, Business & Housing",Property & Design,COAP,Premises-Related Expenditure,Service Contracts,HERRON CLEANING SERVICES,05/07/2013,153.92,,
"Development, Business & Housing",Property & Design,COAP,Premises-Related Expenditure,Service Contracts,JCE & SONS LTD,05/07/2013,241.5,,
"Development, Business & Housing",Property & Design,COAP,Premises-Related Expenditure,Service Contracts,JCE & SONS LTD,05/07/2013,661.5,,
"Development, Business & Housing",Property & Design,COAP,Premises-Related Expenditure,R&M -Buildings DLO Charge,CONCEPT ELEVATORS (MIDLANDS) LIMITED,05/07/2013,210.97,,
"Development, Business & Housing",Property & Design,COAP,Premises-Related Expenditure,Clean Mats & Toilet Requisites,PROVAC CLEANING SUPPLIES LTD,08/07/2013,229.2,,
"Development, Business & Housing",Property & Design,COAP,Premises-Related Expenditure,Clean Mats & Toilet Requisites,PROVAC CLEANING SUPPLIES LTD,08/07/2013,286.5,,
"Development, Business & Housing",Property & Design,COAP,Premises-Related Expenditure,Service Contracts,Automated Building Controls Limited,17/07/2013,1137,,
"Development, Business & Housing",Property & Design,COAP,Premises-Related Expenditure,Clean Mats & Toilet Requisites,PHS GROUP LTD,17/07/2013,734.54,,
"Development, Business & Housing",Property & Design,COAP,Premises-Related Expenditure,Water Rates,SEVERN TRENT WATER LTD,17/07/2013,549.74,,
"Development, Business & Housing",Property & Design,COAP,Premises-Related Expenditure,Trade Refuse,FCC RECYCLING (UK) LIMITED,17/07/2013,215.15,,
"Development, Business & Housing",Property & Design,COAP,Premises-Related Expenditure,Trade Refuse,FCC RECYCLING (UK) LIMITED,17/07/2013,168.61,,
"Development, Business & Housing",Property & Design,COAP,Premises-Related Expenditure,Clean Mats & Toilet Requisites,PHS GROUP LTD,17/07/2013,820.08,,
"Development, Business & Housing",Property & Design,COAP,Premises-Related Expenditure,R&M -Buildings DLO Charge,CONCEPT ELEVATORS (MIDLANDS) LIMITED,17/07/2013,193.5,,
"Development, Business & Housing",Property & Design,COAP,Premises-Related Expenditure,Trade Refuse,FCC RECYCLING (UK) LIMITED,17/07/2013,189.15,,
"Development, Business & Housing",Property & Design,COAP,Premises-Related Expenditure,Contract Cleaning,OCEAN CONTRACT CLEANING LTD,17/07/2013,3321.46,,
"Development, Business & Housing",Property & Design,COAP,Premises-Related Expenditure,R&M -Buildings DLO Charge,GRANVILLE CONSTRUCTION & MAINTENANCE LTD,17/07/2013,174,,
"Development, Business & Housing",Property & Design,COAP,Premises-Related Expenditure,R&M -Buildings DLO Charge,SHROPSHIRE HEATING SERVICES LTD,17/07/2013,253.39,,
"Development, Business & Housing",Property & Design,COAP,Premises-Related Expenditure,R&M -Buildings DLO Charge,SHROPSHIRE HEATING SERVICES LTD,17/07/2013,112.5,,
"Development, Business & Housing",Property & Design,COAP,Premises-Related Expenditure,R&M -Buildings DLO Charge,OSPREY WATER MANAGEMENT LTD,17/07/2013,332.65,,
"Development, Business & Housing",Property & Design,COAP,Premises-Related Expenditure,R&M -Buildings DLO Charge,JONES & HAMPTON LTD,17/07/2013,839.82,,
"Development, Business & Housing",Property & Design,COAP,Premises-Related Expenditure,Service Contracts,JCE & SONS LTD,17/07/2013,1289,,
"Development, Business & Housing",Property & Design,COAP,Premises-Related Expenditure,R&M -Buildings DLO Charge,HORTON AUTOMATICS LTD,17/07/2013,170,,
"Development, Business & Housing",Property & Design,COAP,Premises-Related Expenditure,R&M -Buildings DLO Charge,SHROPSHIRE HEATING SERVICES LTD,17/07/2013,147,,
"Development, Business & Housing",Property & Design,COAP,Premises-Related Expenditure,R&M -Buildings DLO Charge,PP ELECTRICAL SERVICES (Shropshire) Ltd,17/07/2013,636.08,,
"Development, Business & Housing",Property & Design,COAP,Premises-Related Expenditure,R&M -Buildings DLO Charge,DOOR LOADING SERVICES UK LTD,17/07/2013,1200,,
"Development, Business & Housing",Property & Design,COAP,Premises-Related Expenditure,Service Contracts,Protec Fire Detection PLC,17/07/2013,281.75,,
"Development, Business & Housing",Property & Design,COAP,Premises-Related Expenditure,Service Contracts,JCE & SONS LTD,17/07/2013,2584.4,,
"Development, Business & Housing",Property & Design,COAP,Premises-Related Expenditure,Service Contracts,Protec Fire Detection PLC,17/07/2013,724.5,,
"Development, Business & Housing",Property & Design,COAP,Premises-Related Expenditure,Service Contracts,Ambiflex Ltd,17/07/2013,270,,
"Development, Business & Housing",Property & Design,COAP,Premises-Related Expenditure,R&M -Buildings DLO Charge,PHS GROUP LTD,17/07/2013,161.72,,
"Development, Business & Housing",Property & Design,COAP,Premises-Related Expenditure,R&M -Buildings DLO Charge,Protec Fire Detection PLC,17/07/2013,273.99,,
"Development, Business & Housing",Property & Design,COAP,Premises-Related Expenditure,R&M -Building Other,Shoretan Leisure,17/07/2013,195,,
"Development, Business & Housing",Property & Design,COAP,Premises-Related Expenditure,Clean Mats & Toilet Requisites,PHS GROUP LTD,17/07/2013,214.63,,
"Development, Business & Housing",Property & Design,COAP,Premises-Related Expenditure,Water Rates,SEVERN TRENT WATER LTD,17/07/2013,488.95,,
"Development, Business & Housing",Property & Design,COAP,Premises-Related Expenditure,R&M -Buildings DLO Charge,D P WILCOX & SON,17/07/2013,120,,
"Development, Business & Housing",Property & Design,COAP,Premises-Related Expenditure,R&M -Buildings DLO Charge,RCS ROOFING CONSTRUCTION SERVICES LTD,17/07/2013,617.45,,
"Development, Business & Housing",Property & Design,COAP,Premises-Related Expenditure,R&M -Buildings DLO Charge,RCS ROOFING CONSTRUCTION SERVICES LTD,17/07/2013,193.7,,
"Development, Business & Housing",Property & Design,COAP,Premises-Related Expenditure,Electricity,West Mercia Energy (WME),17/07/2013,7908.2,,
"Development, Business & Housing",Property & Design,COAP,Premises-Related Expenditure,Electricity,West Mercia Energy (WME),17/07/2013,4740.25,,
"Development, Business & Housing",Property & Design,COAP,Premises-Related Expenditure,Electricity,West Mercia Energy (WME),17/07/2013,2241.17,,
"Development, Business & Housing",Property & Design,COAP,Premises-Related Expenditure,Electricity,West Mercia Energy (WME),17/07/2013,1125.75,,
"Development, Business & Housing",Property & Design,COAP,Premises-Related Expenditure,Electricity,West Mercia Energy (WME),17/07/2013,243.89,,
"Development, Business & Housing",Property & Design,COAP,Premises-Related Expenditure,Electricity,West Mercia Energy (WME),17/07/2013,2321.94,,
"Development, Business & Housing",Property & Design,COAP,Premises-Related Expenditure,Electricity,West Mercia Energy (WME),17/07/2013,201.08,,
"Development, Business & Housing",Property & Design,COAP,Premises-Related Expenditure,Electricity,West Mercia Energy (WME),17/07/2013,337.33,,
"Development, Business & Housing",Property & Design,COAP,Premises-Related Expenditure,Electricity,West Mercia Energy (WME),17/07/2013,384.67,,
"Development, Business & Housing",Property & Design,COAP,Premises-Related Expenditure,Electricity,West Mercia Energy (WME),17/07/2013,897.48,,
"Development, Business & Housing",Property & Design,COAP,Premises-Related Expenditure,Electricity,West Mercia Energy (WME),17/07/2013,696.59,,
"Development, Business & Housing",Property & Design,COAP,Premises-Related Expenditure,Electricity,West Mercia Energy (WME),17/07/2013,341.33,,
"Development, Business & Housing",Property & Design,COAP,Premises-Related Expenditure,Electricity,West Mercia Energy (WME),17/07/2013,692.3,,
"Development, Business & Housing",Property & Design,COAP,Premises-Related Expenditure,Window Cleaning,HYKLEEN WINDOW CLEANING CONTRACTORS,18/07/2013,135,,
"Development, Business & Housing",Property & Design,COAP,Premises-Related Expenditure,Gas,BUDGET GAS LTD,18/07/2013,118.84,,
"Development, Business & Housing",Property & Design,COAP,Premises-Related Expenditure,R&M -Buildings DLO Charge,JONES & HAMPTON LTD,30/07/2013,355.81,,
"Development, Business & Housing",Property & Design,COAP,Premises-Related Expenditure,R&M -Buildings DLO Charge,SHROPSHIRE HEATING SERVICES LTD,30/07/2013,341.62,,
"Development, Business & Housing",Property & Design,COAP,Premises-Related Expenditure,R&M -Buildings DLO Charge,JONES & HAMPTON LTD,30/07/2013,139.32,,
"Development, Business & Housing",Property & Design,COAP,Premises-Related Expenditure,R&M -Buildings DLO Charge,JONES & HAMPTON LTD,30/07/2013,332.05,,
"Development, Business & Housing",Property & Design,COAP,Premises-Related Expenditure,R&M -Buildings DLO Charge,JONES & HAMPTON LTD,30/07/2013,278.6,,
"Development, Business & Housing",Property & Design,COAP,Premises-Related Expenditure,R&M -Buildings DLO Charge,JONES & HAMPTON LTD,30/07/2013,132.79,,
"Development, Business & Housing",Property & Design,COAP,Premises-Related Expenditure,Service Contracts,WATERCLEAN SERVICES LTD,30/07/2013,160,,
"Development, Business & Housing",Property & Design,COAP,Premises-Related Expenditure,Service Contracts,WATERCLEAN SERVICES LTD,30/07/2013,160,,
"Development, Business & Housing",Property & Design,COAP,Premises-Related Expenditure,Service Contracts,WATERCLEAN SERVICES LTD,30/07/2013,320,,
"Development, Business & Housing",Property & Design,COAP,Premises-Related Expenditure,Service Contracts,WATERCLEAN SERVICES LTD,30/07/2013,160,,
"Development, Business & Housing",Property & Design,COAP,Premises-Related Expenditure,R&M -Buildings DLO Charge,JONES & HAMPTON LTD,30/07/2013,107.8,,
"Development, Business & Housing",Property & Design,COAP,Premises-Related Expenditure,Gas,BUDGET GAS LTD,31/07/2013,148.55,,
"Development, Business & Housing",Property & Design,COAP,Premises-Related Expenditure,R&M -Buildings DLO Charge,TAYLORS MECHANICAL H & P SERVICES LTD,31/07/2013,428.15,,
"Development, Business & Housing",Property & Design,COAP,Premises-Related Expenditure,Service Contracts,SHROPSHIRE HEATING SERVICES LTD,31/07/2013,112,,
"Development, Business & Housing",Property & Design,COAP,Premises-Related Expenditure,R&M -Buildings DLO Charge,JONES & HAMPTON LTD,31/07/2013,1449.35,,
"Development, Business & Housing",Property & Design,COAP,Premises-Related Expenditure,Service Contracts,SHROPSHIRE HEATING SERVICES LTD,31/07/2013,291,,
"Development, Business & Housing",Property & Design,COAP,Premises-Related Expenditure,Service Contracts,SHROPSHIRE HEATING SERVICES LTD,31/07/2013,622.13,,
"Development, Business & Housing",Property & Design,COAP,Premises-Related Expenditure,Service Contracts,SHROPSHIRE HEATING SERVICES LTD,31/07/2013,290,,
"Development, Business & Housing",Property & Design,COAP,Premises-Related Expenditure,Service Contracts,SHROPSHIRE HEATING SERVICES LTD,31/07/2013,112,,
"Development, Business & Housing",Property & Design,COAP,Premises-Related Expenditure,Service Contracts,SHROPSHIRE HEATING SERVICES LTD,31/07/2013,112,,
"Development, Business & Housing",Property & Design,COAP,Premises-Related Expenditure,Service Contracts,SHROPSHIRE HEATING SERVICES LTD,31/07/2013,189.26,,
"Development, Business & Housing",Property & Design,COAP,Premises-Related Expenditure,Service Contracts,SHROPSHIRE HEATING SERVICES LTD,31/07/2013,188.5,,
"Development, Business & Housing",Property & Design,COAP,Premises-Related Expenditure,Service Contracts,SHROPSHIRE HEATING SERVICES LTD,31/07/2013,333.5,,
"Development, Business & Housing",Property & Design,COAP,Premises-Related Expenditure,Service Contracts,SHROPSHIRE HEATING SERVICES LTD,31/07/2013,112,,
"Development, Business & Housing",Property & Design,COAP,Premises-Related Expenditure,Service Contracts,SHROPSHIRE HEATING SERVICES LTD,31/07/2013,112,,
"Development, Business & Housing",Property & Design,COAP,Premises-Related Expenditure,R&M -Buildings DLO Charge,Silverdale Properties,31/07/2013,650,,
"Development, Business & Housing",Property & Design,COAP,Premises-Related Expenditure,Water Rates,SEVERN TRENT WATER LTD,22/07/2013,217.38,,
"Development, Business & Housing",Property & Design,COAP,Premises-Related Expenditure,Planned Repairs,West Mercia Energy (WME),22/07/2013,2632.29,,
"Development, Business & Housing",Property & Design,COAP,Premises-Related Expenditure,Gas,West Mercia Energy (WME),22/07/2013,220.61,,
"Development, Business & Housing",Property & Design,COAP,Premises-Related Expenditure,Gas,West Mercia Energy (WME),22/07/2013,191.98,,
"Development, Business & Housing",Property & Design,COAP,Premises-Related Expenditure,Gas,West Mercia Energy (WME),22/07/2013,309.28,,
"Development, Business & Housing",Property & Design,COAP,Premises-Related Expenditure,Gas,West Mercia Energy (WME),22/07/2013,483.64,,
"Development, Business & Housing",Property & Design,COAP,Premises-Related Expenditure,Gas,West Mercia Energy (WME),22/07/2013,215.48,,
"Development, Business & Housing",Property & Design,COAP,Premises-Related Expenditure,Gas,West Mercia Energy (WME),22/07/2013,306.75,,
